Workbook

Sheet Introduction
B4: Rehabilitation Cost Estimation Tool

Sheet Registration
AG1: =D7 -> Calarie
B2: Site Registration | I2: Date | J2: July | K2: 2024 | AG2: =D9 -> ML739
B5: Complete the following fields prior to calculating the Security Deposit.
B7: Mine Name: | D7: Calarie
B9: Lease(s): | D9: ML739
B11: Title Holder: | D11: Orange Minerals (NSW) Pty Ltd
B13: Mine Operator: | D13: Orange Minerals Ltd
B15: Term of RCE: | D15: 3 years
B17: Current Security: | D17: 16000 | F17: Date of last Security Deposit review | J17: 2024-05-07
B19: Mine Contact: | D19: Phil Sheilds
B21: Position: | D21: Exploration Manager
B23: Address: | D23: About 4.58km N of FORBES
B27: Phone: | D27: 427425656 | F27: Email: | G27: phil@orangeminerals.com.au
B31: Site Description
B34: The following site specific information is requested to provide background information in the context of calculating the Security Deposit.
B37: Summary of Mine Activities | H37: Environmental Sensitivities
B39: Total annual production (tonnes): | E39: 0 | H39: Surrounding land use (tick all that apply):
B41: Mine lease area (ha): | E41: 53.41
B43: Area of extraction (ha): | E43: 0
B45: Area of disturbance (ha): | E45: 3.85
B47: Rehabilitation in progress (ha):
B49: Rehabilitation complete (ha): | E49: 3.17 | H49: Environmental Issues affecting site (tick all that apply)
B50: Achieved ecosystem sustainability
B52: Forward Program/MOP Utilised: | E52: FWP0001446
B53: Reference no. version and date
B55: Forward Program/MOP Plan Utilised: | D55: 1 | E55: FWP0001446
B56: Reference Plan no. version and date
D57: 2
D59: 3
B65: NOTE: Ensure rehabilitation cost estimation reflects all environmental issues affecting the lease. Contingencies should be allocated where costs have not been incorporated elswhere in the estimation.

Sheet Exploration Registration (hidden)
AG1: =#REF! -> 
B2: Site Registration | I2: Date | J2: February | K2: 2024 | AG2: =D7 -> ML739
B5: Complete the following fields prior to calculating the security deposit.
B7: Exploration | D7: ML739
B8: Authorisation Number
B10: Exploration Authorisation Holder Name: | D10: Orange Minerals Pty Lts
B11: Authorisation Holder
B12: Name
B14: Expiry of Authorisation
B16: Current Security | F16: Date of last Security Deposit review
B18: RCE Contact
B20: Position
B22: Address
B26: Phone | F26: Email
B30: Site Description
B33: The following site specific information is requested to provide background information in the context of calculating the security deposit.
B36: Summary of Exploration Activities
B38: Authorisation area (ha): | F38: Hectares
B40: Exploration Activity (Assessable Prospecting Operations) Approval | F40: 1
B41: references for activities which have not been rehabilitated
B42: to the satisfaction* of the Department. | F42: 2
F44: 3
F46: 4
B50: *Rehabilitation of prospecting operations is deemed 'satisfactory' when: • a Form ESF2 – Rehabilitation Completion and/or Review of Rehabilitation Cost Estimate is submitted to the Department by the authority holder, and • the Department has formally notified the authority holder that the rehabilitation is satisfactory.

Sheet Open Cut Summary Report
AG1: =#REF! -> 
AG2: =#REF! -> 
B7: Open Cut Summary Rehabilitation Cost Estimation
B10: Note: Sections of this page are automatically filled in from the registration page
B12: Mine Name: | D12: =Registration!D7 -> Calarie
B14: Lease(s): | D14: =Registration!D9 -> ML739
B16: Authorisation Owner: | D16: =Registration!D11 -> Orange Minerals (NSW) Pty Ltd
B18: Mine Operator: | D18: =Registration!D13 -> Orange Minerals Ltd
B20: Term of RCE: | D20: =Registration!D15 -> 3 years
B22: Current Security: | D22: =Registration!D17 -> 16000 | F22: Date of Last Security Deposit Review: | J22: =Registration!J17 -> 2024-05-07
B24: Mine Contact: | D24: =Registration!D19 -> Phil Sheilds
B26: Position: | D26: =Registration!D21 -> Exploration Manager
B28: Address: | D28: =Registration!D23 -> About 4.58km N of FORBES
D29: =Registration!D24 -> 0
D30: =Registration!D25 -> 0
B32: Phone: | D32: =Registration!D27 -> 427425656 | F32: Email: | G32: =Registration!G27 -> phil@orangeminerals.com.au
B35: Domain | I35: Security Deposit
B36: Domain 1: Infrastructure | I36: ='Open_Cut (1)'!J181+'Open_Cut (2)'!J181+'Open_Cut (3)'!J181 -> 6301.85
B37: Domain 2: Tailings & Rejects | I37: ='Open_Cut (1)'!J286+'Open_Cut (2)'!J286+'Open_Cut (3)'!J285 -> 0
B38: Domain 3: Overburden & Waste | I38: ='Open_Cut (1)'!J383+'Open_Cut (2)'!J383+'Open_Cut (3)'!J382 -> 0
B39: Domain 4: Active Mine & Voids | I39: ='Open_Cut (1)'!J451+'Open_Cut (2)'!J450+'Open_Cut (3)'!J450 -> 0
B40: Domain 5: Management Activities | I40: ='Open_Cut (1)'!J502+'Open_Cut (2)'!J500+'Open_Cut (3)'!J501 -> 0
B43: Subtotal (Domains and Sundry Items) | I43: =SUM(I36:K42) -> 6301.85
B44: Contingency | H44: 0.1 | I44: =$I$43*H44 -> 630.185
B45: Post Closure Environmental Monitoring | H45: 0.1 | I45: =$I$43*H45 -> 630.185
B46: Project Management and Surveying | H46: 0.1 | I46: =$I$43*H46 -> 630.185
B48: Total Security Deposit for the Mining Project (excl. of GST) | I48: =SUM(I43:K46) -> 8192.405
B50: Note: GST is not included in the above calculation or as part of rehabilitation security deposits required by the Department.
B54: This Registration Form, Summary Report and calculation pages are to be printed and attached as an appendix the AEMR or MOP.
B56: This mine security calculation has been estimated using the best available information at the time.
B57: It is a true and accurate reflection of the total rehabilitation liability held by this mine.
B60: Alexandra Bonner | J60: 15/07/2024
B61: Company Respresentative's Name | J61: Date
B66: Consulting Geologist | J66: Alexandra Bonner (15/7/2024)
B67: Company Representative's Role / Responsibility | J67: Signature

Sheet Open Cut & UG Summary Report (hidden)
AG1: =#REF! -> 
AG2: =#REF! -> 
B7: Open Cut and Underground Summary Rehabilitation Cost Estimation
B10: Note: Sections of this page are automatically filled in from the registration page
B12: Mine Name: | D12: =Registration!D7 -> Calarie
B14: Lease(s): | D14: =Registration!D9 -> ML739
B16: Mine Owner: | D16: =Registration!D11 -> Orange Minerals (NSW) Pty Ltd
B18: Mine Operator: | D18: =Registration!D13 -> Orange Minerals Ltd
B20: Term of RCE: | D20: =Registration!D15 -> 3 years
B22: Current Security: | D22: =Registration!D17 -> 16000 | F22: Date of Last Security Deposit Review: | J22: =Registration!J17 -> 2024-05-07
B24: Mine Contact: | D24: =Registration!D19 -> Phil Sheilds
B26: Position: | D26: =Registration!D21 -> Exploration Manager
B28: Address: | D28: =Registration!D23 -> About 4.58km N of FORBES
D29: =Registration!D24 -> 0
D30: =Registration!D25 -> 0
B32: Phone: | D32: =Registration!D27 -> 427425656 | F32: Email: | G32: =Registration!G27 -> phil@orangeminerals.com.au
B35: Domain | I35: Security Deposit
B36: Domain 1: Infrastructure | I36: ='Open_Cut_&_UG (1)'!J191+'Open_Cut_&_UG (2)'!J191+'Open_Cut_&_UG (3)'!J191 -> 0
B37: Domain 2: Tailings & Rejects | I37: ='Open_Cut_&_UG (1)'!J290+'Open_Cut_&_UG (2)'!J290+'Open_Cut_&_UG (3)'!J290 -> 0
B38: Domain 3: Overburden & Waste | I38: ='Open_Cut_&_UG (1)'!J381+'Open_Cut_&_UG (2)'!J381+'Open_Cut_&_UG (3)'!J381 -> 0
B39: Domain 4: Active Mine & Voids | I39: ='Open_Cut_&_UG (1)'!J449+'Open_Cut_&_UG (2)'!J449+'Open_Cut_&_UG (3)'!J449 -> 0
B40: Domain 5: Subsidence & Management | I40: ='Open_Cut_&_UG (1)'!J507+'Open_Cut_&_UG (2)'!J507+'Open_Cut_&_UG (3)'!J507 -> 0
B43: Subtotal (Domains and Sundry Items) | I43: =SUM(I36:K42) -> 0
B44: Contingency | H44: 0.1 | I44: =$I$43*H44 -> 0
B45: Post Closure Environmental Monitoring | H45: 0.1 | I45: =$I$43*H45 -> 0
B46: Project Management and Surveying | H46: 0.1 | I46: =$I$43*H46 -> 0
B48: Total Security Deposit for the Mining Project (excl. of GST) | I48: =SUM(I43:K46) -> 0
B50: Note: GST is not included in the above calculation or as part of rehabilitation security deposits required by the Department
B54: This Registration Form, Summary Report and calculation pages are to be printed and attached as an appendix the AEMR or MOP.
B56: This mine security calculation has been estimated using the best available information at the time.
B57: It is a true and accurate reflection of the total rehabilitation liability held by this mine.
B61: Company Representatives Name | J61: Date
B67: Company Representatives Role / Responsibility | J67: Signature

Sheet Underground Summary Report (hidden)
AG1: =#REF! -> 
AG2: =#REF! -> 
B7: Underground Summary Rehabilitation Cost Estimation
B10: Note: Sections of this page are automatically filled in from the registration page
B12: Mine Name: | D12: =Registration!D7 -> Calarie
B14: Lease(s): | D14: =Registration!D9 -> ML739
B16: Mine Owner: | D16: =Registration!D11 -> Orange Minerals (NSW) Pty Ltd
B18: Mine Operator: | D18: =Registration!D13 -> Orange Minerals Ltd
B20: Term of RCE: | D20: =Registration!D15 -> 3 years
B22: Current Security: | D22: =Registration!D17 -> 16000 | F22: Date of Last Security Deposit Review: | J22: =Registration!J17 -> 2024-05-07
B24: Mine Contact: | D24: =Registration!D19 -> Phil Sheilds
B26: Position: | D26: =Registration!D21 -> Exploration Manager
B28: Address: | D28: =Registration!D23 -> About 4.58km N of FORBES
D29: =Registration!D24 -> 0
D30: =Registration!D25 -> 0
B32: Phone: | D32: =Registration!D27 -> 427425656 | F32: Email: | G32: =Registration!G27 -> phil@orangeminerals.com.au
B35: Domain | I35: Security Deposit
B36: Domain 1: Infrastructure | I36: ='Underground (1)'!J190+'Underground (2)'!J190+'Underground (3)'!J190 -> 0
B37: Domain 2: Tailings & Rejects | I37: ='Underground (1)'!J295+'Underground (2)'!J295+'Underground (3)'!J295 -> 0
B38: Domain 3: Overburden & Waste | I38: ='Underground (1)'!J392+'Underground (2)'!J392+'Underground (3)'!J392 -> 0
B39: Domain 4: Subsidence & Management | I39: ='Underground (1)'!J451+'Underground (2)'!J451+'Underground (3)'!J451 -> 0
B42: Subtotal (Domains and Sundry Items) | I42: =SUM(I36:K41) -> 0
B43: Contingency | H43: 0.1 | I43: =$I$42*H43 -> 0
B44: Post Closure Environmental Monitoring | H44: 0.1 | I44: =$I$42*H44 -> 0
B45: Project Management and Surveying | H45: 0.1 | I45: =$I$42*H45 -> 0
B47: Total Security Deposit for the Mining Project (excl. of GST) | I47: =SUM(I42:K45) -> 0
B49: Note: GST is not included in the above calculation or as part of rehabilitation security deposits required by the Department
B53: This Registration Form, Summary Report and calculation pages are to be printed and attached as an appendix the AEMR or MOP.
B55: This mine security calculation has been estimated using the best available information at the time.
B56: It is a true and accurate reflection of the total rehabilitation liability held by this mine.
B60: Company Representative's Name | J60: Date
B66: Company Representative's Role / Responsibility | J66: Signature

Sheet Exploration Summary Report (hidden)
AG1: =#REF! -> 
AG2: =#REF! -> 
B7: Exploration Summary Rehabilitation Cost Estimation
B10: Note: Sections of this page are automatically filled in from the registration page
B12: Exploration | D12: ='Exploration Registration'!D7 -> ML739
B13: Authorisation Number | D13: ='Exploration Registration'!D8 -> 0
B15: Exploration Authorisation Holder Name: | D15: ='Exploration Registration'!D10 -> Orange Minerals Pty Lts
B16: Authorisation Holder | D16: ='Exploration Registration'!D11 -> 0
B17: Name | D17: ='Exploration Registration'!D12 -> 0
B19: Expiry of Authorisation | D19: ='Exploration Registration'!D14 -> 00:00:00
B21: Current Security | D21: ='Exploration Registration'!D16 -> 0 | F21: Date of Last Security Deposit Review | J21: ='Exploration Registration'!J16 -> 00:00:00
B23: RCE Contact | D23: ='Exploration Registration'!D18:K18 -> 00:00:00
B25: Position | D25: ='Exploration Registration'!D20 -> 00:00:00
B27: Address | D27: ='Exploration Registration'!D22 -> 0
D28: ='Exploration Registration'!D23 -> 0
D29: ='Exploration Registration'!D24 -> 0
B31: Phone | D31: ='Exploration Registration'!D26:E26 -> 0 | F31: Email | G31: ='Exploration Registration'!G26:K26 -> 0
B34: Domain | I34: Security Deposit
B35: ='Exploration (1)'!E5 -> Total Cost for all Rehabilitation Activities | I35: ='Exploration (1)'!L5+'Exploration (2)'!L5+'Exploration (3)'!L5 -> 0
B38: Subtotal (Domains and Sundry Items) | I38: =SUM(I35:K37) -> 0
B39: Contingency | H39: 0.1 | I39: =$I$38*H39 -> 0
B40: Post Closure Environmental Monitoring | H40: 0.05 | I40: =$I$38*H40 -> 0
B42: Total Security Deposit for the Project (excl. of GST) | I42: =SUM(I38:K40) -> 0
B44: Note: GST is not included in the above calculation or as part of rehabilitation security deposits required by the Department.
B48: This Registration Form, Summary Report and calculation pages are to be printed and attached as an appendix to the RCE.
B50: This security calculation has been estimated using the best available information at the time.
B51: It is a true and accurate reflection of the total rehabilitation liability held by the authorisation holder/s for the exploration authorisation/s concerned.
B55: Authorisation Representative's Name | J55: Date:
B61: Authorisation Representative's Role / Responsibility | J61: Signature

Sheet Open_Cut (1)
C1: Management Precinct | D1: Activity / Description | E1: Applicable (Y or N) | F1: Quantity | G1: Unit | H1: Default Unit Rate | I1: Alternative Unit Rate | J1: Total Cost | K1: Basis for Costs Estimation and Additional Relevant Information | L1: Description / Notes: | AG1: =#REF! -> 
AG2: =#REF! -> 
C4: Open Cut Operations
C5: Domain 1a: Infrastructure | E5: =D181 -> Total Cost for Infrastructure Domain | L5: =J181 -> 6301.85
C7: Additional Assumptions: Record any relevant assumptions to this domain below:
J8: Key Rehabilitation Area Data for Domain | L8: Enter data below manually
J9: Total Landform Establishment:
J10: Total Growth Media Development:
J11: Total Ecosystem Establishment:
C14: Management Precinct | D14: Activity / Description | E14: Applicable (Y or N) | F14: Quantity | G14: Unit | H14: Default Unit Rate | I14: Alternative Unit Rate | J14: Total Cost | K14: Basis for Costs Estimation and Additional Relevant Information | L14: Description / Notes: | O14: Chg | P14: Link | Q14: List | R14: Print
C15: Termination of Services and Demolition Works | D15: =VLOOKUP($P15,'Cost Schedule'!$B:$F,2,FALSE) -> Disconnect and terminate all services (Water, electricity, gas etc at point of attachment to site) | E15: Y | G15: =VLOOKUP($P15,'Cost Schedule'!$B:$F,3,FALSE) -> allow | H15: =VLOOKUP($P15,'Cost Schedule'!$B:$F,4,FALSE) -> 35000 | J15: =IF($E15="Y",IF(I15=0,F15*H15,F15*I15),"") -> 0 | K15: =IF(I15<>"","insert additional information here","") ->  | L15: =VLOOKUP($P15,'Cost Schedule'!$B:$F,5,FALSE) -> For disconnection of all services, at building boundaries, physical cut at the point of attachment or distribution location. If infrastructure is not consolidated (i.e., administration, camp and workshops are in separate places), consider multiple disconnection fees. | O15: =IF(I15="",0,1) -> 0 | P15: 1.01 | R15: =E15 -> Y
D16: =VLOOKUP($P16,'Cost Schedule'!$B:$F,2,FALSE) -> Disconnect and terminate services at remote areas (i.e. pump stations, remote workshops, sewage treatment plant etc.) | E16: Y | G16: =VLOOKUP($P16,'Cost Schedule'!$B:$F,3,FALSE) -> allow | H16: =VLOOKUP($P16,'Cost Schedule'!$B:$F,4,FALSE) -> 5850 | J16: 0 | L16: =VLOOKUP($P16,'Cost Schedule'!$B:$F,5,FALSE) -> Used for infrastructure remote from primary connection. Can also be used for small mines / quarries that do not have dedicated supplies from supply authorities such as steel lattice power lines. | O16: =IF(I16="",0,1) -> 0 | P16: 1.02 | R16: =E16 -> Y
D17: =VLOOKUP($P17,'Cost Schedule'!$B:$F,2,FALSE) -> Removal of low/medium voltage powerlines including disconnection, rolling up the wires and removing the poles - does not include the removal of substations | E17: Y | G17: =VLOOKUP($P17,'Cost Schedule'!$B:$F,3,FALSE) -> km | H17: =VLOOKUP($P17,'Cost Schedule'!$B:$F,4,FALSE) -> 15000 | J17: 0 | L17: =VLOOKUP($P17,'Cost Schedule'!$B:$F,5,FALSE) -> Applies to power lines on stobie, concrete or similar poles. | O17: 0 | P17: 1.03 | R17: Y
D18: =VLOOKUP($P18,'Cost Schedule'!$B:$F,2,FALSE) -> Removal of power lines on tower or lattice structures (this includes disconnection, rolling up the wires and removing the structures) - does not include the removal of substations | E18: Y | G18: =VLOOKUP($P18,'Cost Schedule'!$B:$F,3,FALSE) -> km | H18: =VLOOKUP($P18,'Cost Schedule'!$B:$F,4,FALSE) -> 100000 | J18: 0 | L18: =VLOOKUP($P18,'Cost Schedule'!$B:$F,5,FALSE) -> Applies to power lines on steel tower and steel lattice structures assuming 3 towers / km. | O18: 0 | P18: 1.04 | R18: Y
D19: =VLOOKUP($P19,'Cost Schedule'!$B:$F,2,FALSE) -> Remove small rail, road, water course overpass - manage potential interruptions and demolish and remove bridge supports/pylons/bridge structure etc. and dispose of waste material on-site/locally | E19: Y | G19: =VLOOKUP($P19,'Cost Schedule'!$B:$F,3,FALSE) -> Item | H19: =VLOOKUP($P19,'Cost Schedule'!$B:$F,4,FALSE) -> 350000 | J19: 0 | L19: =VLOOKUP($P19,'Cost Schedule'!$B:$F,5,FALSE) -> Smaller structures - minimal civil works to demolish (constructed for the purposes of mining related works - does not include transport to regional disposal facility or equivalent). | O19: 0 | P19: 1.05a | R19: Y
D20: =VLOOKUP($P20,'Cost Schedule'!$B:$F,2,FALSE) -> Remove medium rail, road, water course overpass - manage potential interruptions and demolish and remove bridge supports/pylons/bridge structure etc. and dispose of waste material on-site/locally | E20: Y | G20: =VLOOKUP($P20,'Cost Schedule'!$B:$F,3,FALSE) -> Item | H20: =VLOOKUP($P20,'Cost Schedule'!$B:$F,4,FALSE) -> 500000 | J20: 0 | K20: =IF(I20<>"","insert additional information here","") ->  | L20: =VLOOKUP($P20,'Cost Schedule'!$B:$F,5,FALSE) -> Medium structures - minimal civil works to demolish (constructed for the purposes of mining related works - does not include transport to regional disposal facility or equivalent). | O20: 0 | P20: 1.05b | R20: Y
D21: =VLOOKUP($P21,'Cost Schedule'!$B:$F,2,FALSE) -> Remove large / significant rail, road, water course overpass - manage potential interruptions and demolish and remove bridge supports/pylons/bridge structure etc. and dispose of waste material on-site/locally | E21: Y | G21: =VLOOKUP($P21,'Cost Schedule'!$B:$F,3,FALSE) -> Item | H21: =VLOOKUP($P21,'Cost Schedule'!$B:$F,4,FALSE) -> 1300000 | J21: 0 | K21: =IF(I21<>"","insert additional information here","") ->  | L21: =VLOOKUP($P21,'Cost Schedule'!$B:$F,5,FALSE) -> Large structures - includes significant water management e.g. watercourse diversion and civil works to demolish (constructed for the purposes of mining related works - does not include transport to regional disposal facility or equivalent). | O21: 0 | P21: 1.05c | R21: Y
D22: =VLOOKUP($P22,'Cost Schedule'!$B:$F,2,FALSE) -> Demolish and/or remove substations (assumes they are in a closed building). Dispose of waste material on-site/locally | E22: Y | G22: =VLOOKUP($P22,'Cost Schedule'!$B:$F,3,FALSE) -> m2 | H22: =VLOOKUP($P22,'Cost Schedule'!$B:$F,4,FALSE) -> 100 | J22: 0 | L22: =VLOOKUP($P22,'Cost Schedule'!$B:$F,5,FALSE) -> Simple structure to demolish mechanically (no labour required), assumes single story building with no asbestos and segregation of contents for scrap as applicable. | O22: 0 | P22: 1.06 | R22: Y
D23: =VLOOKUP($P23,'Cost Schedule'!$B:$F,2,FALSE) -> Demolish and remove switchyard. Dispose of waste material on-site/locally | E23: Y | G23: =VLOOKUP($P23,'Cost Schedule'!$B:$F,3,FALSE) -> m2 | H23: =VLOOKUP($P23,'Cost Schedule'!$B:$F,4,FALSE) -> 75 | J23: 0 | L23: =VLOOKUP($P23,'Cost Schedule'!$B:$F,5,FALSE) -> Includes demolition and removal of all switchgear and transformers etc. and segregation of contents for scrap as applicable. | O23: 0 | P23: 1.07 | R23: Y
D24: =VLOOKUP($P24,'Cost Schedule'!$B:$F,2,FALSE) -> Demolish and remove demountable structures on concrete stumps. Assumes not being re-used | E24: Y | G24: =VLOOKUP($P24,'Cost Schedule'!$B:$F,3,FALSE) -> m2 | H24: =VLOOKUP($P24,'Cost Schedule'!$B:$F,4,FALSE) -> 40 | J24: 0 | L24: =VLOOKUP($P24,'Cost Schedule'!$B:$F,5,FALSE) -> Crib huts, temporary offices and other 'non permanent' structures. Does not include transport to regional disposal facility or equivalent. | O24: 0 | P24: 1.08 | R24: Y
D25: =VLOOKUP($P25,'Cost Schedule'!$B:$F,2,FALSE) -> Demolish and remove small buildings/tanks (admin buildings, single story accommodation etc) and disposal on-site/locally | E25: Y | G25: =VLOOKUP($P25,'Cost Schedule'!$B:$F,3,FALSE) -> m2 | H25: =VLOOKUP($P25,'Cost Schedule'!$B:$F,4,FALSE) -> 61 | J25: 0 | L25: =VLOOKUP($P25,'Cost Schedule'!$B:$F,5,FALSE) -> Simple structure to demolish, assumes no greater than 2 stories high. Does not include transport to regional disposal facility or equivalent. | O25: 0 | P25: 1.09 | R25: Y
D26: =VLOOKUP($P26,'Cost Schedule'!$B:$F,2,FALSE) -> Demolish and remove light industrial buildings and disposal on-site/locally | E26: Y | G26: =VLOOKUP($P26,'Cost Schedule'!$B:$F,3,FALSE) -> m2/floor | H26: =VLOOKUP($P26,'Cost Schedule'!$B:$F,4,FALSE) -> 90 | J26: 0 | L26: =VLOOKUP($P26,'Cost Schedule'!$B:$F,5,FALSE) -> Needs to be calculated per floor/level (Assume 1 floor/level = 3-4 m) - does not include transport to regional disposal facility or equivalent. Assumes asbestos free and mechanically demolished. | O26: 0 | P26: 1.1 | R26: Y
D27: =VLOOKUP($P27,'Cost Schedule'!$B:$F,2,FALSE) -> Demolish and remove industrial buildings (workshops tyre change and servicing area etc not CHPP/process plant) and disposal on-site/locally | E27: Y | G27: =VLOOKUP($P27,'Cost Schedule'!$B:$F,3,FALSE) -> m2/floor | H27: =VLOOKUP($P27,'Cost Schedule'!$B:$F,4,FALSE) -> 130 | J27: 0 | L27: =VLOOKUP($P27,'Cost Schedule'!$B:$F,5,FALSE) -> Needs to be calculated per floor/level (Assume 1 floor/level = 3-4 m). Does not include transport to regional disposal facility or equivalent. | O27: 0 | P27: 1.11 | R27: Y
D28: =VLOOKUP($P28,'Cost Schedule'!$B:$F,2,FALSE) -> Demolish and remove CHPP/process plant (include the area of each floor of the structure) and disposal on-site/locally | E28: Y | G28: =VLOOKUP($P28,'Cost Schedule'!$B:$F,3,FALSE) -> m2/floor | H28: =VLOOKUP($P28,'Cost Schedule'!$B:$F,4,FALSE) -> 225 | J28: 0 | L28: =VLOOKUP($P28,'Cost Schedule'!$B:$F,5,FALSE) -> Needs to be calculated per floor/level (Assume 1 floor/level = 3-4 m). Does not include transport to regional disposal facility or equivalent. | O28: 0 | P28: 1.12 | R28: Y
D29: =VLOOKUP($P29,'Cost Schedule'!$B:$F,2,FALSE) -> Collapse, demolish and remove washery, crushers, hoppers, mills, furnaces, agglomeration, electrowinning, floatation, sizing stations, rotary breakers, etc (include the area of each floor of the structure) and disposal on-site/locally | E29: Y | G29: =VLOOKUP($P29,'Cost Schedule'!$B:$F,3,FALSE) -> m2/floor | H29: =VLOOKUP($P29,'Cost Schedule'!$B:$F,4,FALSE) -> 225 | J29: 0 | L29: =VLOOKUP($P29,'Cost Schedule'!$B:$F,5,FALSE) -> Needs to be calculated per floor/level (Assume 1 floor/level = 3-4 m). Does not include transport to regional disposal facility or equivalent. | O29: 0 | P29: 1.13 | R29: Y
D30: =VLOOKUP($P30,'Cost Schedule'!$B:$F,2,FALSE) -> Collapse, demolish and remove stacker OR reclaimer (radial or luffing etc. with maneuverability for stockpile control) and disposal on-site/locally | E30: Y | G30: =VLOOKUP($P30,'Cost Schedule'!$B:$F,3,FALSE) -> allow | H30: =VLOOKUP($P30,'Cost Schedule'!$B:$F,4,FALSE) -> 750000 | J30: 0 | L30: =VLOOKUP($P30,'Cost Schedule'!$B:$F,5,FALSE) -> Cost for removal of stacker or reclaim unit only. Does not include terminate services, remove rails and ballast etc. Does not include transport to regional disposal facility or equivalent. | O30: 0 | P30: 1.14 | R30: Y
D31: =VLOOKUP($P31,'Cost Schedule'!$B:$F,2,FALSE) -> Collapse, demolish and remove bucket wheel stacker/reclaimer and disposal on-site/locally | E31: Y | G31: =VLOOKUP($P31,'Cost Schedule'!$B:$F,3,FALSE) -> allow | H31: =VLOOKUP($P31,'Cost Schedule'!$B:$F,4,FALSE) -> 2000000 | J31: 0 | L31: =VLOOKUP($P31,'Cost Schedule'!$B:$F,5,FALSE) -> Cost for just removal of the bucket wheel stacker/reclaim units. Does not include terminate services, remove rails and ballast etc. Does not include transport to regional disposal facility or equivalent. | O31: 0 | P31: 1.15 | R31: Y
D32: =VLOOKUP($P32,'Cost Schedule'!$B:$F,2,FALSE) -> Remove stacker/reclaimer rails and ballast and demolish and remove concrete footings etc and disposal on-site/locally | E32: Y | G32: =VLOOKUP($P32,'Cost Schedule'!$B:$F,3,FALSE) -> m | H32: =VLOOKUP($P32,'Cost Schedule'!$B:$F,4,FALSE) -> 75 | J32: 0 | L32: =VLOOKUP($P32,'Cost Schedule'!$B:$F,5,FALSE) -> Includes both rails, does not include the conveyor system. Does not include transport to regional disposal facility or equivalent. | O32: 0 | P32: 1.16 | R32: Y
D33: =VLOOKUP($P33,'Cost Schedule'!$B:$F,2,FALSE) -> Collapse, Cut and Remove 5000T coal silo and disposal on-site/locally | E33: Y | G33: =VLOOKUP($P33,'Cost Schedule'!$B:$F,3,FALSE) -> allow | H33: =VLOOKUP($P33,'Cost Schedule'!$B:$F,4,FALSE) -> 92500 | J33: 0 | L33: =VLOOKUP($P33,'Cost Schedule'!$B:$F,5,FALSE) -> Collapse structure and remove. Does not include transport to regional disposal facility or equivalent. | O33: 0 | P33: 1.17 | R33: Y
D34: =VLOOKUP($P34,'Cost Schedule'!$B:$F,2,FALSE) -> Collapse, Cut and Remove 3000 T coal silo and disposal on-site/locally | E34: Y | G34: =VLOOKUP($P34,'Cost Schedule'!$B:$F,3,FALSE) -> allow | H34: =VLOOKUP($P34,'Cost Schedule'!$B:$F,4,FALSE) -> 77500 | J34: 0 | L34: =VLOOKUP($P34,'Cost Schedule'!$B:$F,5,FALSE) -> Collapse structure and remove. Does not include transport to regional disposal facility or equivalent. | O34: 0 | P34: 1.18 | R34: Y
D35: =VLOOKUP($P35,'Cost Schedule'!$B:$F,2,FALSE) -> Collapse, Cut and Remove 1250 T coal silo and disposal on-site/locally | E35: Y | G35: =VLOOKUP($P35,'Cost Schedule'!$B:$F,3,FALSE) -> allow | H35: =VLOOKUP($P35,'Cost Schedule'!$B:$F,4,FALSE) -> 62500 | J35: 0 | L35: =VLOOKUP($P35,'Cost Schedule'!$B:$F,5,FALSE) -> Collapse structure and remove. Does not include transport to regional disposal facility or equivalent. | O35: 0 | P35: 1.19 | R35: Y
D36: =VLOOKUP($P36,'Cost Schedule'!$B:$F,2,FALSE) -> Collapse, Cut and Remove rail loading bins and disposal on-site/locally | E36: Y | G36: =VLOOKUP($P36,'Cost Schedule'!$B:$F,3,FALSE) -> allow | H36: =VLOOKUP($P36,'Cost Schedule'!$B:$F,4,FALSE) -> 65000 | J36: 0 | L36: =VLOOKUP($P36,'Cost Schedule'!$B:$F,5,FALSE) -> Collapse structure and remove. Does not include transport to regional disposal facility or equivalent. | O36: 0 | P36: 1.2 | R36: Y
D37: =VLOOKUP($P37,'Cost Schedule'!$B:$F,2,FALSE) -> Demolish and Remove large concrete rail loading bin - and disposal on-site/locally | E37: Y | G37: =VLOOKUP($P37,'Cost Schedule'!$B:$F,3,FALSE) -> allow | H37: =VLOOKUP($P37,'Cost Schedule'!$B:$F,4,FALSE) -> 460000 | J37: 0 | K37: =IF(I37<>"","insert additional information here","") ->  | L37: =VLOOKUP($P37,'Cost Schedule'!$B:$F,5,FALSE) -> Collapse structure and remove. Does not include transport to regional disposal facility or equivalent. | O37: 0 | P37: 1.20a | R37: Y
D38: =VLOOKUP($P38,'Cost Schedule'!$B:$F,2,FALSE) -> Demolish and remove onground conveyors, transfer stations & gantries (scrap only – does not include dismantling for reuse at another site) and disposal on-site/locally | E38: Y | G38: =VLOOKUP($P38,'Cost Schedule'!$B:$F,3,FALSE) -> m | H38: =VLOOKUP($P38,'Cost Schedule'!$B:$F,4,FALSE) -> 185 | J38: 0 | L38: =VLOOKUP($P38,'Cost Schedule'!$B:$F,5,FALSE) -> Estimate for on-ground conveyor including anything up to 10 m off the ground. Does not include transport to regional disposal facility or equivalent. | O38: 0 | P38: 1.21 | R38: Y
D39: =VLOOKUP($P39,'Cost Schedule'!$B:$F,2,FALSE) -> Demolish and remove elevated conveyors, transfer stations & gantries (scrap only, does not include dismantling for reuse at another site) and disposal on-site/locally | E39: Y | G39: =VLOOKUP($P39,'Cost Schedule'!$B:$F,3,FALSE) -> m | H39: =VLOOKUP($P39,'Cost Schedule'!$B:$F,4,FALSE) -> 295 | J39: 0 | L39: =VLOOKUP($P39,'Cost Schedule'!$B:$F,5,FALSE) -> Estimate for elevated conveyor up to ~10 m off the ground. Does not include transport to regional disposal facility or equivalent. | O39: 0 | P39: 1.22 | R39: Y
D40: =VLOOKUP($P40,'Cost Schedule'!$B:$F,2,FALSE) -> Demolish and remove overhead conveyors, transfer stations & gantries (scrap only, does not include dismantling for reuse at another site) and disposal on-site/locally. This may include small scale fixed material stacking infrastructure | E40: Y | G40: =VLOOKUP($P40,'Cost Schedule'!$B:$F,3,FALSE) -> m | H40: =VLOOKUP($P40,'Cost Schedule'!$B:$F,4,FALSE) -> 850 | J40: 0 | L40: =VLOOKUP($P40,'Cost Schedule'!$B:$F,5,FALSE) -> Estimate for overhead conveyor including conveyors that are >10 m off the ground that require a crane to remove. Does not include transport to regional disposal facility or equivalent. | O40: =IF(I40="",0,1) -> 0 | P40: 1.23 | R40: Y
D41: =VLOOKUP($P41,'Cost Schedule'!$B:$F,2,FALSE) -> Remove and demolish conveyor from reclaim tunnel (Does not include excavation and demolition of reclaim tunnel roof) | E41: Y | G41: =VLOOKUP($P41,'Cost Schedule'!$B:$F,3,FALSE) -> m | H41: =VLOOKUP($P41,'Cost Schedule'!$B:$F,4,FALSE) -> 150 | J41: 0 | L41: =VLOOKUP($P41,'Cost Schedule'!$B:$F,5,FALSE) -> Due to no canopy or infrastructure attached. | O41: 0 | P41: 1.24 | R41: Y
D42: =VLOOKUP($P42,'Cost Schedule'!$B:$F,2,FALSE) -> Demolition of reclaim tunnel concrete (Assumes complete removal and dumping in mine pit void) | E42: Y | G42: =VLOOKUP($P42,'Cost Schedule'!$B:$F,3,FALSE) -> m | H42: =VLOOKUP($P42,'Cost Schedule'!$B:$F,4,FALSE) -> 950 | J42: 0 | L42: =VLOOKUP($P42,'Cost Schedule'!$B:$F,5,FALSE) -> Assumes this area will be used for another land-use that requires the structure to be dug up and re-buried somewhere else. | O42: 0 | P42: 1.25 | R42: Y
D43: =VLOOKUP($P43,'Cost Schedule'!$B:$F,2,FALSE) -> Demolition and removal of vent raise fans, electrical substation and winch and disposal on-site/locally | E43: Y | G43: =VLOOKUP($P43,'Cost Schedule'!$B:$F,3,FALSE) -> allow | H43: =VLOOKUP($P43,'Cost Schedule'!$B:$F,4,FALSE) -> 25000 | J43: 0 | L43: =VLOOKUP($P43,'Cost Schedule'!$B:$F,5,FALSE) -> Does not include filling and capping the shaft. Does not include transport to regional disposal facility or equivalent. | O43: 0 | P43: 1.26 | R43: Y
D44: =VLOOKUP($P44,'Cost Schedule'!$B:$F,2,FALSE) -> Demolish and remove small tank clean (Thickener etc 3 - 9 m diameter) and disposal on-site/locally | E44: Y | G44: =VLOOKUP($P44,'Cost Schedule'!$B:$F,3,FALSE) -> allow | H44: =VLOOKUP($P44,'Cost Schedule'!$B:$F,4,FALSE) -> 10000 | J44: 0 | L44: =VLOOKUP($P44,'Cost Schedule'!$B:$F,5,FALSE) -> Assume tank is clean - contents removed. If tank is full allow extra 30% for excavator and 2 men to dig out and dispose. Does not include transport to regional disposal facility or equivalent. | O44: 0 | P44: 1.27 | R44: Y
D45: =VLOOKUP($P45,'Cost Schedule'!$B:$F,2,FALSE) -> Demolish and remove medium tank clean (Thickener etc 10 - 15 m diameter) and disposal on-site/locally | E45: Y | G45: =VLOOKUP($P45,'Cost Schedule'!$B:$F,3,FALSE) -> allow | H45: =VLOOKUP($P45,'Cost Schedule'!$B:$F,4,FALSE) -> 30000 | J45: 0 | L45: =VLOOKUP($P45,'Cost Schedule'!$B:$F,5,FALSE) -> Assume tank is clean - contents removed. If tank is full allow extra 30% for excavator and 2 men to dig out and dispose. Does not include transport to regional disposal facility or equivalent. | O45: 0 | P45: 1.28 | R45: Y
D46: =VLOOKUP($P46,'Cost Schedule'!$B:$F,2,FALSE) -> Demolish and remove large tank clean (Thickener etc 15 - 30 m diameter) and disposal on-site/locally | E46: Y | G46: =VLOOKUP($P46,'Cost Schedule'!$B:$F,3,FALSE) -> allow | H46: =VLOOKUP($P46,'Cost Schedule'!$B:$F,4,FALSE) -> 45000 | J46: 0 | L46: =VLOOKUP($P46,'Cost Schedule'!$B:$F,5,FALSE) -> Assume tank is clean - contents removed. If tank is full allow extra 30% for excavator and 2 men to dig out and dispose. Does not include transport to regional disposal facility or equivalent. | O46: =IF(I46="",0,1) -> 0 | P46: 1.29 | R46: Y
D47: =VLOOKUP($P47,'Cost Schedule'!$B:$F,2,FALSE) -> Demolish and remove extra large tank clean (Thickener etc >30 m diameter) and disposal on-site/locally | E47: Y | G47: =VLOOKUP($P47,'Cost Schedule'!$B:$F,3,FALSE) -> allow | H47: =VLOOKUP($P47,'Cost Schedule'!$B:$F,4,FALSE) -> 100000 | J47: 0 | L47: =VLOOKUP($P47,'Cost Schedule'!$B:$F,5,FALSE) -> Assume tank is clean - contents removed. If tank is full allow extra 30% for excavator and 2 men to dig out and dispose. Does not include transport to regional disposal facility or equivalent. | O47: 0 | P47: 1.3 | R47: Y
D48: =VLOOKUP($P48,'Cost Schedule'!$B:$F,2,FALSE) -> Demolish and remove tank clean (Thickener etc) >50 m diameter and disposal on-site/locally | E48: Y | G48: =VLOOKUP($P48,'Cost Schedule'!$B:$F,3,FALSE) -> allow | H48: =VLOOKUP($P48,'Cost Schedule'!$B:$F,4,FALSE) -> 100000 | J48: 0 | L48: =VLOOKUP($P48,'Cost Schedule'!$B:$F,5,FALSE) -> Estimate only - may require a detailed assessment from demolition expert due to specialised equipment required for removal. Does not include transport to regional disposal facility or equivalent. | O48: 0 | P48: 1.31 | R48: Y
D49: =VLOOKUP($P49,'Cost Schedule'!$B:$F,2,FALSE) -> Removal of UG tank <5000 L - including pipes, bunds etc. and disposal on-site/locally | E49: Y | G49: =VLOOKUP($P49,'Cost Schedule'!$B:$F,3,FALSE) -> allow | H49: =VLOOKUP($P49,'Cost Schedule'!$B:$F,4,FALSE) -> 21000 | J49: 0 | L49: =VLOOKUP($P49,'Cost Schedule'!$B:$F,5,FALSE) -> Assume tank is clean (contents removed), does not include transport to regional disposal facility or equivalent. | O49: 0 | P49: 1.32 | R49: Y
D50: =VLOOKUP($P50,'Cost Schedule'!$B:$F,2,FALSE) -> Removal of UG tank 5000 L - 15000 L - including pipes, bunds etc. and disposal on-site/locally | E50: Y | G50: =VLOOKUP($P50,'Cost Schedule'!$B:$F,3,FALSE) -> allow | H50: =VLOOKUP($P50,'Cost Schedule'!$B:$F,4,FALSE) -> 30000 | J50: 0 | L50: =VLOOKUP($P50,'Cost Schedule'!$B:$F,5,FALSE) -> Assume tank is clean (contents removed), does not include transport to regional disposal facility or equivalent. | O50: 0 | P50: 1.33 | R50: Y
D51: =VLOOKUP($P51,'Cost Schedule'!$B:$F,2,FALSE) -> Remove small underground pipe and disposal on-site/locally | E51: Y | G51: =VLOOKUP($P51,'Cost Schedule'!$B:$F,3,FALSE) -> m | H51: =VLOOKUP($P51,'Cost Schedule'!$B:$F,4,FALSE) -> 25 | J51: 0 | L51: =VLOOKUP($P51,'Cost Schedule'!$B:$F,5,FALSE) -> For example: 300 mm pipes - 0.5 m deep, does not include transport to regional disposal facility or equivalent. | O51: 0 | P51: 1.34 | R51: Y
D52: =VLOOKUP($P52,'Cost Schedule'!$B:$F,2,FALSE) -> Remove medium underground pipe and disposal on-site/locally | E52: Y | G52: =VLOOKUP($P52,'Cost Schedule'!$B:$F,3,FALSE) -> m | H52: =VLOOKUP($P52,'Cost Schedule'!$B:$F,4,FALSE) -> 60 | J52: 0 | L52: =VLOOKUP($P52,'Cost Schedule'!$B:$F,5,FALSE) -> For example: 500 mm pipes - 1 m deep, does not include transport to regional disposal facility or equivalent. | O52: 0 | P52: 1.35 | R52: Y
D53: =VLOOKUP($P53,'Cost Schedule'!$B:$F,2,FALSE) -> Remove large underground pipe and disposal on-site/locally | E53: Y | G53: =VLOOKUP($P53,'Cost Schedule'!$B:$F,3,FALSE) -> m | H53: =VLOOKUP($P53,'Cost Schedule'!$B:$F,4,FALSE) -> 165 | J53: 0 | L53: =VLOOKUP($P53,'Cost Schedule'!$B:$F,5,FALSE) -> For example: 1 m pipes - 2 m deep. | O53: 0 | P53: 1.36 | R53: Y
D54: =VLOOKUP($P54,'Cost Schedule'!$B:$F,2,FALSE) -> Remove above ground pipe (supported) and disposal on-site/locally | E54: Y | G54: =VLOOKUP($P54,'Cost Schedule'!$B:$F,3,FALSE) -> m | H54: =VLOOKUP($P54,'Cost Schedule'!$B:$F,4,FALSE) -> 12 | J54: 0 | L54: =VLOOKUP($P54,'Cost Schedule'!$B:$F,5,FALSE) -> ~300 mm pipes and assumes pipes are in close proximity to infrastructure areas. Does not include transport to regional disposal facility or equivalent. | O54: 0 | P54: 1.37 | R54: Y
D55: =VLOOKUP($P55,'Cost Schedule'!$B:$F,2,FALSE) -> Remove surface pipelines (unsupported) and disposal on-site/locally | E55: Y | G55: =VLOOKUP($P55,'Cost Schedule'!$B:$F,3,FALSE) -> m | H55: =VLOOKUP($P55,'Cost Schedule'!$B:$F,4,FALSE) -> 15 | J55: 0 | L55: =VLOOKUP($P55,'Cost Schedule'!$B:$F,5,FALSE) -> ~300 mm pipes and assumes pipes are used for water transfer between pits (or similar) and remotely located. Does not include transport to regional disposal facility or equivalent. | O55: 0 | P55: 1.38 | R55: Y
D56: =VLOOKUP($P56,'Cost Schedule'!$B:$F,2,FALSE) -> Remove pump and pontoon from small lake or dam including pipes and electrical supply or diesel tank/s | E56: Y | G56: =VLOOKUP($P56,'Cost Schedule'!$B:$F,3,FALSE) -> allow | H56: =VLOOKUP($P56,'Cost Schedule'!$B:$F,4,FALSE) -> 20000 | J56: 0 | L56: =VLOOKUP($P56,'Cost Schedule'!$B:$F,5,FALSE) -> Includes equipment for retrieval - boats, etc. and labour. Does not include transport to regional disposal facility or equivalent. | O56: =IF(I56="",0,1) -> 0 | P56: 1.39 | R56: Y
D57: =VLOOKUP($P57,'Cost Schedule'!$B:$F,2,FALSE) -> Remove bitumen (car park and access roads) and dispose on-site/locally | E57: Y | G57: =VLOOKUP($P57,'Cost Schedule'!$B:$F,3,FALSE) -> m2 | H57: =VLOOKUP($P57,'Cost Schedule'!$B:$F,4,FALSE) -> 10 | J57: 0 | L57: =VLOOKUP($P57,'Cost Schedule'!$B:$F,5,FALSE) -> Scalp bitumen and stabilised material. Generally haulage rates will be $0.60 - $1.20 / km, depending on truck fleet, loaders etc. For off-site disposal use alternate rate option and add $0.90 / km for transport. | O57: 0 | P57: 1.4 | R57: Y
D58: =VLOOKUP($P58,'Cost Schedule'!$B:$F,2,FALSE) -> Remove bitumen (airstrip) and dispose on-site/locally | E58: Y | G58: =VLOOKUP($P58,'Cost Schedule'!$B:$F,3,FALSE) -> m2 | H58: =VLOOKUP($P58,'Cost Schedule'!$B:$F,4,FALSE) -> 20 | J58: 0 | L58: =VLOOKUP($P58,'Cost Schedule'!$B:$F,5,FALSE) -> Scalp bitumen and stabilised material. Generally haulage rates will be $0.60 - $1.20 / km, depending on truck fleet, loaders etc. For off-site disposal use alternate rate option and add $0.90 / km for transport. | O58: 0 | P58: 1.41 | R58: Y
D59: =VLOOKUP($P59,'Cost Schedule'!$B:$F,2,FALSE) -> Remove concrete pads & footings (<300 mm thickness) and disposal on-site/locally | E59: Y | G59: =VLOOKUP($P59,'Cost Schedule'!$B:$F,3,FALSE) -> m2 | H59: =VLOOKUP($P59,'Cost Schedule'!$B:$F,4,FALSE) -> 36 | J59: 0 | L59: =VLOOKUP($P59,'Cost Schedule'!$B:$F,5,FALSE) -> Breaking up slab and disposal or for conversion to aggregate. Generally haulage rates will be $0.60 - $1.20 / km, depending on truck fleet, loaders etc. For off-site disposal use alternate rate option and add $0.90 / km for transport. | O59: 0 | P59: 1.42 | R59: Y
D60: =VLOOKUP($P60,'Cost Schedule'!$B:$F,2,FALSE) -> Remove concrete pads & footings (>300 mm thickness) and disposal on-site/locally | E60: Y | G60: =VLOOKUP($P60,'Cost Schedule'!$B:$F,3,FALSE) -> m2 | H60: =VLOOKUP($P60,'Cost Schedule'!$B:$F,4,FALSE) -> 75 | J60: 0 | L60: =VLOOKUP($P60,'Cost Schedule'!$B:$F,5,FALSE) -> Breaking up slab and disposal or for conversion to aggregate. Generally haulage rates will be $0.60 - $1.20 / km, depending on truck fleet, loaders etc. For off-site disposal use alternate rate option and add $0.90 / km for transport. | O60: 0 | P60: 1.43 | R60: Y
D61: =VLOOKUP($P61,'Cost Schedule'!$B:$F,2,FALSE) -> Crush concrete to make road aggregate - 75 mm | E61: Y | G61: =VLOOKUP($P61,'Cost Schedule'!$B:$F,3,FALSE) -> tonne | H61: =VLOOKUP($P61,'Cost Schedule'!$B:$F,4,FALSE) -> 10 | J61: 0 | L61: =VLOOKUP($P61,'Cost Schedule'!$B:$F,5,FALSE) -> Does not include haulage of materials - assumes crushing plant is readily available. | O61: 0 | P61: 1.44 | R61: Y
D62: =VLOOKUP($P62,'Cost Schedule'!$B:$F,2,FALSE) -> Crush concrete to make road aggregate - 50 mm | E62: Y | G62: =VLOOKUP($P62,'Cost Schedule'!$B:$F,3,FALSE) -> tonne | H62: =VLOOKUP($P62,'Cost Schedule'!$B:$F,4,FALSE) -> 13 | J62: 0 | L62: =VLOOKUP($P62,'Cost Schedule'!$B:$F,5,FALSE) -> Does not include haulage of materials - assumes crushing plant is readily available. | O62: 0 | P62: 1.45 | R62: Y
D63: =VLOOKUP($P63,'Cost Schedule'!$B:$F,2,FALSE) -> Crush concrete to make road aggregate - 30 mm | E63: Y | G63: =VLOOKUP($P63,'Cost Schedule'!$B:$F,3,FALSE) -> tonne | H63: =VLOOKUP($P63,'Cost Schedule'!$B:$F,4,FALSE) -> 15 | J63: =IF($E63="Y",IF(I63=0,F63*H63,F63*I63),"") -> 0 | K63: =IF(I63<>"","insert additional information here","") ->  | L63: =VLOOKUP($P63,'Cost Schedule'!$B:$F,5,FALSE) -> Does not include haulage of materials - assumes crushing plant is readily available. | O63: 0 | P63: 1.46 | R63: Y
D64: =VLOOKUP($P64,'Cost Schedule'!$B:$F,2,FALSE) -> Remove fence (cyclone/wire fence) and disposal on-site/locally | E64: Y | G64: =VLOOKUP($P64,'Cost Schedule'!$B:$F,3,FALSE) -> m | H64: =VLOOKUP($P64,'Cost Schedule'!$B:$F,4,FALSE) -> 20 | J64: 0 | L64: =VLOOKUP($P64,'Cost Schedule'!$B:$F,5,FALSE) -> Roll up fence and remove posts. | O64: 0 | P64: 1.47 | R64: Y
D65: =VLOOKUP($P65,'Cost Schedule'!$B:$F,2,FALSE) -> Removal of small plastic tanks | E65: Y | G65: =VLOOKUP($P65,'Cost Schedule'!$B:$F,3,FALSE) -> each | H65: =VLOOKUP($P65,'Cost Schedule'!$B:$F,4,FALSE) -> 1000 | J65: 0 | L65: =VLOOKUP($P65,'Cost Schedule'!$B:$F,5,FALSE) -> Remove small poly tanks used for water storage, etc. | O65: 0 | P65: 1.48 | R65: Y
D66: =VLOOKUP($P66,'Cost Schedule'!$B:$F,2,FALSE) -> Demolish and remove galvanised/corrugated light weight tanks | E66: Y | G66: =VLOOKUP($P66,'Cost Schedule'!$B:$F,3,FALSE) -> each | H66: =VLOOKUP($P66,'Cost Schedule'!$B:$F,4,FALSE) -> 500 | J66: 0 | L66: =VLOOKUP($P66,'Cost Schedule'!$B:$F,5,FALSE) -> Demolish and remove small lightweight metal tanks. No costs included for managing liquids, etc. | O66: 0 | P66: 1.49 | R66: Y
D67: =VLOOKUP($P67,'Cost Schedule'!$B:$F,2,FALSE) -> Demolish and remove communication towers | E67: Y | G67: =VLOOKUP($P67,'Cost Schedule'!$B:$F,3,FALSE) -> each | H67: =VLOOKUP($P67,'Cost Schedule'!$B:$F,4,FALSE) -> 5000 | J67: 0 | L67: =VLOOKUP($P67,'Cost Schedule'!$B:$F,5,FALSE) -> Cost includes demolition and removal of tower only; separate costs required for disconnection of services, demolition of footings, etc. | O67: 0 | P67: 1.5 | R67: Y
D68: =VLOOKUP($P68,'Cost Schedule'!$B:$F,2,FALSE) -> Removal of UG services (power within main gate areas, etc.) | E68: Y | G68: =VLOOKUP($P68,'Cost Schedule'!$B:$F,3,FALSE) -> allow | H68: =VLOOKUP($P68,'Cost Schedule'!$B:$F,4,FALSE) -> 50000 | J68: 0 | L68: =VLOOKUP($P68,'Cost Schedule'!$B:$F,5,FALSE) -> Assume service disconnection at the mine boundary is at surface level. This cost covers all fees and charges | O68: 0 | P68: 1.51 | R68: Y
D69: =VLOOKUP($P69,'Cost Schedule'!$B:$F,2,FALSE) -> Waste disposal to Council landfill (general waste) - haulage >10 km but <15 km | E69: Y | G69: =VLOOKUP($P69,'Cost Schedule'!$B:$F,3,FALSE) -> tonne | H69: =VLOOKUP($P69,'Cost Schedule'!$B:$F,4,FALSE) -> 7 | J69: 0 | L69: =VLOOKUP($P69,'Cost Schedule'!$B:$F,5,FALSE) -> Rate accounts for round trip haulage to Council landfill but excludes landfill fees. Input quantity against Waste disposal to Council landfill - fees for relevant waste type. | O69: 0 | P69: 1.52 | R69: Y
D70: =VLOOKUP($P70,'Cost Schedule'!$B:$F,2,FALSE) -> Waste disposal to Council landfill (general waste) - haulage >15 km but <25 km | E70: Y | G70: =VLOOKUP($P70,'Cost Schedule'!$B:$F,3,FALSE) -> tonne | H70: =VLOOKUP($P70,'Cost Schedule'!$B:$F,4,FALSE) -> 9 | J70: 0 | L70: =VLOOKUP($P70,'Cost Schedule'!$B:$F,5,FALSE) -> Rate accounts for round trip haulage to Council landfill but excludes landfill fees. Input quantity against Waste disposal to Council landfill - fees for relevant waste type. | O70: 0 | P70: 1.53 | R70: Y
D71: =VLOOKUP($P71,'Cost Schedule'!$B:$F,2,FALSE) -> Waste disposal to Council landfill (general waste) - haulage >25 km but <50 km | E71: Y | G71: =VLOOKUP($P71,'Cost Schedule'!$B:$F,3,FALSE) -> tonne | H71: =VLOOKUP($P71,'Cost Schedule'!$B:$F,4,FALSE) -> 12.5 | J71: 0 | L71: =VLOOKUP($P71,'Cost Schedule'!$B:$F,5,FALSE) -> Rate accounts for round trip haulage to Council landfill but excludes landfill fees. Input quantity against Waste disposal to Council landfill - fees for relevant waste type. | O71: 0 | P71: 1.54 | R71: Y
D72: =VLOOKUP($P72,'Cost Schedule'!$B:$F,2,FALSE) -> Waste disposal to Council landfill (industrial demolition / concrete / scrap metal) - haulage >10 km but <15 km | E72: Y | G72: =VLOOKUP($P72,'Cost Schedule'!$B:$F,3,FALSE) -> tonne | H72: =VLOOKUP($P72,'Cost Schedule'!$B:$F,4,FALSE) -> 32 | J72: 0 | L72: =VLOOKUP($P72,'Cost Schedule'!$B:$F,5,FALSE) -> Rate accounts for round trip haulage to Council landfill but excludes landfill fees. Input quantity against Waste disposal to Council landfill - fees for relevant waste type. | O72: 0 | P72: 1.55 | R72: Y
D73: =VLOOKUP($P73,'Cost Schedule'!$B:$F,2,FALSE) -> Waste disposal to Council landfill (industrial demolition / concrete / scrap metal) - haulage >15 km but <25 km | E73: Y | G73: =VLOOKUP($P73,'Cost Schedule'!$B:$F,3,FALSE) -> tonne | H73: =VLOOKUP($P73,'Cost Schedule'!$B:$F,4,FALSE) -> 36 | J73: =IF($E73="Y",IF(I73=0,F73*H73,F73*I73),"") -> 0 | K73: =IF(I73<>"","insert additional information here","") ->  | L73: =VLOOKUP($P73,'Cost Schedule'!$B:$F,5,FALSE) -> Rate accounts for round trip haulage to Council landfill but excludes landfill fees. Input quantity against Waste disposal to Council landfill - fees for relevant waste type. | O73: 0 | P73: 1.56 | R73: Y
D74: =VLOOKUP($P74,'Cost Schedule'!$B:$F,2,FALSE) -> Waste disposal to Council landfill (industrial demolition / concrete / scrap metal) - haulage >25 km but <50 km | E74: Y | G74: =VLOOKUP($P74,'Cost Schedule'!$B:$F,3,FALSE) -> allow | H74: =VLOOKUP($P74,'Cost Schedule'!$B:$F,4,FALSE) -> Use alternate rate cell | J74: =IF($E74="Y",IF(I74=0,F74*0,F74*I74),"") -> 0 | K74: =IF(I74<>"","insert additional information here","") ->  | L74: =VLOOKUP($P74,'Cost Schedule'!$B:$F,5,FALSE) -> Rate accounts for round trip haulage to Council landfill but excludes landfill fees. Input quantity against Waste disposal to Council landfill - fees for relevant waste type. | O74: 0 | P74: 1.57 | R74: Y
D75: =VLOOKUP($P75,'Cost Schedule'!$B:$F,2,FALSE) -> Waste disposal to Council landfill - fees (general waste) | E75: Y | G75: =VLOOKUP($P75,'Cost Schedule'!$B:$F,3,FALSE) -> tonne | H75: =VLOOKUP($P75,'Cost Schedule'!$B:$F,4,FALSE) -> 193 | J75: =IF($E75="Y",IF(I75=0,F75*H75,F75*I75),"") -> 0 | K75: =IF(I75<>"","insert additional information here","") ->  | L75: =VLOOKUP($P75,'Cost Schedule'!$B:$F,5,FALSE) -> Fee for waste disposal of general waste to local Council landfill; transport rates separate. Please note that this is not applicable to operations with approval for building and demolition waste disposal on site. | O75: =IF(I75="",0,1) -> 0 | P75: 1.58 | R75: =E75 -> Y
D76: =VLOOKUP($P76,'Cost Schedule'!$B:$F,2,FALSE) -> Waste disposal to Council landfill - fees (industrial demolition / concrete / scrap metal) | E76: Y | G76: =VLOOKUP($P76,'Cost Schedule'!$B:$F,3,FALSE) -> tonne | H76: =VLOOKUP($P76,'Cost Schedule'!$B:$F,4,FALSE) -> 174 | J76: =IF($E76="Y",IF(I76=0,F76*H76,F76*I76),"") -> 0 | L76: =VLOOKUP($P76,'Cost Schedule'!$B:$F,5,FALSE) -> Fee for waste disposal of industrial demolition / concrete / scrap metal waste to local Council landfill; transport rates separate. Rate does not assume material is recyclable. Please note that this is not applicable to operations with approval for building and demolition waste disposal on site. | O76: 0 | P76: 1.59 | R76: Y
C77: =C15&" Subtotal" -> Termination of Services and Demolition Works Subtotal | J77: =SUM(J15:J76) -> 0 | R77: Y
C78: Rail Infrastructure | D78: =VLOOKUP($P78,'Cost Schedule'!$B:$F,2,FALSE) -> Remove rail loop and spur, ballast etc. and disposal on-site/locally | E78: Y | G78: =VLOOKUP($P78,'Cost Schedule'!$B:$F,3,FALSE) -> m | H78: =VLOOKUP($P78,'Cost Schedule'!$B:$F,4,FALSE) -> 60 | J78: =IF($E78="Y",IF(I78=0,F78*H78,F78*I78),"") -> 0 | K78: =IF(I78<>"","insert additional information here","") ->  | L78: =VLOOKUP($P78,'Cost Schedule'!$B:$F,5,FALSE) -> Remove all materials to allow area to be reshaped and rehabilitated - does not include transport to regional disposal facility or equivalent. | O78: 0 | P78: 2.01 | R78: Y
D79: =VLOOKUP($P79,'Cost Schedule'!$B:$F,2,FALSE) -> Remove train loading facilities and disposal on-site/locally | E79: Y | G79: =VLOOKUP($P79,'Cost Schedule'!$B:$F,3,FALSE) -> m2 | H79: =VLOOKUP($P79,'Cost Schedule'!$B:$F,4,FALSE) -> 185 | J79: =IF($E79="Y",IF(I79=0,F79*H79,F79*I79),"") -> 0 | K79: =IF(I79<>"","insert additional information here","") ->  | L79: =VLOOKUP($P79,'Cost Schedule'!$B:$F,5,FALSE) -> Remove rail load point infrastructure including gantries and control structures. Does not include transport to regional disposal facility or equivalent. | O79: 0 | P79: 2.02 | R79: Y
D80: =VLOOKUP($P80,'Cost Schedule'!$B:$F,2,FALSE) -> Reshape rail spur and load out areas. Does not include growth media and revegetation | E80: Y | G80: =VLOOKUP($P80,'Cost Schedule'!$B:$F,3,FALSE) -> ha | H80: =VLOOKUP($P80,'Cost Schedule'!$B:$F,4,FALSE) -> 2860 | J80: =IF($E80="Y",IF(I80=0,F80*H80,F80*I80),"") -> 0 | K80: =IF(I80<>"","insert additional information here","") ->  | L80: =VLOOKUP($P80,'Cost Schedule'!$B:$F,5,FALSE) -> D10 Dozer and 16 H Grader (50% utilisation). | O80: 0 | P80: 2.03 | R80: Y
C81: =C78&" Subtotal" -> Rail Infrastructure Subtotal | J81: =SUM(J78:J80) -> 0 | R81: Y
C82: Contaminated Materials | D82: =VLOOKUP($P82,'Cost Schedule'!$B:$F,2,FALSE) -> Undertake a preliminary site investigation (Phase 1). This accounts for current and historical locations where areas of disturbance are clustered. If there are multiple cluster areas on site, multiple studies may be required. | E82: Y | G82: =VLOOKUP($P82,'Cost Schedule'!$B:$F,3,FALSE) -> Cluster | H82: =VLOOKUP($P82,'Cost Schedule'!$B:$F,4,FALSE) -> 15000 | J82: =IF($E82="Y",IF(I82=0,F82*H82,F82*I82),"") -> 0 | K82: =IF(I82<>"","insert additional information here","") ->  | L82: =VLOOKUP($P82,'Cost Schedule'!$B:$F,5,FALSE) -> The preliminary investigation would include at minimum a desktop assessment of the area and site history, incidents, etc. as per the National Environmental Protection (Site Contamination) Measure (NEPM) Phase 1 assessment (EP Act Section 389 (2) (iv)) or similar approved and recognised assessment method. A cluster may include: - Mine infrastructure (i.e., fuel / chemical store, workshop, vehicle wash-down, sewage treatment etc.) - Processing plants (i.e., ore and product storage, mine waste storage and disposal, rail load-out etc.) - Remote pit-top facilities (i.e., vehicle re-fuel, sewage treatment, secondary workshop, chemical storage etc.) | O82: =IF(I82="",0,1) -> 0 | P82: 3.01a | R82: Y
D83: =VLOOKUP($P83,'Cost Schedule'!$B:$F,2,FALSE) -> Undertake an intrusive site investigation on sites with small footprints to investigate e.g. ≤15 ha. This accounts for current and historical locations where areas of disturbance are clustered. If there are multiple cluster areas on site, multiple intrusive investigations should be included. | E83: Y | G83: =VLOOKUP($P83,'Cost Schedule'!$B:$F,3,FALSE) -> Cluster | H83: =VLOOKUP($P83,'Cost Schedule'!$B:$F,4,FALSE) -> 44000 | J83: 0 | L83: =VLOOKUP($P83,'Cost Schedule'!$B:$F,5,FALSE) -> The intrusive investigation would include at minimum a site walkover and field sampling as per the National Environmental Protection (Site Contamination) Measure (NEPM) Phase 2 intrusive investigation (EP Act Section 389 (2) (iv)) or similar approved and recognised assessment method. Note: An intrusive investigation is not required for all contaminated areas and should be applied considering the rehabilitation program, site history, location, etc. A cluster area where it is highly anticipated that contamination has occurred (i.e., underground tanks / pipes that are known to have leaked, chemical stores with earthen bunds, around ineffective oil/water separators etc.) and further field work is required involving intrusive investigation. Assumes site is easily accessible and a small area e.g. ~10-15 ha requires investigation and testing (test pits, boreholes, etc.) based on Sampling and Analysis Quality Plan. Includes SAQP, fieldwork, sampling and analysis. | O83: 0 | P83: 3.01b | R83: =E83 -> Y
D84: =VLOOKUP($P84,'Cost Schedule'!$B:$F,2,FALSE) -> Undertake an intrusive site investigation on sites with large footprints to investigate e.g. >15 ha. This accounts for current and historical locations where areas of disturbance are clustered. If there are multiple cluster areas on site, multiple intrusive investigations should be included. | E84: Y | G84: =VLOOKUP($P84,'Cost Schedule'!$B:$F,3,FALSE) -> Cluster | H84: =VLOOKUP($P84,'Cost Schedule'!$B:$F,4,FALSE) -> 106000 | J84: 0 | L84: =VLOOKUP($P84,'Cost Schedule'!$B:$F,5,FALSE) -> The intrusive investigation would include at minimum a site walkover and field sampling as per the National Environmental Protection (Site Contamination) Measure (NEPM) Phase 2 intrusive investigation (EP Act Section 389 (2) (iv)) or similar approved and recognised assessment method. Note: An intrusive investigation is not required for all contaminated areas and should be applied considering the rehabilitation program, site history, location, etc. A cluster area where it is highly anticipated that contamination has occurred (i.e., underground tanks / pipes that are known to have leaked, chemical stores with earthen bunds, around ineffective oil/water separators etc.) and further field work is required involving intrusive investigation. Assume site has a history of contamination and/or a large area >15 ha requires investigation and testing (test pits, boreholes, etc.) based on Sampling and Analysis Quality Plan. Includes SAQP, fieldwork, sampling and analysis. | O84: 0 | P84: 3.01c | R84: =E84 -> Y
D85: =VLOOKUP($P85,'Cost Schedule'!$B:$F,2,FALSE) -> Develop a Remediation Action Plan on sites with small footprints based on outcomes of intrusive investigation including strategies to address contamination exceedances | E85: Y | G85: =VLOOKUP($P85,'Cost Schedule'!$B:$F,3,FALSE) -> allow | H85: =VLOOKUP($P85,'Cost Schedule'!$B:$F,4,FALSE) -> 35000 | J85: 0 | L85: =VLOOKUP($P85,'Cost Schedule'!$B:$F,5,FALSE) -> Develop remediation plan for approval including designs and detailed costs. Costs may increase if detailed designs required for construction. | O85: 0 | P85: 3.01d | R85: =E85 -> Y
D86: =VLOOKUP($P86,'Cost Schedule'!$B:$F,2,FALSE) -> Develop a Remediation Action Plan on sites with large footprints based on outcomes of intrusive investigation including strategies to address contamination exceedances | E86: N | G86: =VLOOKUP($P86,'Cost Schedule'!$B:$F,3,FALSE) -> allow | H86: =VLOOKUP($P86,'Cost Schedule'!$B:$F,4,FALSE) -> Use alternate rate cell | L86: =VLOOKUP($P86,'Cost Schedule'!$B:$F,5,FALSE) -> Assumes complex site; detailed design drawings required for cover. | O86: 0 | P86: 3.01e | R86: =E86 -> N
D87: =VLOOKUP($P87,'Cost Schedule'!$B:$F,2,FALSE) -> Removal and disposal of contaminated water from tanks, bunded areas and sumps | E87: Y | G87: =VLOOKUP($P87,'Cost Schedule'!$B:$F,3,FALSE) -> L | H87: =VLOOKUP($P87,'Cost Schedule'!$B:$F,4,FALSE) -> 0.35 | J87: 0 | L87: =VLOOKUP($P87,'Cost Schedule'!$B:$F,5,FALSE) -> Cost for recent sump clean-up from resource activity - requires specialists to treat. | O87: 0 | P87: 3.02 | R87: Y
D88: =VLOOKUP($P88,'Cost Schedule'!$B:$F,2,FALSE) -> Remove material (carbonaceous / metalliferous spillage or otherwise) from footprint of the process facility (leach pads) / stockpile area (ROM product) / roads and dump in a void on-site (Select Haul Distance from list) | E88: Y | G88: m3 | H88: =VLOOKUP($P88,'Cost Schedule'!$B:$F,4,FALSE) -> Select from List | J88: =IF($E88="Y",IF(I88="",IF($H88="Select from List","",IF(I88=0,F88*H88,"")),F88*I88),"") ->  | K88: Select Haul Distance Here | L88: =VLOOKUP($P88,'Cost Schedule'!$B:$F,5,FALSE) -> This item includes scraping and removal of the volume of carbonaceous material using dozer, grader etc. to make safe an area and enable the establishment of rehabilitation. | O88: 0 | P88: =IF(Q88=1,"3.03-",IF(Q88=2,"3.03a",IF(Q88=3,"3.03b",IF(Q88=4,"3.03c",IF(Q88=5,"3.03d","3.03"))))) -> 3.03- | Q88: =VLOOKUP(K88,Select_Haul_Distance_Index,2,FALSE) -> 1 | R88: Y
D89: =VLOOKUP($P89,'Cost Schedule'!$B:$F,2,FALSE) ->  | K89: =IF(I88<>"","insert additional information here","") ->  | R89: =R88 -> Y
D90: =VLOOKUP($P90,'Cost Schedule'!$B:$F,2,FALSE) -> Load, cart and dispose of Hazardous classified contaminated material off site to a licensed landfill. Assumes cartage to a licensed landfill. | E90: Y | G90: =VLOOKUP($P90,'Cost Schedule'!$B:$F,3,FALSE) -> m3 | H90: =VLOOKUP($P90,'Cost Schedule'!$B:$F,4,FALSE) -> 800 | J90: =IF($E90="Y",IF(I90=0,F90*H90,F90*I90),"") -> 0 | K90: =IF(I90<>"","insert additional information here","") ->  | L90: =VLOOKUP($P90,'Cost Schedule'!$B:$F,5,FALSE) -> Includes load, haul and dump fees to a licensed facility. | O90: =IF(I90="",0,1) -> 0 | P90: 3.04a | R90: Y
D91: =VLOOKUP($P91,'Cost Schedule'!$B:$F,2,FALSE) -> Load, cart and disposal of Restricted classified contaminated material off site to a licensed landfill. Add $50/m3 for cartage from regional areas | E91: Y | G91: =VLOOKUP($P91,'Cost Schedule'!$B:$F,3,FALSE) -> m4 | H91: =VLOOKUP($P91,'Cost Schedule'!$B:$F,4,FALSE) -> 660 | J91: =IF($E91="Y",IF(I91=0,F91*H91,F91*I91),"") -> 0 | K91: =IF(I91<>"","insert additional information here","") ->  | L91: =VLOOKUP($P91,'Cost Schedule'!$B:$F,5,FALSE) -> Includes load, haul and dump fees to a licensed facility. | O91: 0 | P91: 3.04b | R91: Y
D92: =VLOOKUP($P92,'Cost Schedule'!$B:$F,2,FALSE) -> Load, cart and disposal of Low Level contaminated material off site to a licensed landfill. Add $50/m3 for cartage to regional landfill | E92: Y | G92: =VLOOKUP($P92,'Cost Schedule'!$B:$F,3,FALSE) -> m3 | H92: =VLOOKUP($P92,'Cost Schedule'!$B:$F,4,FALSE) -> 220 | J92: 0 | K92: =IF(I92<>"","insert additional information here","") ->  | L92: =VLOOKUP($P92,'Cost Schedule'!$B:$F,5,FALSE) -> Includes load, haul and dump fees to a licensed facility. | O92: 0 | P92: 3.05 | R92: Y
D93: =VLOOKUP($P93,'Cost Schedule'!$B:$F,2,FALSE) -> Onsite remediation of hydrocarbon contaminated soils manual land farming (Select Volume from List) | E93: Y | G93: =VLOOKUP($P93,'Cost Schedule'!$B:$F,3,FALSE) -> m3 | H93: =VLOOKUP($P93,'Cost Schedule'!$B:$F,4,FALSE) -> Select from List | J93: =IF($E93="Y",IF(I93="",IF($H93="Select from List","",IF(I93=0,F93*H93,"")),F93*I93),"") ->  | K93: Select Volume Here | L93: =VLOOKUP($P93,'Cost Schedule'!$B:$F,5,FALSE) -> Spreading of contaminated soils on a prepared surface and stimulation of aerobic microbial activity within the soils through aeration and/or the addition of minerals, nutrients and moisture to promote the aerobic degradation of organic chemicals - time frame of up to 24 months. | O93: =IF(I95="",0,1) -> 0 | P93: =IF(Q93=1,"3.06-",IF(Q93=2,"3.06a",IF(Q93=3,"3.06b",IF(Q93=4,"3.06c",IF(Q93=5,"3.06d","3.06"))))) -> 3.06- | Q93: =VLOOKUP(K93,Select_Volume_Index,2,FALSE) -> 1 | R93: Y
H94: =VLOOKUP($P94,'Cost Schedule'!$B:$F,4,FALSE) ->  | K94: =IF(I93<>"","insert additional information here","") ->  | R94: =R93 -> Y
D95: =VLOOKUP($P95,'Cost Schedule'!$B:$F,2,FALSE) -> Mobilisation of cement stabilisation plant and equipment for hydrocarbon (i.e., PAH, long chain hydrocarbons, etc.) contaminated soil treatment | E95: Y | G95: =VLOOKUP($P95,'Cost Schedule'!$B:$F,3,FALSE) -> Item | H95: =VLOOKUP($P95,'Cost Schedule'!$B:$F,4,FALSE) -> 150000 | J95: 0 | K95: =IF(I95<>"","insert additional information here","") ->  | L95: =VLOOKUP($P95,'Cost Schedule'!$B:$F,5,FALSE) -> Required if treatment of hydrocarbon contamination is required to be fast tracked. | O95: 0 | P95: 3.07 | R95: Y
D96: =VLOOKUP($P96,'Cost Schedule'!$B:$F,2,FALSE) -> On-site remediation of hydrocarbon contaminated soils - using a mobile treatment unit | E96: Y | G96: =VLOOKUP($P96,'Cost Schedule'!$B:$F,3,FALSE) -> m3 | H96: =VLOOKUP($P96,'Cost Schedule'!$B:$F,4,FALSE) -> 165 | J96: 0 | L96: =VLOOKUP($P96,'Cost Schedule'!$B:$F,5,FALSE) -> Additional cost as the treatment process is fast tracked. | O96: 0 | P96: 3.08 | R96: Y
D97: =VLOOKUP($P97,'Cost Schedule'!$B:$F,2,FALSE) -> Remove and dispose of asbestos (<750 m2) | E97: Y | G97: =VLOOKUP($P97,'Cost Schedule'!$B:$F,3,FALSE) -> m2 | H97: =VLOOKUP($P97,'Cost Schedule'!$B:$F,4,FALSE) -> 50 | J97: 0 | L97: =VLOOKUP($P97,'Cost Schedule'!$B:$F,5,FALSE) -> Where an assessment/estimation has been made to confirm the volume of asbestos to be removed. | O97: 0 | P97: 3.09 | R97: Y
D98: =VLOOKUP($P98,'Cost Schedule'!$B:$F,2,FALSE) -> Remove and dispose of asbestos (>750 m2) | E98: Y | G98: =VLOOKUP($P98,'Cost Schedule'!$B:$F,3,FALSE) -> m2 | H98: =VLOOKUP($P98,'Cost Schedule'!$B:$F,4,FALSE) -> 40 | J98: 0 | L98: =VLOOKUP($P98,'Cost Schedule'!$B:$F,5,FALSE) -> Where an assessment/estimation has been made to confirm the volume of asbestos to be removed. | O98: 0 | P98: 3.1 | R98: Y
D99: =VLOOKUP($P99,'Cost Schedule'!$B:$F,2,FALSE) -> Waste disposal to Council landfill - fees (asbestos) | E99: Y | G99: =VLOOKUP($P99,'Cost Schedule'!$B:$F,3,FALSE) -> tonne | H99: =VLOOKUP($P99,'Cost Schedule'!$B:$F,4,FALSE) -> 290 | J99: 0 | L99: =VLOOKUP($P99,'Cost Schedule'!$B:$F,5,FALSE) -> Landfill fees to regional landfill. | O99: 0 | P99: 3.11 | R99: Y
D100: =VLOOKUP($P100,'Cost Schedule'!$B:$F,2,FALSE) -> Treatment of known Acid Sulfate Soils | E100: Y | G100: =VLOOKUP($P100,'Cost Schedule'!$B:$F,3,FALSE) -> ha | H100: =VLOOKUP($P100,'Cost Schedule'!$B:$F,4,FALSE) -> 2580 | J100: 0 | L100: =VLOOKUP($P100,'Cost Schedule'!$B:$F,5,FALSE) -> Assumes ASS is treatable via neutralisation and does not require capping and isolation. Assumes 1% by weight lime addition and treatment to 100 mm depth only. | O100: 0 | P100: 3.12 | R100: =E100 -> Y
D101: =VLOOKUP($P101,'Cost Schedule'!$B:$F,2,FALSE) -> Removal and disposal of plastic liner (i.e. dam, leach pad, sump etc.) | E101: Y | G101: =VLOOKUP($P101,'Cost Schedule'!$B:$F,3,FALSE) -> m2 | H101: =VLOOKUP($P101,'Cost Schedule'!$B:$F,4,FALSE) -> 1 | J101: =IF($E101="Y",IF(I101=0,F101*H101,F101*I101),"") -> 0 | K101: =IF(I101<>"","insert additional information here","") ->  | L101: =VLOOKUP($P101,'Cost Schedule'!$B:$F,5,FALSE) -> Provisional sum for cutting using ripping tynes and on-site disposal of the liner. | O101: 0 | P101: 3.13 | R101: Y
D102: =VLOOKUP($P102,'Cost Schedule'!$B:$F,2,FALSE) -> Long haulage brine/salt for disposal (Select Haul Distance from list) | E102: Y | G102: =VLOOKUP($P102,'Cost Schedule'!$B:$F,3,FALSE) -> tonne | H102: =VLOOKUP($P102,'Cost Schedule'!$B:$F,4,FALSE) -> Select from List | J102: =IF($E102="Y",IF(I102=0,IF($H102="Select from List","",IF(I102=0,F102*H102,"")),F102*I102),"") ->  | K102: Select Haul Distance Here | L102: =VLOOKUP($P102,'Cost Schedule'!$B:$F,5,FALSE) -> Costs for haulage to location for authorised disposal. | O102: =IF(I102="",0,1) -> 0 | P102: =IF(Q102=1,"3.14-",IF(Q102=2,"3.14a",IF(Q102=3,"3.14b",IF(Q102=4,"3.14c",IF(Q102=5,"3.14d","3.14"))))) -> 3.14- | Q102: =VLOOKUP(K102,Select_Haul_distance_Here_index,2,FALSE) -> 1 | R102: =E102 -> Y
K103: =IF(I103<>"","insert additional information here","") -> 
D104: =VLOOKUP($P104,'Cost Schedule'!$B:$F,2,FALSE) -> Brine disposal to landfill - fees only | E104: Y | G104: =VLOOKUP($P104,'Cost Schedule'!$B:$F,3,FALSE) -> tonne | H104: =VLOOKUP($P104,'Cost Schedule'!$B:$F,4,FALSE) -> 288 | J104: =IF($E104="Y",IF(I104=0,F104*H104,F104*I104),"") -> 0 | K104: =IF(I104<>"","insert additional information here","") ->  | L104: =VLOOKUP($P104,'Cost Schedule'!$B:$F,5,FALSE) -> Rate for trackable liquid levy of $78.20 per tonne and authorised disposal to landfill. | O104: =IF(I104="",0,1) -> 0 | P104: 3.14d | R104: =E104 -> Y
D105: =VLOOKUP($P105,'Cost Schedule'!$B:$F,2,FALSE) -> Long haulage water (clean or contaminated) (Select Haul Distance from list) | E105: Y | G105: =VLOOKUP($P105,'Cost Schedule'!$B:$F,3,FALSE) -> tonne | H105: =VLOOKUP($P105,'Cost Schedule'!$B:$F,4,FALSE) -> Select from List | J105: =IF($E105="Y",IF(I105=0,IF($H105="Select from List","",IF(I105=0,F105*H105,"")),F105*I105),"") ->  | K105: Select Haul Distance Here | L105: =VLOOKUP($P105,'Cost Schedule'!$B:$F,5,FALSE) -> Assumes transport in a 20,000 L tanker. Add disposal costs to additional items where warranted. | O105: =IF(I105="",0,1) -> 0 | P105: =IF(Q105=1,"3.15-",IF(Q105=2,"3.15a",IF(Q105=3,"3.15b",IF(Q105=4,"3.15c",IF(Q105=5,"3.15d","3.15"))))) -> 3.15- | Q105: =VLOOKUP(K105,Select_Haul_Dist_315_Index,2,FALSE) -> 1 | R105: Y
K106: =IF(I106<>"","insert additional information here","") -> 
C107: =C82&" Subtotal" -> Contaminated Materials Subtotal | J107: =SUM(J82:J105) -> 0 | R107: Y
C108: Vents, Shafts and Boreholes | D108: =VLOOKUP($P108,'Cost Schedule'!$B:$F,2,FALSE) -> Option 1 - Coal bore hole Exploration boreholes – rehabilitate coal boreholes and drill pads as required | E108: Y | G108: =VLOOKUP($P108,'Cost Schedule'!$B:$F,3,FALSE) -> depth (m) | H108: =VLOOKUP($P108,'Cost Schedule'!$B:$F,4,FALSE) -> 44.55 | J108: =IF($E108="Y",IF(I108=0,F108*H108,F108*I108),"") -> 0 | K108: =IF(I108<>"","insert additional information here","") ->  | L108: =VLOOKUP($P108,'Cost Schedule'!$B:$F,5,FALSE) -> Cost to grout and cap an open exploration borehole. Assume a 20 m x 20 m drill pad requires rehabilitation - push cover of nearby growth media, rip and seed. | O108: =IF(I108="",0,1) -> 0 | P108: 4.06a | R108: Y
D109: =VLOOKUP($P109,'Cost Schedule'!$B:$F,2,FALSE) -> Option 3 - Mineral RAB and aircore drill holes Exploration boreholes – backfill open Rotary Airblast (RAB) or aircore drill holes with cuttings | E109: Y | G109: =VLOOKUP($P109,'Cost Schedule'!$B:$F,3,FALSE) -> allow | H109: =VLOOKUP($P109,'Cost Schedule'!$B:$F,4,FALSE) -> 42.5 | J109: =IF($E109="Y",IF(I109=0,F109*H109,F109*I109),"") -> 0 | K109: =IF(I109<>"","insert additional information here","") ->  | L109: =VLOOKUP($P109,'Cost Schedule'!$B:$F,5,FALSE) -> May include cutting of casing, installation of a casing cap, and/or manually backfilling the hole with drill cuttings. Does not include reshaping / ripping the drill pad, amelioration / seeding etc. | O109: =IF(I109="",0,1) -> 0 | P109: 4.06b | R109: =E109 -> Y
D110: =VLOOKUP($P110,'Cost Schedule'!$B:$F,2,FALSE) -> Option 2 - Mineral drill hole requiring grouting Exploration boreholes – grout and cap open bore holes | E110: Y | G110: =VLOOKUP($P110,'Cost Schedule'!$B:$F,3,FALSE) -> allow | H110: =VLOOKUP($P110,'Cost Schedule'!$B:$F,4,FALSE) -> 5700 | J110: 0 | L110: =VLOOKUP($P110,'Cost Schedule'!$B:$F,5,FALSE) -> Includes grouting and capping 100 - 200 m exploration boreholes to meet the requirements of Departmental Guidelines. | O110: 0 | P110: 4.07 | R110: Y
D111: =VLOOKUP($P111,'Cost Schedule'!$B:$F,2,FALSE) -> Boreholes – cap and seal open bore holes with steel casing (i.e., goaf drainage etc.) | E111: Y | G111: =VLOOKUP($P111,'Cost Schedule'!$B:$F,3,FALSE) -> allow | H111: =VLOOKUP($P111,'Cost Schedule'!$B:$F,4,FALSE) -> 6960 | J111: 0 | L111: =VLOOKUP($P111,'Cost Schedule'!$B:$F,5,FALSE) -> Holes deeper than 100 m - includes cutting steel collar 6 m below surface, grouting and capping. | O111: 0 | P111: 4.08 | R111: Y
D112: =VLOOKUP($P112,'Cost Schedule'!$B:$F,2,FALSE) -> Boreholes – cap and seal open bore holes - surface-to-in-seam gas drainage | E112: Y | G112: =VLOOKUP($P112,'Cost Schedule'!$B:$F,3,FALSE) -> allow | H112: =VLOOKUP($P112,'Cost Schedule'!$B:$F,4,FALSE) -> 17890 | J112: 0 | L112: =VLOOKUP($P112,'Cost Schedule'!$B:$F,5,FALSE) -> Surface-to-in-seam gas drainage boreholes. | O112: 0 | P112: 4.09 | R112: Y
D113: =VLOOKUP($P113,'Cost Schedule'!$B:$F,2,FALSE) -> Boreholes – cap and seal open bore holes - vertical gas drainage | E113: Y | G113: =VLOOKUP($P113,'Cost Schedule'!$B:$F,3,FALSE) -> allow | H113: =VLOOKUP($P113,'Cost Schedule'!$B:$F,4,FALSE) -> 16000 | J113: 0 | L113: =VLOOKUP($P113,'Cost Schedule'!$B:$F,5,FALSE) -> Vertical gas drainage boreholes. | O113: 0 | P113: 4.1 | R113: Y
D114: =VLOOKUP($P114,'Cost Schedule'!$B:$F,2,FALSE) -> Boreholes – grout (with concrete) cap and seal bore holes (i.e. where sealing aquifers) | E114: Y | G114: =VLOOKUP($P114,'Cost Schedule'!$B:$F,3,FALSE) -> allow | H114: =VLOOKUP($P114,'Cost Schedule'!$B:$F,4,FALSE) -> 35000 | J114: 0 | L114: =VLOOKUP($P114,'Cost Schedule'!$B:$F,5,FALSE) -> Includes multi skin sleaves to prevent aquifer mixing. | O114: 0 | P114: 4.11 | R114: Y
D115: =VLOOKUP($P115,'Cost Schedule'!$B:$F,2,FALSE) -> Boreholes – cap and seal service boreholes for UG coal operations | E115: Y | G115: =VLOOKUP($P115,'Cost Schedule'!$B:$F,3,FALSE) -> allow | H115: =VLOOKUP($P115,'Cost Schedule'!$B:$F,4,FALSE) -> 45000 | J115: =IF($E115="Y",IF(I115=0,F115*H115,F115*I115),"") -> 0 | K115: =IF(I115<>"","insert additional information here","") ->  | L115: =VLOOKUP($P115,'Cost Schedule'!$B:$F,5,FALSE) -> Includes large diameter boreholes used for supplying electricity (66kV), compressed air, water, solsenic etc. | O115: 0 | P115: 4.12 | R115: Y
D116: =VLOOKUP($P116,'Cost Schedule'!$B:$F,2,FALSE) -> Option 4 - Mineral diamond drill hole Rehabilitation of diamond drill holes and pad including sealing drill holes for mineral exploration | E116: Y | G116: =VLOOKUP($P116,'Cost Schedule'!$B:$F,3,FALSE) -> Item | H116: =VLOOKUP($P116,'Cost Schedule'!$B:$F,4,FALSE) -> 2070 | J116: =IF($E116="Y",IF(I116=0,F116*H116,F116*I116),"") -> 0 | K116: =IF(I116<>"","insert additional information here","") ->  | L116: =VLOOKUP($P116,'Cost Schedule'!$B:$F,5,FALSE) -> Bog out cuttings, remove fencing, remove rubbish, push sumps in, rehabilitate pads and tracks, cut and plug collars. Includes labour and equipment, disposal of rubbish locally on site | O116: 0 | P116: 4.13 | R116: Y
D117: =VLOOKUP($P117,'Cost Schedule'!$B:$F,2,FALSE) -> Option 5 - Mineral reverse circulation drill holes Rehabilitation of reverse circulation drill holes and pad including sealing drill holes for mineral exploration | E117: Y | G117: =VLOOKUP($P117,'Cost Schedule'!$B:$F,3,FALSE) -> Item | H117: =VLOOKUP($P117,'Cost Schedule'!$B:$F,4,FALSE) -> 1340 | J117: =IF($E117="Y",IF(I117=0,F117*H117,F117*I117),"") -> 0 | K117: =IF(I117<>"","insert additional information here","") ->  | L117: =VLOOKUP($P117,'Cost Schedule'!$B:$F,5,FALSE) -> Sealing required, but not complete filling with concrete/grout | O117: 0 | P117: 4.14 | R117: Y
D118: =VLOOKUP($P118,'Cost Schedule'!$B:$F,2,FALSE) -> Option 6 - Rehabilitation of drill hole collars Rehabilitation of drill hole collars (mineral exploration) | E118: Y | G118: =VLOOKUP($P118,'Cost Schedule'!$B:$F,3,FALSE) -> each | H118: =VLOOKUP($P118,'Cost Schedule'!$B:$F,4,FALSE) -> 415 | J118: 0 | L118: =VLOOKUP($P118,'Cost Schedule'!$B:$F,5,FALSE) -> Cut collar, remove, cap, backfill capped collar and cover with nearby organic or growth material | O118: 0 | P118: 4.15 | R118: Y
C119: =C108&" Subtotal" -> Vents, Shafts and Boreholes Subtotal | J119: =SUM(J108:J118) -> 0 | R119: Y
C120: Roads and Tracks | D120: =VLOOKUP($P120,'Cost Schedule'!$B:$F,2,FALSE) -> Unsealed roads / vehicle park-up areas – minor works including deep rip and trim | E120: Y | G120: =VLOOKUP($P120,'Cost Schedule'!$B:$F,3,FALSE) -> ha | H120: =VLOOKUP($P120,'Cost Schedule'!$B:$F,4,FALSE) -> 1040 | J120: =IF($E120="Y",IF(I120=0,F120*H120,F120*I120),"") -> 0 | K120: =IF(I120<>"","insert additional information here","") ->  | L120: =VLOOKUP($P120,'Cost Schedule'!$B:$F,5,FALSE) -> Assumes ~6 m road width - 16H Grader. | O120: 0 | P120: 5.01 | R120: Y
D121: =VLOOKUP($P121,'Cost Schedule'!$B:$F,2,FALSE) -> Unsealed roads / access tracks / vehicle park-up areas with windrows and/or small earthen bunds – minor earthworks and deep rip and trim | E121: Y | G121: =VLOOKUP($P121,'Cost Schedule'!$B:$F,3,FALSE) -> ha | H121: =VLOOKUP($P121,'Cost Schedule'!$B:$F,4,FALSE) -> 1500 | J121: 0 | L121: =VLOOKUP($P121,'Cost Schedule'!$B:$F,5,FALSE) -> D10 Dozer @ $400 per hour and 16 H grader @ $230 per hour (50% utilisation) - no seed | O121: 0 | P121: 5.02 | R121: Y
D122: =VLOOKUP($P122,'Cost Schedule'!$B:$F,2,FALSE) -> Unsealed roads / vehicle park-up areas – Minor earthworks, final trim and deep rip and seed (pasture grass) | E122: Y | G122: =VLOOKUP($P122,'Cost Schedule'!$B:$F,3,FALSE) -> ha | H122: =VLOOKUP($P122,'Cost Schedule'!$B:$F,4,FALSE) -> 3700 | J122: 0 | L122: =VLOOKUP($P122,'Cost Schedule'!$B:$F,5,FALSE) -> D10 Dozer @ $400 per hour and 16 H grader @ $230 per hour (50% utilisation) - pasture grass seed | O122: 0 | P122: 5.03 | R122: Y
D123: =VLOOKUP($P123,'Cost Schedule'!$B:$F,2,FALSE) -> Unsealed roads / vehicle park-up areas – Minor earthworks, final trim and deep rip, ameliorate and seed (native tree/shrub/grass) | E123: Y | F123: 0.16 | G123: =VLOOKUP($P123,'Cost Schedule'!$B:$F,3,FALSE) -> ha | H123: =VLOOKUP($P123,'Cost Schedule'!$B:$F,4,FALSE) -> 4485 | J123: 717.6 | L123: =VLOOKUP($P123,'Cost Schedule'!$B:$F,5,FALSE) -> D10 Dozer @ $400 per hour and 16 H grader @ $230 per hour (50% utilisation) - native tree/shrub seed | O123: 0 | P123: 5.04 | R123: Y
D124: =VLOOKUP($P124,'Cost Schedule'!$B:$F,2,FALSE) -> Unsealed roads / haul roads / vehicle park-up areas with windrows and/or small earthen bunds – Minor earthworks, final trim and deep rip, ameliorate and seed (pasture grass) | E124: Y | G124: =VLOOKUP($P124,'Cost Schedule'!$B:$F,3,FALSE) -> ha | H124: =VLOOKUP($P124,'Cost Schedule'!$B:$F,4,FALSE) -> 4870 | J124: 0 | L124: =VLOOKUP($P124,'Cost Schedule'!$B:$F,5,FALSE) -> D10 Dozer @ $400 per hour and 16 H grader @ $230 per hour (50% utilisation) - pasture grass seed | O124: 0 | P124: 5.05 | R124: Y
D125: =VLOOKUP($P125,'Cost Schedule'!$B:$F,2,FALSE) -> Unsealed roads / haul roads / vehicle park-up areas with windrows and/or small earthen bunds – Minor earthworks, final trim and deep rip, ameliorate and seed (native tree/shrub/grass) | E125: Y | G125: =VLOOKUP($P125,'Cost Schedule'!$B:$F,3,FALSE) -> ha | H125: =VLOOKUP($P125,'Cost Schedule'!$B:$F,4,FALSE) -> 7025 | J125: 0 | L125: =VLOOKUP($P125,'Cost Schedule'!$B:$F,5,FALSE) -> D10 Dozer @ $400 per hour and 16 H grader @ $230 per hour (50% utilisation) - native tree/shrub seed | O125: 0 | P125: 5.06 | R125: Y
D126: =VLOOKUP($P126,'Cost Schedule'!$B:$F,2,FALSE) -> Remove stabilised material (blue metal, aggregate etc.) from roadways and disposal on-site/locally (Select Haul Distance from list) | E126: Y | G126: =VLOOKUP($P126,'Cost Schedule'!$B:$F,3,FALSE) -> m3 | H126: =VLOOKUP($P126,'Cost Schedule'!$B:$F,4,FALSE) -> Select from List | J126: =IF($E126="Y",IF(I126="",IF($H126="Select from List","",IF(I126=0,F126*H126,"")),F126*I126),"") ->  | K126: Select Haul Distance Here | L126: =VLOOKUP($P126,'Cost Schedule'!$B:$F,5,FALSE) -> This item includes the scraping and removal of the volume of stabilised material from the road, laydown or other surface using an excavator, dozer and grader to enable the establishment of rehabilitation. | O126: 0 | P126: =IF(Q126=1,"5.07-",IF(Q126=2,"5.07a",IF(Q126=3,"5.07b",IF(Q126=4,"5.07c",IF(Q126=5,"5.07d","5.07"))))) -> 5.07- | Q126: =VLOOKUP(K126,Select_Haul_Distance_Index,2,FALSE) -> 1 | R126: Y
G127: =VLOOKUP($P127,'Cost Schedule'!$B:$F,3,FALSE) ->  | K127: =IF(I126<>"","insert additional information here","") ->  | R127: =R126 -> Y
C128: =C120&" Subtotal" -> Roads and Tracks Subtotal | J128: =SUM(J120:J127) -> 717.6 | R128: Y
C129: Earthworks / Structural Works (Landform Establishment) | D129: =VLOOKUP($P129,'Cost Schedule'!$B:$F,2,FALSE) -> Major bulk pushing to achieve grades nominated in the approval/permit – Select Push Length | E129: Y | G129: m3 | H129: =VLOOKUP($P129,'Cost Schedule'!$B:$F,4,FALSE) -> Select from List | J129: =IF($E129="Y",IF(I129="",IF($H129="Select from List","",IF(I129=0,F129*H129,"")),F129*I129),"") ->  | K129: Select Push Length Here | L129: =VLOOKUP($P129,'Cost Schedule'!$B:$F,5,FALSE) -> Major bulk pushing to achieve grades nominated in the approval/permit | O129: 0 | P129: =IF(Q129=1,"7.01-",IF(Q129=2,"7.01a",IF(Q129=3,"7.01b",IF(Q129=4,"7.01c",IF(Q129=5,"7.01d","7.01-"))))) -> 7.01- | Q129: =VLOOKUP(K129,Select_Push_Length_Index,2,FALSE) -> 1 | R129: =E129 -> Y
K130: =IF(I129<>"","insert additional information here","") ->  | L130: =VLOOKUP($P130,'Cost Schedule'!$B:$F,5,FALSE) ->  | R130: =R129 -> Y
D131: =VLOOKUP($P131,'Cost Schedule'!$B:$F,2,FALSE) -> Minor reshaping and pushing | E131: Y | F131: 0.68 | G131: =VLOOKUP($P131,'Cost Schedule'!$B:$F,3,FALSE) -> ha | H131: =VLOOKUP($P131,'Cost Schedule'!$B:$F,4,FALSE) -> 3900 | J131: =IF($E131="Y",IF(I131=0,F131*H131,F131*I131),"") -> 2652 | K131: =IF(I131<>"","insert additional information here","") ->  | L131: =VLOOKUP($P131,'Cost Schedule'!$B:$F,5,FALSE) -> D10 Dozer @ $400 per hour and 16 H grader @ $230 per hour (50% utilisation). | O131: =IF(I131="",0,1) -> 0 | P131: 7.02 | R131: Y
D132: =VLOOKUP($P132,'Cost Schedule'!$B:$F,2,FALSE) -> Structural works, banks, waterways - contour banks, drainage channels and other soil conservation measures | E132: Y | G132: =VLOOKUP($P132,'Cost Schedule'!$B:$F,3,FALSE) -> ha | H132: =VLOOKUP($P132,'Cost Schedule'!$B:$F,4,FALSE) -> 1600 | J132: =IF($E132="Y",IF(I132=0,F132*H132,F132*I132),"") -> 0 | K132: =IF(I132<>"","insert additional information here","") ->  | L132: =VLOOKUP($P132,'Cost Schedule'!$B:$F,5,FALSE) -> Combination of dozer and excavator work plus grader for ~4 hours each per ha. | O132: =IF(I132="",0,1) -> 0 | P132: 7.03 | R132: Y
D133: =VLOOKUP($P133,'Cost Schedule'!$B:$F,2,FALSE) -> Fill dams, voids etc. - Source local material, cart and spread to cap or backfill, cap thickness determined by approval / permit (haul distance <1 km) | E133: Y | G133: m3 | H133: =VLOOKUP($P133,'Cost Schedule'!$B:$F,4,FALSE) -> 3.897525 | J133: =IF($E133="Y",IF(I133="",IF($H133="Select from List","",IF(I133=0,F133*H133,"")),F133*I133),"") -> 0 | K133: < =1km | L133: =VLOOKUP($P133,'Cost Schedule'!$B:$F,5,FALSE) -> Undertaken using a 623 scraper and D10 Dozer. | O133: 0 | P133: =IF(Q133=1,"9.02-",IF(Q133=2,"9.02a",IF(Q133=3,"9.02b",IF(Q133=4,"9.02c",IF(Q133=5,"9.02d","7.01-"))))) -> 9.02a | Q133: =VLOOKUP(K133,Select_Haul_Distance_Index,2,FALSE) -> 2 | R133: =E133 -> Y
K134: 0 | R134: =R133 -> Y
D135: =VLOOKUP($P135,'Cost Schedule'!$B:$F,2,FALSE) -> Shotcrete application on cuttings and steep slopes | E135: Y | G135: =VLOOKUP($P135,'Cost Schedule'!$B:$F,3,FALSE) -> m2 | H135: =VLOOKUP($P135,'Cost Schedule'!$B:$F,4,FALSE) -> 185 | J135: =IF($E135="Y",IF(I135=0,F135*H135,F135*I135),"") -> 0 | K135: =IF(I135<>"","insert additional information here","") ->  | L135: =VLOOKUP($P135,'Cost Schedule'!$B:$F,5,FALSE) -> This rate is used to rehabilitate steep slopes of weathered rock, roadway cuttings, etc that cannot be cut back and stabilised. | O135: =IF(I135="",0,1) -> 0 | P135: 9.03 | R135: =E135 -> Y
D136: =VLOOKUP($P136,'Cost Schedule'!$B:$F,2,FALSE) -> Trim, rock rake & deep rip (includes levelling / landscaping and rip in 1 direction) | E136: Y | G136: =VLOOKUP($P136,'Cost Schedule'!$B:$F,3,FALSE) -> ha | H136: =VLOOKUP($P136,'Cost Schedule'!$B:$F,4,FALSE) -> 1130 | J136: =IF($E136="Y",IF(I136=0,F136*H136,F136*I136),"") -> 0 | K136: =IF(I136<>"","insert additional information here","") ->  | L136: =VLOOKUP($P136,'Cost Schedule'!$B:$F,5,FALSE) -> Undertaken using D10 dozer and 16M grader. | O136: =IF(I136="",0,1) -> 0 | P136: 9.04 | R136: =E136 -> Y
D137: =VLOOKUP($P137,'Cost Schedule'!$B:$F,2,FALSE) -> Deep rip hard stand / lay down areas | E137: Y | G137: =VLOOKUP($P137,'Cost Schedule'!$B:$F,3,FALSE) -> ha | H137: =VLOOKUP($P137,'Cost Schedule'!$B:$F,4,FALSE) -> 960 | J137: =IF($E137="Y",IF(I137=0,F137*H137,F137*I137),"") -> 0 | K137: =IF(I137<>"","insert additional information here","") ->  | L137: =VLOOKUP($P137,'Cost Schedule'!$B:$F,5,FALSE) -> D10 deep ripping. | O137: =IF(I137="",0,1) -> 0 | P137: 9.05 | R137: =E137 -> Y
D138: =VLOOKUP($P138,'Cost Schedule'!$B:$F,2,FALSE) -> Construction of spine drains / drop structures and/or stabilising water course entry points - required for large catchments | E138: Y | G138: =VLOOKUP($P138,'Cost Schedule'!$B:$F,3,FALSE) -> m2 | H138: =VLOOKUP($P138,'Cost Schedule'!$B:$F,4,FALSE) -> 27 | J138: =IF($E138="Y",IF(I138=0,F138*H138,F138*I138),"") -> 0 | K138: =IF(I138<>"","insert additional information here","") ->  | L138: =VLOOKUP($P138,'Cost Schedule'!$B:$F,5,FALSE) -> Installation of on-site rock material (rip-rap) where managing water run-off from disturbed land and/or upon entry to water courses - prevents erosion of gully head (assumes competent material is locally available). If required to be sourced off site, assume an additional $20/m2. | O138: =IF(I138="",0,1) -> 0 | P138: 7.04 | R138: Y
C139: =C129&" Subtotal" -> Earthworks / Structural Works (Landform Establishment) Subtotal | J139: =SUM(J129:J138) -> 2652 | R139: Y
C140: Land Preparation and Revegetation (Growth Media Development and Ecosystem Establishment) | D140: =VLOOKUP($P140,'Cost Schedule'!$B:$F,2,FALSE) -> Source, cart and spread growth media (Select Haul Distance from List) | E140: Y | G140: m3 | H140: =VLOOKUP($P140,'Cost Schedule'!$B:$F,4,FALSE) -> Select from List | J140: =IF($E140="Y",IF(I140="",IF($H140="Select from List","",IF(I140=0,F140*H140,"")),F140*I140),"") ->  | K140: Select Haul Distance Here | L140: =VLOOKUP($P140,'Cost Schedule'!$B:$F,5,FALSE) -> If topsoil is not available on-site, then Virgin Excavated Natural Material (VENM) may need to be externally sourced. | O140: 0 | P140: =IF(Q140=1,"9.01-",IF(Q140=2,"9.01a",IF(Q140=3,"9.01b",IF(Q140=4,"9.01c",IF(Q140=5,"9.01d","7.01-"))))) -> 9.01- | Q140: =VLOOKUP(K140,Select_Haul_Distance_Index,2,FALSE) -> 1 | R140: Y
K141: =IF(I140<>"","insert additional information here","") ->  | R141: =R140 -> Y
D142: =VLOOKUP($P142,'Cost Schedule'!$B:$F,2,FALSE) -> Planting mature trees (>15 cm) | E142: Y | G142: =VLOOKUP($P142,'Cost Schedule'!$B:$F,3,FALSE) -> allow | H142: =VLOOKUP($P142,'Cost Schedule'!$B:$F,4,FALSE) -> 15 | J142: =IF($E142="Y",IF(I142=0,F142*H142,F142*I142),"") -> 0 | K142: =IF(I142<>"","insert additional information here","") ->  | L142: =VLOOKUP($P142,'Cost Schedule'!$B:$F,5,FALSE) -> 4 m centres. | O142: =IF(I142="",0,1) -> 0 | P142: 9.06 | R142: Y
D143: =VLOOKUP($P143,'Cost Schedule'!$B:$F,2,FALSE) -> Planting tube stock (<15 cm) | E143: Y | G143: =VLOOKUP($P143,'Cost Schedule'!$B:$F,3,FALSE) -> allow | H143: =VLOOKUP($P143,'Cost Schedule'!$B:$F,4,FALSE) -> 6.6 | J143: 0 | L143: =VLOOKUP($P143,'Cost Schedule'!$B:$F,5,FALSE) -> 4 m centres. | O143: 0 | P143: 9.07 | R143: Y
D144: =VLOOKUP($P144,'Cost Schedule'!$B:$F,2,FALSE) -> Direct seeding / fertiliser (pasture grass species) | E144: Y | G144: =VLOOKUP($P144,'Cost Schedule'!$B:$F,3,FALSE) -> ha | H144: =VLOOKUP($P144,'Cost Schedule'!$B:$F,4,FALSE) -> 1875 | J144: 0 | L144: =VLOOKUP($P144,'Cost Schedule'!$B:$F,5,FALSE) -> Includes treating, weighing, mixing with fertiliser + spreading by tractor or helicopter (aerial seeding). | O144: 0 | P144: 9.08 | R144: Y
D145: =VLOOKUP($P145,'Cost Schedule'!$B:$F,2,FALSE) -> Direct seeding / fertiliser (tree or native grass species) | E145: Y | G145: =VLOOKUP($P145,'Cost Schedule'!$B:$F,3,FALSE) -> ha | H145: =VLOOKUP($P145,'Cost Schedule'!$B:$F,4,FALSE) -> 4135 | J145: 0 | L145: =VLOOKUP($P145,'Cost Schedule'!$B:$F,5,FALSE) -> Includes treating, weighing, mixing with fertiliser + spreading by tractor or helicopter (aerial seeding). | O145: 0 | P145: 9.09 | R145: Y
D146: =VLOOKUP($P146,'Cost Schedule'!$B:$F,2,FALSE) -> Hydro-seeding with straw mulching and bitumen tack with native seed | E146: Y | G146: =VLOOKUP($P146,'Cost Schedule'!$B:$F,3,FALSE) -> m2 | H146: =VLOOKUP($P146,'Cost Schedule'!$B:$F,4,FALSE) -> 1.9 | J146: 0 | L146: =VLOOKUP($P146,'Cost Schedule'!$B:$F,5,FALSE) -> Process to be used on flat well prepared surfaces under irrigation e.g. sewage treatment irrigation areas. Ranges from $0.15 - $0.50 depending on size and input variables. Native seed +$1.00 | O146: 0 | P146: 9.10a | R146: Y
D147: =VLOOKUP($P147,'Cost Schedule'!$B:$F,2,FALSE) -> Hydro-seeding with straw mulching and bitumen tack with pasture seed | E147: Y | G147: =VLOOKUP($P147,'Cost Schedule'!$B:$F,3,FALSE) -> m2 | H147: =VLOOKUP($P147,'Cost Schedule'!$B:$F,4,FALSE) -> 0.43 | J147: =IF($E147="Y",IF(I147=0,F147*H147,F147*I147),"") -> 0 | K147: =IF(I147<>"","insert additional information here","") ->  | L147: =VLOOKUP($P147,'Cost Schedule'!$B:$F,5,FALSE) -> Process to be used on flat well prepared surfaces under irrigation e.g. sewage treatment irrigation areas. Ranges from $0.15 - $0.50 depending on size and input variables. Pasture seed +$0.10 | O147: 0 | P147: 9.10b | R147: Y
D148: =VLOOKUP($P148,'Cost Schedule'!$B:$F,2,FALSE) -> Hydromulch - base grade or standard for flat areas that can be irrigated by water cart | E148: Y | G148: =VLOOKUP($P148,'Cost Schedule'!$B:$F,3,FALSE) -> m2 | H148: =VLOOKUP($P148,'Cost Schedule'!$B:$F,4,FALSE) -> 0.8 | J148: =IF($E148="Y",IF(I148=0,F148*H148,F148*I148),"") -> 0 | K148: =IF(I148<>"","insert additional information here","") ->  | L148: =VLOOKUP($P148,'Cost Schedule'!$B:$F,5,FALSE) -> Assumes use on flat areas with a gradient of less than 4:1, and where irrigation from water cart may be possible. Industry standard application rate of 2500kg/ha. Product will last short term (less than 3 months) and vegetation is required to grow ASAP for stability. This cost includes cover crop only, additional seeding required. | O148: 0 | P148: 9.10c | R148: Y
D149: =VLOOKUP($P149,'Cost Schedule'!$B:$F,2,FALSE) -> Hydromulch - bonded fibre matrix grade for steep areas to stabilise up to 12 months | E149: Y | G149: =VLOOKUP($P149,'Cost Schedule'!$B:$F,3,FALSE) -> m2 | H149: =VLOOKUP($P149,'Cost Schedule'!$B:$F,4,FALSE) -> 1.8 | J149: =IF($E149="Y",IF(I149=0,F149*H149,F149*I149),"") -> 0 | K149: =IF(I149<>"","insert additional information here","") ->  | L149: =VLOOKUP($P149,'Cost Schedule'!$B:$F,5,FALSE) -> Assumes use on steep areas where stabilisation is required for up to 12 months. Application rate of ~3500kg/ha. This cost includes cover crop only, additional seeding required. | O149: 0 | P149: 9.10d | R149: Y
D150: =VLOOKUP($P150,'Cost Schedule'!$B:$F,2,FALSE) -> Hydromulch - high performance flexible growth medium grade | E150: Y | G150: =VLOOKUP($P150,'Cost Schedule'!$B:$F,3,FALSE) -> m2 | H150: =VLOOKUP($P150,'Cost Schedule'!$B:$F,4,FALSE) -> 2.5 | J150: =IF($E150="Y",IF(I150=0,F150*H150,F150*I150),"") -> 0 | K150: =IF(I150<>"","insert additional information here","") ->  | L150: =VLOOKUP($P150,'Cost Schedule'!$B:$F,5,FALSE) -> Assumes use on extreme slopes where stabilisation is required for up to 18 months. Application rate of ~4,000kg/ha minimum. This cost includes cover crop only, additional seeding required. | O150: 0 | P150: 9.10e | R150: Y
D151: =VLOOKUP($P151,'Cost Schedule'!$B:$F,2,FALSE) -> Single application of fertiliser (pasture) | E151: Y | G151: =VLOOKUP($P151,'Cost Schedule'!$B:$F,3,FALSE) -> ha | H151: =VLOOKUP($P151,'Cost Schedule'!$B:$F,4,FALSE) -> 420 | J151: 0 | L151: =VLOOKUP($P151,'Cost Schedule'!$B:$F,5,FALSE) -> Assumes 250 kg / ha. These rates have fluctuated over the last few years however in light of current conditions (lower fuel prices, reduced demand etc) this is a suitable standard rate. | O151: 0 | P151: 9.11 | R151: Y
D152: =VLOOKUP($P152,'Cost Schedule'!$B:$F,2,FALSE) -> Single application of fertiliser (trees) | E152: Y | G152: =VLOOKUP($P152,'Cost Schedule'!$B:$F,3,FALSE) -> ha | H152: =VLOOKUP($P152,'Cost Schedule'!$B:$F,4,FALSE) -> 140 | J152: 0 | L152: =VLOOKUP($P152,'Cost Schedule'!$B:$F,5,FALSE) -> These rates have fluctuated over the last few years however in light of current conditions (lower fuel prices, reduced demand etc) this is a suitable standard rate. | O152: 0 | P152: 9.12 | R152: Y
D153: =VLOOKUP($P153,'Cost Schedule'!$B:$F,2,FALSE) -> Spoil amelioration (adding lime / gypsum etc.) | E153: Y | G153: =VLOOKUP($P153,'Cost Schedule'!$B:$F,3,FALSE) -> ha | H153: =VLOOKUP($P153,'Cost Schedule'!$B:$F,4,FALSE) -> 1000 | J153: 0 | L153: =VLOOKUP($P153,'Cost Schedule'!$B:$F,5,FALSE) -> Assumes 2.5 t / ha as an average application rate. | O153: 0 | P153: 9.13 | R153: Y
D154: =VLOOKUP($P154,'Cost Schedule'!$B:$F,2,FALSE) -> growth media amelioration with biosolids | E154: Y | G154: =VLOOKUP($P154,'Cost Schedule'!$B:$F,3,FALSE) -> ha | H154: =VLOOKUP($P154,'Cost Schedule'!$B:$F,4,FALSE) -> 1015 | J154: 0 | L154: =VLOOKUP($P154,'Cost Schedule'!$B:$F,5,FALSE) -> Recent experience with agronomy projects. | O154: 0 | P154: 9.14 | R154: Y
D155: =VLOOKUP($P155,'Cost Schedule'!$B:$F,2,FALSE) -> Construct no-climb stock fence around rehabilitated areas | E155: Y | G155: =VLOOKUP($P155,'Cost Schedule'!$B:$F,3,FALSE) -> m | H155: =VLOOKUP($P155,'Cost Schedule'!$B:$F,4,FALSE) -> 22 | J155: 0 | L155: =VLOOKUP($P155,'Cost Schedule'!$B:$F,5,FALSE) -> Standard rate for no-climb stock fencing. | O155: 0 | P155: 9.16 | R155: Y
D156: =VLOOKUP($P156,'Cost Schedule'!$B:$F,2,FALSE) -> Construct standard stock fence around rehabilitated areas | E156: Y | G156: =VLOOKUP($P156,'Cost Schedule'!$B:$F,3,FALSE) -> m | H156: =VLOOKUP($P156,'Cost Schedule'!$B:$F,4,FALSE) -> 13 | J156: 0 | L156: =VLOOKUP($P156,'Cost Schedule'!$B:$F,5,FALSE) -> Standard rate for standard stock fencing. | O156: 0 | P156: 9.17 | R156: Y
D157: =VLOOKUP($P157,'Cost Schedule'!$B:$F,2,FALSE) -> Purchase and erect warning signs | E157: Y | G157: =VLOOKUP($P157,'Cost Schedule'!$B:$F,3,FALSE) -> allow | H157: =VLOOKUP($P157,'Cost Schedule'!$B:$F,4,FALSE) -> 250 | J157: 0 | L157: =VLOOKUP($P157,'Cost Schedule'!$B:$F,5,FALSE) -> Compliance with AS 1319-1994 - Safety signs for the occupational environment - installed every 25 m. | O157: 0 | P157: 9.18 | R157: Y
D158: =VLOOKUP($P158,'Cost Schedule'!$B:$F,2,FALSE) -> Supply from external sources virgin excavated natural material (VENM) for growth media. | E158: Y | G158: =VLOOKUP($P158,'Cost Schedule'!$B:$F,3,FALSE) -> m3 | H158: =VLOOKUP($P158,'Cost Schedule'!$B:$F,4,FALSE) -> 80.8 | J158: 0 | L158: =VLOOKUP($P158,'Cost Schedule'!$B:$F,5,FALSE) -> D7 to spread material at $205/hr, Excavator ($220/hr) load Artic Trucks (90c/km) from imported stockpile - allow nominal rate of $70/m3 for imported fill material. | O158: 0 | P158: 9.19 | R158: Y
D159: =VLOOKUP($P159,'Cost Schedule'!$B:$F,2,FALSE) -> Supply from external sources a combination of virgin excavated natural material (VENM) and spoil from large excavation for filing voids and/or capping etc. | E159: Y | G159: =VLOOKUP($P159,'Cost Schedule'!$B:$F,3,FALSE) -> m3 | H159: =VLOOKUP($P159,'Cost Schedule'!$B:$F,4,FALSE) -> 72.5 | J159: =IF($E159="Y",IF(I159=0,F159*H159,F159*I159),"") -> 0 | K159: =IF(I159<>"","insert additional information here","") ->  | L159: =VLOOKUP($P159,'Cost Schedule'!$B:$F,5,FALSE) -> D10 push into void at $270/hr, Excavator ($220/hr) load Artic Trucks (90c/km) from imported stockpile - allow nominal rate of $60/m3 for imported fill material. | O159: 0 | P159: 9.2 | R159: Y
D160: =VLOOKUP($P160,'Cost Schedule'!$B:$F,2,FALSE) -> Clearing and grubbing of trees and vegetation | E160: Y | G160: =VLOOKUP($P160,'Cost Schedule'!$B:$F,3,FALSE) -> ha | H160: =VLOOKUP($P160,'Cost Schedule'!$B:$F,4,FALSE) -> 4730 | J160: =IF($E160="Y",IF(I160=0,F160*H160,F160*I160),"") -> 0 | K160: =IF(I160<>"","insert additional information here","") ->  | L160: =VLOOKUP($P160,'Cost Schedule'!$B:$F,5,FALSE) -> Clearing and grubbing of light vegetation growth e.g. regrowth | O160: 0 | P160: 9.21 | R160: Y
D161: =VLOOKUP($P161,'Cost Schedule'!$B:$F,2,FALSE) -> Topsoil stripping | E161: Y | G161: =VLOOKUP($P161,'Cost Schedule'!$B:$F,3,FALSE) -> m3 | H161: =VLOOKUP($P161,'Cost Schedule'!$B:$F,4,FALSE) -> 4.8625 | J161: =IF($E161="Y",IF(I161=0,F161*H161,F161*I161),"") -> 0 | K161: =IF(I161<>"","insert additional information here","") ->  | L161: =VLOOKUP($P161,'Cost Schedule'!$B:$F,5,FALSE) -> Stripping or topsoil at an approximate depth of 0.2 m into stockpiles; load and haul to final rehabilitation location required or respreading where necessary. | O161: 0 | P161: 9.22 | R161: Y
D162: =VLOOKUP($P162,'Cost Schedule'!$B:$F,2,FALSE) -> Growth media supplementation with manure | E162: Y | G162: =VLOOKUP($P162,'Cost Schedule'!$B:$F,3,FALSE) -> ha | H162: =VLOOKUP($P162,'Cost Schedule'!$B:$F,4,FALSE) -> 747.5 | J162: =IF($E162="Y",IF(I162=0,F162*H162,F162*I162),"") -> 0 | K162: =IF(I162<>"","insert additional information here","") ->  | L162: =VLOOKUP($P162,'Cost Schedule'!$B:$F,5,FALSE) -> Addition of manure to improve soil quality. | O162: 0 | P162: 9.23 | R162: Y
D163: =VLOOKUP($P163,'Cost Schedule'!$B:$F,2,FALSE) -> Utilise biotic soil media - organic topsoil alternative | E163: Y | G163: =VLOOKUP($P163,'Cost Schedule'!$B:$F,3,FALSE) -> m2 | H163: =VLOOKUP($P163,'Cost Schedule'!$B:$F,4,FALSE) -> 2.5 | J163: 0 | L163: =VLOOKUP($P163,'Cost Schedule'!$B:$F,5,FALSE) -> Material that can be applied as an alternative to spreading topsoil prior to hydromulching. | O163: 0 | P163: 9.24a | R163: Y
C164: =C140&" Subtotal" -> Land Preparation and Revegetation (Growth Media Development and Ecosystem Establishment) Subtotal | J164: =SUM(J140:J163) -> 0 | R164: Y
C165: Water Management | D165: =VLOOKUP($P165,'Cost Schedule'!$B:$F,2,FALSE) -> Clean water dams to be retained after decommissioning – make safe and minor earthworks | E165: Y | G165: =VLOOKUP($P165,'Cost Schedule'!$B:$F,3,FALSE) -> allow | H165: =VLOOKUP($P165,'Cost Schedule'!$B:$F,4,FALSE) -> 2500 | J165: =IF($E165="Y",IF(I165=0,F165*H165,F165*I165),"") -> 0 | K165: =IF(I165<>"","insert additional information here","") ->  | L165: =VLOOKUP($P165,'Cost Schedule'!$B:$F,5,FALSE) -> Provisional sum for earthworks and revegetation required to rehabilitate dam batters etc suitable for re-use by an alternate land-user - D6 Dozer (or similar) @ ~$200 per hour and pasture grass. | O165: =IF(I165="",0,1) -> 0 | P165: 10.03a | R165: Y
D166: =VLOOKUP($P166,'Cost Schedule'!$B:$F,2,FALSE) -> Large clean water dams (i.e. ≥ 2 ha) to be retained after mine closure – make safe and minor earthworks | E166: Y | G166: =VLOOKUP($P166,'Cost Schedule'!$B:$F,3,FALSE) -> allow | H166: =VLOOKUP($P166,'Cost Schedule'!$B:$F,4,FALSE) -> 10500 | J166: =IF($E166="Y",IF(I166=0,F166*H166,F166*I166),"") -> 0 | K166: =IF(I166<>"","insert additional information here","") ->  | L166: =VLOOKUP($P166,'Cost Schedule'!$B:$F,5,FALSE) -> Provisional sum for earthworks and revegetation required to rehabilitate dam batters etc suitable for re-use by an alternate land-user - D6 Dozer (or similar) + pasture grass. | O166: =IF(I166="",0,1) -> 0 | P166: 10.03b | R166: Y
D167: =VLOOKUP($P167,'Cost Schedule'!$B:$F,2,FALSE) -> Remove sediments from the floor of the dam to enable it to be converted into clean water structure (Select Haul Distance from list) | E167: Y | G167: =VLOOKUP($P167,'Cost Schedule'!$B:$F,3,FALSE) -> m3 | H167: =VLOOKUP($P167,'Cost Schedule'!$B:$F,4,FALSE) -> Select from List | J167: =IF($E167="Y",IF(I167="",IF($H167="Select from List","",IF(I167=0,F167*H167,"")),F167*I167),"") ->  | K167: Select Haul Distance Here | L167: =VLOOKUP($P167,'Cost Schedule'!$B:$F,5,FALSE) -> This item includes the volume of contaminated sediment requiring removal using an excavator, truck and dozer to clean out the dam. | O167: =IF(I167="",0,1) -> 0 | P167: =IF(Q167=1,"10.04-",IF(Q167=2,"10.04a",IF(Q167=3,"10.04b",IF(Q167=4,"10.04c",IF(Q167=5,"10.04d","10.04-"))))) -> 10.04- | Q167: =VLOOKUP(K167,Select_Haul_Distance_Index,2,FALSE) -> 1 | R167: Y
K168: =IF(I167<>"","insert additional information here","") ->  | R168: =R167 -> Y
D169: =VLOOKUP($P169,'Cost Schedule'!$B:$F,2,FALSE) -> Removal of evaporation fans and/or other water transfer and management infrastructure | E169: Y | G169: =VLOOKUP($P169,'Cost Schedule'!$B:$F,3,FALSE) -> allow | H169: =VLOOKUP($P169,'Cost Schedule'!$B:$F,4,FALSE) -> 25000 | J169: =IF($E169="Y",IF(I169=0,F169*H169,F169*I169),"") -> 0 | K169: =IF(I169<>"","insert additional information here","") ->  | L169: =VLOOKUP($P169,'Cost Schedule'!$B:$F,5,FALSE) -> Provisional sum for removal of water management infrastructure. | O169: =IF(I169="",0,1) -> 0 | P169: 10.05 | R169: Y
C170: =C165&" Subtotal" -> Water Management Subtotal | J170: =SUM(J165:J169) -> 0 | R170: Y
C171: Maintenance of Rehabilitated Areas | D171: =VLOOKUP($P171,'Cost Schedule'!$B:$F,2,FALSE) -> Maintenance of areas that have been shaped and seeded and revegetation has been 'successful' | E171: Y | F171: 3.17 | G171: =VLOOKUP($P171,'Cost Schedule'!$B:$F,3,FALSE) -> ha | H171: =VLOOKUP($P171,'Cost Schedule'!$B:$F,4,FALSE) -> 925 | J171: =IF($E171="Y",IF(I171=0,F171*H171,F171*I171),"") -> 2932.25 | K171: =IF(I171<>"","insert additional information here","") ->  | L171: =VLOOKUP($P171,'Cost Schedule'!$B:$F,5,FALSE) -> Rehabilitation maintenance might include re-seeding, watering, fertilising, minor re-shaping, erosion control, inspections/audits - does not include major repair works. | O171: =IF(I171="",0,1) -> 0 | P171: 12.01 | R171: Y
D172: =VLOOKUP($P172,'Cost Schedule'!$B:$F,2,FALSE) -> Existing rehabilitation repair - minor | E172: Y | G172: =VLOOKUP($P172,'Cost Schedule'!$B:$F,3,FALSE) -> ha | H172: =VLOOKUP($P172,'Cost Schedule'!$B:$F,4,FALSE) -> 1200 | J172: =IF($E172="Y",IF(I172=0,F172*H172,F172*I172),"") -> 0 | K172: =IF(I172<>"","insert additional information here","") ->  | L172: =VLOOKUP($P172,'Cost Schedule'!$B:$F,5,FALSE) -> Areas requiring minor repair - rills, minor growth media replacement. | O172: =IF(I172="",0,1) -> 0 | P172: 12.06 | R172: Y
D173: =VLOOKUP($P173,'Cost Schedule'!$B:$F,2,FALSE) -> Existing rehabilitation repair - moderate | E173: Y | G173: =VLOOKUP($P173,'Cost Schedule'!$B:$F,3,FALSE) -> ha | H173: =VLOOKUP($P173,'Cost Schedule'!$B:$F,4,FALSE) -> 1700 | J173: =IF($E173="Y",IF(I173=0,F173*H173,F173*I173),"") -> 0 | K173: =IF(I173<>"","insert additional information here","") ->  | L173: =VLOOKUP($P173,'Cost Schedule'!$B:$F,5,FALSE) -> Areas requiring moderate repair - rills, significant growth media replacement. | O173: =IF(I173="",0,1) -> 0 | P173: 12.07 | R173: Y
D174: =VLOOKUP($P174,'Cost Schedule'!$B:$F,2,FALSE) -> Existing rehabilitation repair - major | E174: Y | G174: =VLOOKUP($P174,'Cost Schedule'!$B:$F,3,FALSE) -> ha | H174: =VLOOKUP($P174,'Cost Schedule'!$B:$F,4,FALSE) -> 2500 | J174: =IF($E174="Y",IF(I174=0,F174*H174,F174*I174),"") -> 0 | K174: =IF(I174<>"","insert additional information here","") ->  | L174: =VLOOKUP($P174,'Cost Schedule'!$B:$F,5,FALSE) -> Areas requiring major repair - rills, gullies, growth media replacement, some level of additional surface water management. | O174: =IF(I174="",0,1) -> 0 | P174: 12.08 | R174: Y
D175: =VLOOKUP($P175,'Cost Schedule'!$B:$F,2,FALSE) -> Existing rehabilitation repair - total failure of landform | E175: Y | G175: =VLOOKUP($P175,'Cost Schedule'!$B:$F,3,FALSE) -> ha | H175: =VLOOKUP($P175,'Cost Schedule'!$B:$F,4,FALSE) -> 40000 | J175: =IF($E175="Y",IF(I175=0,F175*H175,F175*I175),"") -> 0 | K175: =IF(I175<>"","insert additional information here","") ->  | L175: =VLOOKUP($P175,'Cost Schedule'!$B:$F,5,FALSE) -> Areas that require extensive rehabilitation repair - re-design and re-construction of landform. | O175: =IF(I175="",0,1) -> 0 | P175: 12.09 | R175: Y
C176: =C171&" Subtotal" -> Maintenance of Rehabilitated Areas Subtotal | J176: =SUM(J171:J175) -> 2932.25 | R176: Y
C177: Additional Items | D177: Other 1 <insert> | E177: N | H177: This is | J177: =IF($E177="Y",IF(I177=0,F177*H177,F177*I177),"") ->  | K177: =IF(I177<>"","insert additional information here","") ->  | L177: This item includes <<to be added by the operator>> | O177: =IF(I177="",0,1) -> 0 | R177: N
D178: Other 2 <insert> | E178: N | H178: deliberately | J178: =IF($E178="Y",IF(I178=0,F178*H178,F178*I178),"") ->  | K178: =IF(I178<>"","insert additional information here","") ->  | L178: This item includes <<to be added by the operator>> | O178: =IF(I178="",0,1) -> 0 | R178: N
D179: Other 3 <insert> | E179: N | H179: left blank | J179: =IF($E179="Y",IF(I179=0,F179*H179,F179*I179),"") ->  | K179: =IF(I179<>"","insert additional information here","") ->  | L179: This item includes <<to be added by the operator>> | O179: =IF(I179="",0,1) -> 0 | R179: N
C180: =C177&" Subtotal" -> Additional Items Subtotal | J180: =SUM(J177:J179) -> 0 | R180: Y
C181: TXRESULT | D181: Total Cost for Infrastructure Domain | J181: =SUM(J77,J81,J107,J119,J128,J139,J164,J170,J176,J180) -> 6301.85 | R181: Y
R182: Y
R183: Y
R184: Y
C185: Open Cut Operations | R185: Y
C186: Domain 2a: Tailings & Rejects | E186: =D286 -> Total Cost for Tailings & Rejects Domain | L186: =J286 -> 0 | R186: Y
R187: Y
C188: Additional Assumptions: Record any relevant assumptions to this domain below: | R188: Y
J189: Key Rehabilitation Area Data for Domain | L189: Enter data below manually | R189: Y
J190: Total Landform Establishment: | R190: Y
J191: Total Growth Media Development: | R191: Y
J192: Total Ecosystem Establishment: | R192: Y
R193: Y
R194: Y
C195: Management Precinct | D195: Activity / Description | E195: Applicable (Y or N) | F195: Quantity | G195: Unit | H195: Default Unit Rate | I195: Alternative Unit Rate | J195: Total Cost | K195: Basis for Costs Estimation and Additional Relevant Information | L195: Description / Notes: | O195: Chg | P195: Link | Q195: List | R195: Y
C196: Contaminated Materials | D196: =VLOOKUP($P196,'Cost Schedule'!$B:$F,2,FALSE) -> Undertake a preliminary site investigation (Phase 1). This accounts for current and historical locations where areas of disturbance are clustered. If there are multiple cluster areas on site, multiple studies may be required. | E196: Y | G196: =VLOOKUP($P196,'Cost Schedule'!$B:$F,3,FALSE) -> Cluster | H196: =VLOOKUP($P196,'Cost Schedule'!$B:$F,4,FALSE) -> 15000 | J196: =IF($E196="Y",IF(I196=0,F196*H196,F196*I196),"") -> 0 | K196: =IF(I196<>"","insert additional information here","") ->  | L196: =VLOOKUP($P196,'Cost Schedule'!$B:$F,5,FALSE) -> The preliminary investigation would include at minimum a desktop assessment of the area and site history, incidents, etc. as per the National Environmental Protection (Site Contamination) Measure (NEPM) Phase 1 assessment (EP Act Section 389 (2) (iv)) or similar approved and recognised assessment method. A cluster may include: - Mine infrastructure (i.e., fuel / chemical store, workshop, vehicle wash-down, sewage treatment etc.) - Processing plants (i.e., ore and product storage, mine waste storage and disposal, rail load-out etc.) - Remote pit-top facilities (i.e., vehicle re-fuel, sewage treatment, secondary workshop, chemical storage etc.) | O196: =IF(I196="",0,1) -> 0 | P196: 3.01a | R196: =E196 -> Y
D197: =VLOOKUP($P197,'Cost Schedule'!$B:$F,2,FALSE) -> Undertake an intrusive site investigation on sites with small footprints to investigate e.g. ≤15 ha. This accounts for current and historical locations where areas of disturbance are clustered. If there are multiple cluster areas on site, multiple intrusive investigations should be included. | E197: Y | G197: =VLOOKUP($P197,'Cost Schedule'!$B:$F,3,FALSE) -> Cluster | H197: =VLOOKUP($P197,'Cost Schedule'!$B:$F,4,FALSE) -> 44000 | J197: 0 | L197: =VLOOKUP($P197,'Cost Schedule'!$B:$F,5,FALSE) -> The intrusive investigation would include at minimum a site walkover and field sampling as per the National Environmental Protection (Site Contamination) Measure (NEPM) Phase 2 intrusive investigation (EP Act Section 389 (2) (iv)) or similar approved and recognised assessment method. Note: An intrusive investigation is not required for all contaminated areas and should be applied considering the rehabilitation program, site history, location, etc. A cluster area where it is highly anticipated that contamination has occurred (i.e., underground tanks / pipes that are known to have leaked, chemical stores with earthen bunds, around ineffective oil/water separators etc.) and further field work is required involving intrusive investigation. Assumes site is easily accessible and a small area e.g. ~10-15 ha requires investigation and testing (test pits, boreholes, etc.) based on Sampling and Analysis Quality Plan. Includes SAQP, fieldwork, sampling and analysis. | O197: 0 | P197: 3.01b | R197: =E197 -> Y
D198: =VLOOKUP($P198,'Cost Schedule'!$B:$F,2,FALSE) -> Undertake an intrusive site investigation on sites with large footprints to investigate e.g. >15 ha. This accounts for current and historical locations where areas of disturbance are clustered. If there are multiple cluster areas on site, multiple intrusive investigations should be included. | E198: Y | G198: =VLOOKUP($P198,'Cost Schedule'!$B:$F,3,FALSE) -> Cluster | H198: =VLOOKUP($P198,'Cost Schedule'!$B:$F,4,FALSE) -> 106000 | J198: 0 | L198: =VLOOKUP($P198,'Cost Schedule'!$B:$F,5,FALSE) -> The intrusive investigation would include at minimum a site walkover and field sampling as per the National Environmental Protection (Site Contamination) Measure (NEPM) Phase 2 intrusive investigation (EP Act Section 389 (2) (iv)) or similar approved and recognised assessment method. Note: An intrusive investigation is not required for all contaminated areas and should be applied considering the rehabilitation program, site history, location, etc. A cluster area where it is highly anticipated that contamination has occurred (i.e., underground tanks / pipes that are known to have leaked, chemical stores with earthen bunds, around ineffective oil/water separators etc.) and further field work is required involving intrusive investigation. Assume site has a history of contamination and/or a large area >15 ha requires investigation and testing (test pits, boreholes, etc.) based on Sampling and Analysis Quality Plan. Includes SAQP, fieldwork, sampling and analysis. | O198: 0 | P198: 3.01c | R198: =E198 -> Y
D199: =VLOOKUP($P199,'Cost Schedule'!$B:$F,2,FALSE) -> Develop a Remediation Action Plan on sites with small footprints based on outcomes of intrusive investigation including strategies to address contamination exceedances | E199: Y | G199: =VLOOKUP($P199,'Cost Schedule'!$B:$F,3,FALSE) -> allow | H199: =VLOOKUP($P199,'Cost Schedule'!$B:$F,4,FALSE) -> 35000 | J199: 0 | L199: =VLOOKUP($P199,'Cost Schedule'!$B:$F,5,FALSE) -> Develop remediation plan for approval including designs and detailed costs. Costs may increase if detailed designs required for construction. | O199: 0 | P199: 3.01d | R199: =E199 -> Y
D200: =VLOOKUP($P200,'Cost Schedule'!$B:$F,2,FALSE) -> Develop a Remediation Action Plan on sites with large footprints based on outcomes of intrusive investigation including strategies to address contamination exceedances | E200: N | G200: =VLOOKUP($P200,'Cost Schedule'!$B:$F,3,FALSE) -> allow | H200: =VLOOKUP($P200,'Cost Schedule'!$B:$F,4,FALSE) -> Use alternate rate cell | L200: =VLOOKUP($P200,'Cost Schedule'!$B:$F,5,FALSE) -> Assumes complex site; detailed design drawings required for cover. | O200: 0 | P200: 3.01e | R200: =E200 -> N
D201: =VLOOKUP($P201,'Cost Schedule'!$B:$F,2,FALSE) -> Removal and disposal of contaminated water from tanks, bunded areas and sumps | E201: Y | G201: =VLOOKUP($P201,'Cost Schedule'!$B:$F,3,FALSE) -> L | H201: =VLOOKUP($P201,'Cost Schedule'!$B:$F,4,FALSE) -> 0.35 | J201: 0 | L201: =VLOOKUP($P201,'Cost Schedule'!$B:$F,5,FALSE) -> Cost for recent sump clean-up from resource activity - requires specialists to treat. | O201: 0 | P201: 3.02 | R201: Y
D202: =VLOOKUP($P202,'Cost Schedule'!$B:$F,2,FALSE) -> Remove material (carbonaceous / metalliferous spillage or otherwise) from footprint of the process facility (leach pads) / stockpile area (ROM product) / roads and dump in a void on-site (Select Haul Distance from list) | E202: Y | G202: m3 | H202: =VLOOKUP($P202,'Cost Schedule'!$B:$F,4,FALSE) -> Select from List | J202: =IF($E202="Y",IF(I202="",IF($H202="Select from List","",IF(I202=0,F202*H202,"")),F202*I202),"") ->  | K202: Select Haul Distance Here | L202: =VLOOKUP($P202,'Cost Schedule'!$B:$F,5,FALSE) -> This item includes scraping and removal of the volume of carbonaceous material using dozer, grader etc. to make safe an area and enable the establishment of rehabilitation. | O202: 0 | P202: =IF(Q202=1,"3.03-",IF(Q202=2,"3.03a",IF(Q202=3,"3.03b",IF(Q202=4,"3.03c",IF(Q202=5,"3.03d","3.03a"))))) -> 3.03- | Q202: =VLOOKUP(K202,Select_Haul_Distance_Index,2,FALSE) -> 1 | R202: Y
K203: =IF(I202<>"","insert additional information here","") ->  | R203: =R202 -> Y
D204: =VLOOKUP($P204,'Cost Schedule'!$B:$F,2,FALSE) -> Load, cart and dispose of Hazardous classified contaminated material off site to a licensed landfill. Assumes cartage to a licensed landfill. | E204: Y | G204: =VLOOKUP($P204,'Cost Schedule'!$B:$F,3,FALSE) -> m3 | H204: =VLOOKUP($P204,'Cost Schedule'!$B:$F,4,FALSE) -> 800 | J204: =IF($E204="Y",IF(I204=0,F204*H204,F204*I204),"") -> 0 | K204: =IF(I204<>"","insert additional information here","") ->  | L204: =VLOOKUP($P204,'Cost Schedule'!$B:$F,5,FALSE) -> Includes load, haul and dump fees to a licensed facility. | O204: =IF(I204="",0,1) -> 0 | P204: 3.04a | R204: Y
... 299 more rows

Sheet Open_Cut_&_UG (1) (hidden)
C1: Management Precinct | D1: Activity / Description | E1: Applicable (Y or N) | F1: Quantity | G1: Unit | H1: Default Unit Rate | I1: Alternative Unit Rate | J1: Total Cost | K1: Basis for Costs Estimation and Additional Relevant Information | L1: Description / Notes: | AG1: =#REF! -> 
AG2: =#REF! -> 
C4: Open Cut and Underground Operations
C5: Domain 1a: Infrastructure | E5: =D191 -> Total Cost for Infrastructure Domain | L5: =J191 -> 0
C7: Additional Assumptions: Record any relevant assumptions to this domain below:
J8: Key Rehabilitation Area Data for Domain | L8: Enter data below manually
J9: Total Landform Establishment:
J10: Total Growth Media Development:
J11: Total Ecosystem Establishment:
C14: Management Precinct | D14: Activity / Description | E14: Applicable (Y or N) | F14: Quantity | G14: Unit | H14: Default Unit Rate | I14: Alternative Unit Rate | J14: Total Cost | K14: Basis for Costs Estimation and Additional Relevant Information | L14: Description / Notes: | O14: Chg | P14: Link | Q14: List | R14: Print
C15: Termination of Services and Demolition Works | D15: =VLOOKUP($P15,'Cost Schedule'!$B:$F,2,FALSE) -> Disconnect and terminate all services (Water, electricity, gas etc at point of attachment to site) | E15: Y | G15: =VLOOKUP($P15,'Cost Schedule'!$B:$F,3,FALSE) -> allow | H15: =VLOOKUP($P15,'Cost Schedule'!$B:$F,4,FALSE) -> 35000 | J15: =IF($E15="Y",IF(I15=0,F15*H15,F15*I15),"") -> 0 | K15: =IF(I15<>"","insert additional information here","") ->  | L15: =VLOOKUP($P15,'Cost Schedule'!$B:$F,5,FALSE) -> For disconnection of all services, at building boundaries, physical cut at the point of attachment or distribution location. If infrastructure is not consolidated (i.e., administration, camp and workshops are in separate places), consider multiple disconnection fees. | O15: =IF(I15="",0,1) -> 0 | P15: 1.01 | R15: =E15 -> Y
D16: =VLOOKUP($P16,'Cost Schedule'!$B:$F,2,FALSE) -> Disconnect and terminate services at remote areas (i.e. pump stations, remote workshops, sewage treatment plant etc.) | E16: Y | G16: =VLOOKUP($P16,'Cost Schedule'!$B:$F,3,FALSE) -> allow | H16: =VLOOKUP($P16,'Cost Schedule'!$B:$F,4,FALSE) -> 5850 | J16: 0 | L16: =VLOOKUP($P16,'Cost Schedule'!$B:$F,5,FALSE) -> Used for infrastructure remote from primary connection. Can also be used for small mines / quarries that do not have dedicated supplies from supply authorities such as steel lattice power lines. | O16: =IF(I16="",0,1) -> 0 | P16: 1.02 | R16: =E16 -> Y
D17: =VLOOKUP($P17,'Cost Schedule'!$B:$F,2,FALSE) -> Removal of low/medium voltage powerlines including disconnection, rolling up the wires and removing the poles - does not include the removal of substations | E17: Y | G17: =VLOOKUP($P17,'Cost Schedule'!$B:$F,3,FALSE) -> km | H17: =VLOOKUP($P17,'Cost Schedule'!$B:$F,4,FALSE) -> 15000 | J17: 0 | L17: =VLOOKUP($P17,'Cost Schedule'!$B:$F,5,FALSE) -> Applies to power lines on stobie, concrete or similar poles. | O17: 0 | P17: 1.03 | R17: Y
D18: =VLOOKUP($P18,'Cost Schedule'!$B:$F,2,FALSE) -> Removal of power lines on tower or lattice structures (this includes disconnection, rolling up the wires and removing the structures) - does not include the removal of substations | E18: Y | G18: =VLOOKUP($P18,'Cost Schedule'!$B:$F,3,FALSE) -> km | H18: =VLOOKUP($P18,'Cost Schedule'!$B:$F,4,FALSE) -> 100000 | J18: 0 | L18: =VLOOKUP($P18,'Cost Schedule'!$B:$F,5,FALSE) -> Applies to power lines on steel tower and steel lattice structures assuming 3 towers / km. | O18: 0 | P18: 1.04 | R18: Y
D19: =VLOOKUP($P19,'Cost Schedule'!$B:$F,2,FALSE) -> Remove small rail, road, water course overpass - manage potential interruptions and demolish and remove bridge supports/pylons/bridge structure etc. and dispose of waste material on-site/locally | E19: Y | G19: =VLOOKUP($P19,'Cost Schedule'!$B:$F,3,FALSE) -> Item | H19: =VLOOKUP($P19,'Cost Schedule'!$B:$F,4,FALSE) -> 350000 | J19: 0 | L19: =VLOOKUP($P19,'Cost Schedule'!$B:$F,5,FALSE) -> Smaller structures - minimal civil works to demolish (constructed for the purposes of mining related works - does not include transport to regional disposal facility or equivalent). | O19: 0 | P19: 1.05a | R19: Y
D20: =VLOOKUP($P20,'Cost Schedule'!$B:$F,2,FALSE) -> Remove medium rail, road, water course overpass - manage potential interruptions and demolish and remove bridge supports/pylons/bridge structure etc. and dispose of waste material on-site/locally | E20: Y | G20: =VLOOKUP($P20,'Cost Schedule'!$B:$F,3,FALSE) -> Item | H20: =VLOOKUP($P20,'Cost Schedule'!$B:$F,4,FALSE) -> 500000 | J20: 0 | K20: =IF(I20<>"","insert additional information here","") ->  | L20: =VLOOKUP($P20,'Cost Schedule'!$B:$F,5,FALSE) -> Medium structures - minimal civil works to demolish (constructed for the purposes of mining related works - does not include transport to regional disposal facility or equivalent). | O20: 0 | P20: 1.05b | R20: Y
D21: =VLOOKUP($P21,'Cost Schedule'!$B:$F,2,FALSE) -> Remove large / significant rail, road, water course overpass - manage potential interruptions and demolish and remove bridge supports/pylons/bridge structure etc. and dispose of waste material on-site/locally | E21: Y | G21: =VLOOKUP($P21,'Cost Schedule'!$B:$F,3,FALSE) -> Item | H21: =VLOOKUP($P21,'Cost Schedule'!$B:$F,4,FALSE) -> 1300000 | J21: =IF($E21="Y",IF(I21=0,F21*H21,F21*I21),"") -> 0 | K21: =IF(I21<>"","insert additional information here","") ->  | L21: =VLOOKUP($P21,'Cost Schedule'!$B:$F,5,FALSE) -> Large structures - includes significant water management e.g. watercourse diversion and civil works to demolish (constructed for the purposes of mining related works - does not include transport to regional disposal facility or equivalent). | O21: =IF(I21="",0,1) -> 0 | P21: 1.05c | R21: =E21 -> Y
D22: =VLOOKUP($P22,'Cost Schedule'!$B:$F,2,FALSE) -> Demolish and/or remove substations (assumes they are in a closed building). Dispose of waste material on-site/locally | E22: Y | G22: =VLOOKUP($P22,'Cost Schedule'!$B:$F,3,FALSE) -> m2 | H22: =VLOOKUP($P22,'Cost Schedule'!$B:$F,4,FALSE) -> 100 | J22: 0 | L22: =VLOOKUP($P22,'Cost Schedule'!$B:$F,5,FALSE) -> Simple structure to demolish mechanically (no labour required), assumes single story building with no asbestos and segregation of contents for scrap as applicable. | O22: 0 | P22: 1.06 | R22: Y
D23: =VLOOKUP($P23,'Cost Schedule'!$B:$F,2,FALSE) -> Demolish and remove switchyard. Dispose of waste material on-site/locally | E23: Y | G23: =VLOOKUP($P23,'Cost Schedule'!$B:$F,3,FALSE) -> m2 | H23: =VLOOKUP($P23,'Cost Schedule'!$B:$F,4,FALSE) -> 75 | J23: 0 | L23: =VLOOKUP($P23,'Cost Schedule'!$B:$F,5,FALSE) -> Includes demolition and removal of all switchgear and transformers etc. and segregation of contents for scrap as applicable. | O23: 0 | P23: 1.07 | R23: Y
D24: =VLOOKUP($P24,'Cost Schedule'!$B:$F,2,FALSE) -> Demolish and remove demountable structures on concrete stumps. Assumes not being re-used | E24: Y | G24: =VLOOKUP($P24,'Cost Schedule'!$B:$F,3,FALSE) -> m2 | H24: =VLOOKUP($P24,'Cost Schedule'!$B:$F,4,FALSE) -> 40 | J24: 0 | L24: =VLOOKUP($P24,'Cost Schedule'!$B:$F,5,FALSE) -> Crib huts, temporary offices and other 'non permanent' structures. Does not include transport to regional disposal facility or equivalent. | O24: 0 | P24: 1.08 | R24: Y
D25: =VLOOKUP($P25,'Cost Schedule'!$B:$F,2,FALSE) -> Demolish and remove small buildings/tanks (admin buildings, single story accommodation etc) and disposal on-site/locally | E25: Y | G25: =VLOOKUP($P25,'Cost Schedule'!$B:$F,3,FALSE) -> m2 | H25: =VLOOKUP($P25,'Cost Schedule'!$B:$F,4,FALSE) -> 61 | J25: 0 | L25: =VLOOKUP($P25,'Cost Schedule'!$B:$F,5,FALSE) -> Simple structure to demolish, assumes no greater than 2 stories high. Does not include transport to regional disposal facility or equivalent. | O25: 0 | P25: 1.09 | R25: Y
D26: =VLOOKUP($P26,'Cost Schedule'!$B:$F,2,FALSE) -> Demolish and remove light industrial buildings and disposal on-site/locally | E26: Y | G26: =VLOOKUP($P26,'Cost Schedule'!$B:$F,3,FALSE) -> m2/floor | H26: =VLOOKUP($P26,'Cost Schedule'!$B:$F,4,FALSE) -> 90 | J26: 0 | L26: =VLOOKUP($P26,'Cost Schedule'!$B:$F,5,FALSE) -> Needs to be calculated per floor/level (Assume 1 floor/level = 3-4 m) - does not include transport to regional disposal facility or equivalent. Assumes asbestos free and mechanically demolished. | O26: 0 | P26: 1.1 | R26: Y
D27: =VLOOKUP($P27,'Cost Schedule'!$B:$F,2,FALSE) -> Demolish and remove industrial buildings (workshops tyre change and servicing area etc not CHPP/process plant) and disposal on-site/locally | E27: Y | G27: =VLOOKUP($P27,'Cost Schedule'!$B:$F,3,FALSE) -> m2/floor | H27: =VLOOKUP($P27,'Cost Schedule'!$B:$F,4,FALSE) -> 130 | J27: 0 | L27: =VLOOKUP($P27,'Cost Schedule'!$B:$F,5,FALSE) -> Needs to be calculated per floor/level (Assume 1 floor/level = 3-4 m). Does not include transport to regional disposal facility or equivalent. | O27: 0 | P27: 1.11 | R27: Y
D28: =VLOOKUP($P28,'Cost Schedule'!$B:$F,2,FALSE) -> Demolish and remove CHPP/process plant (include the area of each floor of the structure) and disposal on-site/locally | E28: Y | G28: =VLOOKUP($P28,'Cost Schedule'!$B:$F,3,FALSE) -> m2/floor | H28: =VLOOKUP($P28,'Cost Schedule'!$B:$F,4,FALSE) -> 225 | J28: 0 | L28: =VLOOKUP($P28,'Cost Schedule'!$B:$F,5,FALSE) -> Needs to be calculated per floor/level (Assume 1 floor/level = 3-4 m). Does not include transport to regional disposal facility or equivalent. | O28: 0 | P28: 1.12 | R28: Y
D29: =VLOOKUP($P29,'Cost Schedule'!$B:$F,2,FALSE) -> Collapse, demolish and remove washery, crushers, hoppers, mills, furnaces, agglomeration, electrowinning, floatation, sizing stations, rotary breakers, etc (include the area of each floor of the structure) and disposal on-site/locally | E29: Y | G29: =VLOOKUP($P29,'Cost Schedule'!$B:$F,3,FALSE) -> m2/floor | H29: =VLOOKUP($P29,'Cost Schedule'!$B:$F,4,FALSE) -> 225 | J29: 0 | L29: =VLOOKUP($P29,'Cost Schedule'!$B:$F,5,FALSE) -> Needs to be calculated per floor/level (Assume 1 floor/level = 3-4 m). Does not include transport to regional disposal facility or equivalent. | O29: 0 | P29: 1.13 | R29: Y
D30: =VLOOKUP($P30,'Cost Schedule'!$B:$F,2,FALSE) -> Collapse, demolish and remove stacker OR reclaimer (radial or luffing etc. with maneuverability for stockpile control) and disposal on-site/locally | E30: Y | G30: =VLOOKUP($P30,'Cost Schedule'!$B:$F,3,FALSE) -> allow | H30: =VLOOKUP($P30,'Cost Schedule'!$B:$F,4,FALSE) -> 750000 | J30: 0 | L30: =VLOOKUP($P30,'Cost Schedule'!$B:$F,5,FALSE) -> Cost for removal of stacker or reclaim unit only. Does not include terminate services, remove rails and ballast etc. Does not include transport to regional disposal facility or equivalent. | O30: 0 | P30: 1.14 | R30: Y
D31: =VLOOKUP($P31,'Cost Schedule'!$B:$F,2,FALSE) -> Collapse, demolish and remove bucket wheel stacker/reclaimer and disposal on-site/locally | E31: Y | G31: =VLOOKUP($P31,'Cost Schedule'!$B:$F,3,FALSE) -> allow | H31: =VLOOKUP($P31,'Cost Schedule'!$B:$F,4,FALSE) -> 2000000 | J31: 0 | L31: =VLOOKUP($P31,'Cost Schedule'!$B:$F,5,FALSE) -> Cost for just removal of the bucket wheel stacker/reclaim units. Does not include terminate services, remove rails and ballast etc. Does not include transport to regional disposal facility or equivalent. | O31: 0 | P31: 1.15 | R31: Y
D32: =VLOOKUP($P32,'Cost Schedule'!$B:$F,2,FALSE) -> Remove stacker/reclaimer rails and ballast and demolish and remove concrete footings etc and disposal on-site/locally | E32: Y | G32: =VLOOKUP($P32,'Cost Schedule'!$B:$F,3,FALSE) -> m | H32: =VLOOKUP($P32,'Cost Schedule'!$B:$F,4,FALSE) -> 75 | J32: 0 | L32: =VLOOKUP($P32,'Cost Schedule'!$B:$F,5,FALSE) -> Includes both rails, does not include the conveyor system. Does not include transport to regional disposal facility or equivalent. | O32: 0 | P32: 1.16 | R32: Y
D33: =VLOOKUP($P33,'Cost Schedule'!$B:$F,2,FALSE) -> Collapse, Cut and Remove 5000T coal silo and disposal on-site/locally | E33: Y | G33: =VLOOKUP($P33,'Cost Schedule'!$B:$F,3,FALSE) -> allow | H33: =VLOOKUP($P33,'Cost Schedule'!$B:$F,4,FALSE) -> 92500 | J33: 0 | L33: =VLOOKUP($P33,'Cost Schedule'!$B:$F,5,FALSE) -> Collapse structure and remove. Does not include transport to regional disposal facility or equivalent. | O33: 0 | P33: 1.17 | R33: Y
D34: =VLOOKUP($P34,'Cost Schedule'!$B:$F,2,FALSE) -> Collapse, Cut and Remove 3000 T coal silo and disposal on-site/locally | E34: Y | G34: =VLOOKUP($P34,'Cost Schedule'!$B:$F,3,FALSE) -> allow | H34: =VLOOKUP($P34,'Cost Schedule'!$B:$F,4,FALSE) -> 77500 | J34: 0 | L34: =VLOOKUP($P34,'Cost Schedule'!$B:$F,5,FALSE) -> Collapse structure and remove. Does not include transport to regional disposal facility or equivalent. | O34: 0 | P34: 1.18 | R34: Y
D35: =VLOOKUP($P35,'Cost Schedule'!$B:$F,2,FALSE) -> Collapse, Cut and Remove 1250 T coal silo and disposal on-site/locally | E35: Y | G35: =VLOOKUP($P35,'Cost Schedule'!$B:$F,3,FALSE) -> allow | H35: =VLOOKUP($P35,'Cost Schedule'!$B:$F,4,FALSE) -> 62500 | J35: 0 | L35: =VLOOKUP($P35,'Cost Schedule'!$B:$F,5,FALSE) -> Collapse structure and remove. Does not include transport to regional disposal facility or equivalent. | O35: 0 | P35: 1.19 | R35: Y
D36: =VLOOKUP($P36,'Cost Schedule'!$B:$F,2,FALSE) -> Collapse, Cut and Remove rail loading bins and disposal on-site/locally | E36: Y | G36: =VLOOKUP($P36,'Cost Schedule'!$B:$F,3,FALSE) -> allow | H36: =VLOOKUP($P36,'Cost Schedule'!$B:$F,4,FALSE) -> 65000 | J36: 0 | L36: =VLOOKUP($P36,'Cost Schedule'!$B:$F,5,FALSE) -> Collapse structure and remove. Does not include transport to regional disposal facility or equivalent. | O36: 0 | P36: 1.2 | R36: Y
D37: =VLOOKUP($P37,'Cost Schedule'!$B:$F,2,FALSE) -> Demolish and Remove large concrete rail loading bin - and disposal on-site/locally | E37: Y | G37: =VLOOKUP($P37,'Cost Schedule'!$B:$F,3,FALSE) -> allow | H37: =VLOOKUP($P37,'Cost Schedule'!$B:$F,4,FALSE) -> 460000 | J37: 0 | K37: =IF(I37<>"","insert additional information here","") ->  | L37: =VLOOKUP($P37,'Cost Schedule'!$B:$F,5,FALSE) -> Collapse structure and remove. Does not include transport to regional disposal facility or equivalent. | O37: 0 | P37: 1.20a | R37: Y
D38: =VLOOKUP($P38,'Cost Schedule'!$B:$F,2,FALSE) -> Demolish and remove onground conveyors, transfer stations & gantries (scrap only – does not include dismantling for reuse at another site) and disposal on-site/locally | E38: Y | G38: =VLOOKUP($P38,'Cost Schedule'!$B:$F,3,FALSE) -> m | H38: =VLOOKUP($P38,'Cost Schedule'!$B:$F,4,FALSE) -> 185 | J38: 0 | L38: =VLOOKUP($P38,'Cost Schedule'!$B:$F,5,FALSE) -> Estimate for on-ground conveyor including anything up to 10 m off the ground. Does not include transport to regional disposal facility or equivalent. | O38: 0 | P38: 1.21 | R38: Y
D39: =VLOOKUP($P39,'Cost Schedule'!$B:$F,2,FALSE) -> Demolish and remove elevated conveyors, transfer stations & gantries (scrap only, does not include dismantling for reuse at another site) and disposal on-site/locally | E39: Y | G39: =VLOOKUP($P39,'Cost Schedule'!$B:$F,3,FALSE) -> m | H39: =VLOOKUP($P39,'Cost Schedule'!$B:$F,4,FALSE) -> 295 | J39: 0 | L39: =VLOOKUP($P39,'Cost Schedule'!$B:$F,5,FALSE) -> Estimate for elevated conveyor up to ~10 m off the ground. Does not include transport to regional disposal facility or equivalent. | O39: 0 | P39: 1.22 | R39: Y
D40: =VLOOKUP($P40,'Cost Schedule'!$B:$F,2,FALSE) -> Demolish and remove overhead conveyors, transfer stations & gantries (scrap only, does not include dismantling for reuse at another site) and disposal on-site/locally. This may include small scale fixed material stacking infrastructure | E40: Y | G40: =VLOOKUP($P40,'Cost Schedule'!$B:$F,3,FALSE) -> m | H40: =VLOOKUP($P40,'Cost Schedule'!$B:$F,4,FALSE) -> 850 | J40: 0 | L40: =VLOOKUP($P40,'Cost Schedule'!$B:$F,5,FALSE) -> Estimate for overhead conveyor including conveyors that are >10 m off the ground that require a crane to remove. Does not include transport to regional disposal facility or equivalent. | O40: =IF(I40="",0,1) -> 0 | P40: 1.23 | R40: Y
D41: =VLOOKUP($P41,'Cost Schedule'!$B:$F,2,FALSE) -> Remove and demolish conveyor from reclaim tunnel (Does not include excavation and demolition of reclaim tunnel roof) | E41: Y | G41: =VLOOKUP($P41,'Cost Schedule'!$B:$F,3,FALSE) -> m | H41: =VLOOKUP($P41,'Cost Schedule'!$B:$F,4,FALSE) -> 150 | J41: 0 | L41: =VLOOKUP($P41,'Cost Schedule'!$B:$F,5,FALSE) -> Due to no canopy or infrastructure attached. | O41: 0 | P41: 1.24 | R41: Y
D42: =VLOOKUP($P42,'Cost Schedule'!$B:$F,2,FALSE) -> Demolition of reclaim tunnel concrete (Assumes complete removal and dumping in mine pit void) | E42: Y | G42: =VLOOKUP($P42,'Cost Schedule'!$B:$F,3,FALSE) -> m | H42: =VLOOKUP($P42,'Cost Schedule'!$B:$F,4,FALSE) -> 950 | J42: 0 | L42: =VLOOKUP($P42,'Cost Schedule'!$B:$F,5,FALSE) -> Assumes this area will be used for another land-use that requires the structure to be dug up and re-buried somewhere else. | O42: 0 | P42: 1.25 | R42: Y
D43: =VLOOKUP($P43,'Cost Schedule'!$B:$F,2,FALSE) -> Demolition and removal of vent raise fans, electrical substation and winch and disposal on-site/locally | E43: Y | G43: =VLOOKUP($P43,'Cost Schedule'!$B:$F,3,FALSE) -> allow | H43: =VLOOKUP($P43,'Cost Schedule'!$B:$F,4,FALSE) -> 25000 | J43: 0 | L43: =VLOOKUP($P43,'Cost Schedule'!$B:$F,5,FALSE) -> Does not include filling and capping the shaft. Does not include transport to regional disposal facility or equivalent. | O43: 0 | P43: 1.26 | R43: Y
D44: =VLOOKUP($P44,'Cost Schedule'!$B:$F,2,FALSE) -> Demolish and remove small tank clean (Thickener etc 3 - 9 m diameter) and disposal on-site/locally | E44: Y | G44: =VLOOKUP($P44,'Cost Schedule'!$B:$F,3,FALSE) -> allow | H44: =VLOOKUP($P44,'Cost Schedule'!$B:$F,4,FALSE) -> 10000 | J44: 0 | L44: =VLOOKUP($P44,'Cost Schedule'!$B:$F,5,FALSE) -> Assume tank is clean - contents removed. If tank is full allow extra 30% for excavator and 2 men to dig out and dispose. Does not include transport to regional disposal facility or equivalent. | O44: 0 | P44: 1.27 | R44: Y
D45: =VLOOKUP($P45,'Cost Schedule'!$B:$F,2,FALSE) -> Demolish and remove medium tank clean (Thickener etc 10 - 15 m diameter) and disposal on-site/locally | E45: Y | G45: =VLOOKUP($P45,'Cost Schedule'!$B:$F,3,FALSE) -> allow | H45: =VLOOKUP($P45,'Cost Schedule'!$B:$F,4,FALSE) -> 30000 | J45: 0 | L45: =VLOOKUP($P45,'Cost Schedule'!$B:$F,5,FALSE) -> Assume tank is clean - contents removed. If tank is full allow extra 30% for excavator and 2 men to dig out and dispose. Does not include transport to regional disposal facility or equivalent. | O45: 0 | P45: 1.28 | R45: Y
D46: =VLOOKUP($P46,'Cost Schedule'!$B:$F,2,FALSE) -> Demolish and remove large tank clean (Thickener etc 15 - 30 m diameter) and disposal on-site/locally | E46: Y | G46: =VLOOKUP($P46,'Cost Schedule'!$B:$F,3,FALSE) -> allow | H46: =VLOOKUP($P46,'Cost Schedule'!$B:$F,4,FALSE) -> 45000 | J46: 0 | L46: =VLOOKUP($P46,'Cost Schedule'!$B:$F,5,FALSE) -> Assume tank is clean - contents removed. If tank is full allow extra 30% for excavator and 2 men to dig out and dispose. Does not include transport to regional disposal facility or equivalent. | O46: =IF(I46="",0,1) -> 0 | P46: 1.29 | R46: Y
D47: =VLOOKUP($P47,'Cost Schedule'!$B:$F,2,FALSE) -> Demolish and remove extra large tank clean (Thickener etc >30 m diameter) and disposal on-site/locally | E47: Y | G47: =VLOOKUP($P47,'Cost Schedule'!$B:$F,3,FALSE) -> allow | H47: =VLOOKUP($P47,'Cost Schedule'!$B:$F,4,FALSE) -> 100000 | J47: 0 | L47: =VLOOKUP($P47,'Cost Schedule'!$B:$F,5,FALSE) -> Assume tank is clean - contents removed. If tank is full allow extra 30% for excavator and 2 men to dig out and dispose. Does not include transport to regional disposal facility or equivalent. | O47: 0 | P47: 1.3 | R47: Y
D48: =VLOOKUP($P48,'Cost Schedule'!$B:$F,2,FALSE) -> Demolish and remove tank clean (Thickener etc) >50 m diameter and disposal on-site/locally | E48: Y | G48: =VLOOKUP($P48,'Cost Schedule'!$B:$F,3,FALSE) -> allow | H48: =VLOOKUP($P48,'Cost Schedule'!$B:$F,4,FALSE) -> 100000 | J48: 0 | L48: =VLOOKUP($P48,'Cost Schedule'!$B:$F,5,FALSE) -> Estimate only - may require a detailed assessment from demolition expert due to specialised equipment required for removal. Does not include transport to regional disposal facility or equivalent. | O48: 0 | P48: 1.31 | R48: Y
D49: =VLOOKUP($P49,'Cost Schedule'!$B:$F,2,FALSE) -> Removal of UG tank <5000 L - including pipes, bunds etc. and disposal on-site/locally | E49: Y | G49: =VLOOKUP($P49,'Cost Schedule'!$B:$F,3,FALSE) -> allow | H49: =VLOOKUP($P49,'Cost Schedule'!$B:$F,4,FALSE) -> 21000 | J49: 0 | L49: =VLOOKUP($P49,'Cost Schedule'!$B:$F,5,FALSE) -> Assume tank is clean (contents removed), does not include transport to regional disposal facility or equivalent. | O49: 0 | P49: 1.32 | R49: Y
D50: =VLOOKUP($P50,'Cost Schedule'!$B:$F,2,FALSE) -> Removal of UG tank 5000 L - 15000 L - including pipes, bunds etc. and disposal on-site/locally | E50: Y | G50: =VLOOKUP($P50,'Cost Schedule'!$B:$F,3,FALSE) -> allow | H50: =VLOOKUP($P50,'Cost Schedule'!$B:$F,4,FALSE) -> 30000 | J50: 0 | L50: =VLOOKUP($P50,'Cost Schedule'!$B:$F,5,FALSE) -> Assume tank is clean (contents removed), does not include transport to regional disposal facility or equivalent. | O50: 0 | P50: 1.33 | R50: Y
D51: =VLOOKUP($P51,'Cost Schedule'!$B:$F,2,FALSE) -> Remove small underground pipe and disposal on-site/locally | E51: Y | G51: =VLOOKUP($P51,'Cost Schedule'!$B:$F,3,FALSE) -> m | H51: =VLOOKUP($P51,'Cost Schedule'!$B:$F,4,FALSE) -> 25 | J51: 0 | L51: =VLOOKUP($P51,'Cost Schedule'!$B:$F,5,FALSE) -> For example: 300 mm pipes - 0.5 m deep, does not include transport to regional disposal facility or equivalent. | O51: 0 | P51: 1.34 | R51: Y
D52: =VLOOKUP($P52,'Cost Schedule'!$B:$F,2,FALSE) -> Remove medium underground pipe and disposal on-site/locally | E52: Y | G52: =VLOOKUP($P52,'Cost Schedule'!$B:$F,3,FALSE) -> m | H52: =VLOOKUP($P52,'Cost Schedule'!$B:$F,4,FALSE) -> 60 | J52: 0 | L52: =VLOOKUP($P52,'Cost Schedule'!$B:$F,5,FALSE) -> For example: 500 mm pipes - 1 m deep, does not include transport to regional disposal facility or equivalent. | O52: 0 | P52: 1.35 | R52: Y
D53: =VLOOKUP($P53,'Cost Schedule'!$B:$F,2,FALSE) -> Remove large underground pipe and disposal on-site/locally | E53: Y | G53: =VLOOKUP($P53,'Cost Schedule'!$B:$F,3,FALSE) -> m | H53: =VLOOKUP($P53,'Cost Schedule'!$B:$F,4,FALSE) -> 165 | J53: 0 | L53: =VLOOKUP($P53,'Cost Schedule'!$B:$F,5,FALSE) -> For example: 1 m pipes - 2 m deep. | O53: 0 | P53: 1.36 | R53: Y
D54: =VLOOKUP($P54,'Cost Schedule'!$B:$F,2,FALSE) -> Remove above ground pipe (supported) and disposal on-site/locally | E54: Y | G54: =VLOOKUP($P54,'Cost Schedule'!$B:$F,3,FALSE) -> m | H54: =VLOOKUP($P54,'Cost Schedule'!$B:$F,4,FALSE) -> 12 | J54: 0 | L54: =VLOOKUP($P54,'Cost Schedule'!$B:$F,5,FALSE) -> ~300 mm pipes and assumes pipes are in close proximity to infrastructure areas. Does not include transport to regional disposal facility or equivalent. | O54: 0 | P54: 1.37 | R54: Y
D55: =VLOOKUP($P55,'Cost Schedule'!$B:$F,2,FALSE) -> Remove surface pipelines (unsupported) and disposal on-site/locally | E55: Y | G55: =VLOOKUP($P55,'Cost Schedule'!$B:$F,3,FALSE) -> m | H55: =VLOOKUP($P55,'Cost Schedule'!$B:$F,4,FALSE) -> 15 | J55: 0 | L55: =VLOOKUP($P55,'Cost Schedule'!$B:$F,5,FALSE) -> ~300 mm pipes and assumes pipes are used for water transfer between pits (or similar) and remotely located. Does not include transport to regional disposal facility or equivalent. | O55: 0 | P55: 1.38 | R55: Y
D56: =VLOOKUP($P56,'Cost Schedule'!$B:$F,2,FALSE) -> Remove pump and pontoon from small lake or dam including pipes and electrical supply or diesel tank/s | E56: Y | G56: =VLOOKUP($P56,'Cost Schedule'!$B:$F,3,FALSE) -> allow | H56: =VLOOKUP($P56,'Cost Schedule'!$B:$F,4,FALSE) -> 20000 | J56: 0 | L56: =VLOOKUP($P56,'Cost Schedule'!$B:$F,5,FALSE) -> Includes equipment for retrieval - boats, etc. and labour. Does not include transport to regional disposal facility or equivalent. | O56: =IF(I56="",0,1) -> 0 | P56: 1.39 | R56: Y
D57: =VLOOKUP($P57,'Cost Schedule'!$B:$F,2,FALSE) -> Remove bitumen (car park and access roads) and dispose on-site/locally | E57: Y | G57: =VLOOKUP($P57,'Cost Schedule'!$B:$F,3,FALSE) -> m2 | H57: =VLOOKUP($P57,'Cost Schedule'!$B:$F,4,FALSE) -> 10 | J57: 0 | L57: =VLOOKUP($P57,'Cost Schedule'!$B:$F,5,FALSE) -> Scalp bitumen and stabilised material. Generally haulage rates will be $0.60 - $1.20 / km, depending on truck fleet, loaders etc. For off-site disposal use alternate rate option and add $0.90 / km for transport. | O57: 0 | P57: 1.4 | R57: Y
D58: =VLOOKUP($P58,'Cost Schedule'!$B:$F,2,FALSE) -> Remove bitumen (airstrip) and dispose on-site/locally | E58: Y | G58: =VLOOKUP($P58,'Cost Schedule'!$B:$F,3,FALSE) -> m2 | H58: =VLOOKUP($P58,'Cost Schedule'!$B:$F,4,FALSE) -> 20 | J58: 0 | L58: =VLOOKUP($P58,'Cost Schedule'!$B:$F,5,FALSE) -> Scalp bitumen and stabilised material. Generally haulage rates will be $0.60 - $1.20 / km, depending on truck fleet, loaders etc. For off-site disposal use alternate rate option and add $0.90 / km for transport. | O58: 0 | P58: 1.41 | R58: Y
D59: =VLOOKUP($P59,'Cost Schedule'!$B:$F,2,FALSE) -> Remove concrete pads & footings (<300 mm thickness) and disposal on-site/locally | E59: Y | G59: =VLOOKUP($P59,'Cost Schedule'!$B:$F,3,FALSE) -> m2 | H59: =VLOOKUP($P59,'Cost Schedule'!$B:$F,4,FALSE) -> 36 | J59: 0 | L59: =VLOOKUP($P59,'Cost Schedule'!$B:$F,5,FALSE) -> Breaking up slab and disposal or for conversion to aggregate. Generally haulage rates will be $0.60 - $1.20 / km, depending on truck fleet, loaders etc. For off-site disposal use alternate rate option and add $0.90 / km for transport. | O59: 0 | P59: 1.42 | R59: Y
D60: =VLOOKUP($P60,'Cost Schedule'!$B:$F,2,FALSE) -> Remove concrete pads & footings (>300 mm thickness) and disposal on-site/locally | E60: Y | G60: =VLOOKUP($P60,'Cost Schedule'!$B:$F,3,FALSE) -> m2 | H60: =VLOOKUP($P60,'Cost Schedule'!$B:$F,4,FALSE) -> 75 | J60: 0 | L60: =VLOOKUP($P60,'Cost Schedule'!$B:$F,5,FALSE) -> Breaking up slab and disposal or for conversion to aggregate. Generally haulage rates will be $0.60 - $1.20 / km, depending on truck fleet, loaders etc. For off-site disposal use alternate rate option and add $0.90 / km for transport. | O60: 0 | P60: 1.43 | R60: Y
D61: =VLOOKUP($P61,'Cost Schedule'!$B:$F,2,FALSE) -> Crush concrete to make road aggregate - 75 mm | E61: Y | G61: =VLOOKUP($P61,'Cost Schedule'!$B:$F,3,FALSE) -> tonne | H61: =VLOOKUP($P61,'Cost Schedule'!$B:$F,4,FALSE) -> 10 | J61: 0 | L61: =VLOOKUP($P61,'Cost Schedule'!$B:$F,5,FALSE) -> Does not include haulage of materials - assumes crushing plant is readily available. | O61: 0 | P61: 1.44 | R61: Y
D62: =VLOOKUP($P62,'Cost Schedule'!$B:$F,2,FALSE) -> Crush concrete to make road aggregate - 50 mm | E62: Y | G62: =VLOOKUP($P62,'Cost Schedule'!$B:$F,3,FALSE) -> tonne | H62: =VLOOKUP($P62,'Cost Schedule'!$B:$F,4,FALSE) -> 13 | J62: 0 | L62: =VLOOKUP($P62,'Cost Schedule'!$B:$F,5,FALSE) -> Does not include haulage of materials - assumes crushing plant is readily available. | O62: 0 | P62: 1.45 | R62: Y
D63: =VLOOKUP($P63,'Cost Schedule'!$B:$F,2,FALSE) -> Crush concrete to make road aggregate - 30 mm | E63: Y | G63: =VLOOKUP($P63,'Cost Schedule'!$B:$F,3,FALSE) -> tonne | H63: =VLOOKUP($P63,'Cost Schedule'!$B:$F,4,FALSE) -> 15 | J63: =IF($E63="Y",IF(I63=0,F63*H63,F63*I63),"") -> 0 | K63: =IF(I63<>"","insert additional information here","") ->  | L63: =VLOOKUP($P63,'Cost Schedule'!$B:$F,5,FALSE) -> Does not include haulage of materials - assumes crushing plant is readily available. | O63: 0 | P63: 1.46 | R63: Y
D64: =VLOOKUP($P64,'Cost Schedule'!$B:$F,2,FALSE) -> Remove fence (cyclone/wire fence) and disposal on-site/locally | E64: Y | G64: =VLOOKUP($P64,'Cost Schedule'!$B:$F,3,FALSE) -> m | H64: =VLOOKUP($P64,'Cost Schedule'!$B:$F,4,FALSE) -> 20 | J64: 0 | L64: =VLOOKUP($P64,'Cost Schedule'!$B:$F,5,FALSE) -> Roll up fence and remove posts. | O64: 0 | P64: 1.47 | R64: Y
D65: =VLOOKUP($P65,'Cost Schedule'!$B:$F,2,FALSE) -> Removal of small plastic tanks | E65: Y | G65: =VLOOKUP($P65,'Cost Schedule'!$B:$F,3,FALSE) -> each | H65: =VLOOKUP($P65,'Cost Schedule'!$B:$F,4,FALSE) -> 1000 | J65: 0 | L65: =VLOOKUP($P65,'Cost Schedule'!$B:$F,5,FALSE) -> Remove small poly tanks used for water storage, etc. | O65: 0 | P65: 1.48 | R65: Y
D66: =VLOOKUP($P66,'Cost Schedule'!$B:$F,2,FALSE) -> Demolish and remove galvanised/corrugated light weight tanks | E66: Y | G66: =VLOOKUP($P66,'Cost Schedule'!$B:$F,3,FALSE) -> each | H66: =VLOOKUP($P66,'Cost Schedule'!$B:$F,4,FALSE) -> 500 | J66: 0 | L66: =VLOOKUP($P66,'Cost Schedule'!$B:$F,5,FALSE) -> Demolish and remove small lightweight metal tanks. No costs included for managing liquids, etc. | O66: 0 | P66: 1.49 | R66: Y
D67: =VLOOKUP($P67,'Cost Schedule'!$B:$F,2,FALSE) -> Demolish and remove communication towers | E67: Y | G67: =VLOOKUP($P67,'Cost Schedule'!$B:$F,3,FALSE) -> each | H67: =VLOOKUP($P67,'Cost Schedule'!$B:$F,4,FALSE) -> 5000 | J67: 0 | L67: =VLOOKUP($P67,'Cost Schedule'!$B:$F,5,FALSE) -> Cost includes demolition and removal of tower only; separate costs required for disconnection of services, demolition of footings, etc. | O67: 0 | P67: 1.5 | R67: Y
D68: =VLOOKUP($P68,'Cost Schedule'!$B:$F,2,FALSE) -> Removal of UG services (power within main gate areas, etc.) | E68: Y | G68: =VLOOKUP($P68,'Cost Schedule'!$B:$F,3,FALSE) -> allow | H68: =VLOOKUP($P68,'Cost Schedule'!$B:$F,4,FALSE) -> 50000 | J68: 0 | L68: =VLOOKUP($P68,'Cost Schedule'!$B:$F,5,FALSE) -> Assume service disconnection at the mine boundary is at surface level. This cost covers all fees and charges | O68: 0 | P68: 1.51 | R68: Y
D69: =VLOOKUP($P69,'Cost Schedule'!$B:$F,2,FALSE) -> Waste disposal to Council landfill (general waste) - haulage >10 km but <15 km | E69: Y | G69: =VLOOKUP($P69,'Cost Schedule'!$B:$F,3,FALSE) -> tonne | H69: =VLOOKUP($P69,'Cost Schedule'!$B:$F,4,FALSE) -> 7 | J69: 0 | L69: =VLOOKUP($P69,'Cost Schedule'!$B:$F,5,FALSE) -> Rate accounts for round trip haulage to Council landfill but excludes landfill fees. Input quantity against Waste disposal to Council landfill - fees for relevant waste type. | O69: 0 | P69: 1.52 | R69: Y
D70: =VLOOKUP($P70,'Cost Schedule'!$B:$F,2,FALSE) -> Waste disposal to Council landfill (general waste) - haulage >15 km but <25 km | E70: Y | G70: =VLOOKUP($P70,'Cost Schedule'!$B:$F,3,FALSE) -> tonne | H70: =VLOOKUP($P70,'Cost Schedule'!$B:$F,4,FALSE) -> 9 | J70: 0 | L70: =VLOOKUP($P70,'Cost Schedule'!$B:$F,5,FALSE) -> Rate accounts for round trip haulage to Council landfill but excludes landfill fees. Input quantity against Waste disposal to Council landfill - fees for relevant waste type. | O70: 0 | P70: 1.53 | R70: Y
D71: =VLOOKUP($P71,'Cost Schedule'!$B:$F,2,FALSE) -> Waste disposal to Council landfill (general waste) - haulage >25 km but <50 km | E71: Y | G71: =VLOOKUP($P71,'Cost Schedule'!$B:$F,3,FALSE) -> tonne | H71: =VLOOKUP($P71,'Cost Schedule'!$B:$F,4,FALSE) -> 12.5 | J71: 0 | L71: =VLOOKUP($P71,'Cost Schedule'!$B:$F,5,FALSE) -> Rate accounts for round trip haulage to Council landfill but excludes landfill fees. Input quantity against Waste disposal to Council landfill - fees for relevant waste type. | O71: 0 | P71: 1.54 | R71: Y
D72: =VLOOKUP($P72,'Cost Schedule'!$B:$F,2,FALSE) -> Waste disposal to Council landfill (industrial demolition / concrete / scrap metal) - haulage >10 km but <15 km | E72: Y | G72: =VLOOKUP($P72,'Cost Schedule'!$B:$F,3,FALSE) -> tonne | H72: =VLOOKUP($P72,'Cost Schedule'!$B:$F,4,FALSE) -> 32 | J72: 0 | L72: =VLOOKUP($P72,'Cost Schedule'!$B:$F,5,FALSE) -> Rate accounts for round trip haulage to Council landfill but excludes landfill fees. Input quantity against Waste disposal to Council landfill - fees for relevant waste type. | O72: 0 | P72: 1.55 | R72: Y
D73: =VLOOKUP($P73,'Cost Schedule'!$B:$F,2,FALSE) -> Waste disposal to Council landfill (industrial demolition / concrete / scrap metal) - haulage >15 km but <25 km | E73: Y | G73: =VLOOKUP($P73,'Cost Schedule'!$B:$F,3,FALSE) -> tonne | H73: =VLOOKUP($P73,'Cost Schedule'!$B:$F,4,FALSE) -> 36 | J73: 0 | L73: =VLOOKUP($P73,'Cost Schedule'!$B:$F,5,FALSE) -> Rate accounts for round trip haulage to Council landfill but excludes landfill fees. Input quantity against Waste disposal to Council landfill - fees for relevant waste type. | O73: 0 | P73: 1.56 | R73: Y
D74: =VLOOKUP($P74,'Cost Schedule'!$B:$F,2,FALSE) -> Waste disposal to Council landfill (industrial demolition / concrete / scrap metal) - haulage >25 km but <50 km | E74: Y | G74: =VLOOKUP($P74,'Cost Schedule'!$B:$F,3,FALSE) -> allow | H74: =VLOOKUP($P74,'Cost Schedule'!$B:$F,4,FALSE) -> Use alternate rate cell | J74: =IF($E74="Y",IF(I74=0,F74*0,F74*I74),"") -> 0 | L74: =VLOOKUP($P74,'Cost Schedule'!$B:$F,5,FALSE) -> Rate accounts for round trip haulage to Council landfill but excludes landfill fees. Input quantity against Waste disposal to Council landfill - fees for relevant waste type. | O74: 0 | P74: 1.57 | R74: Y
D75: =VLOOKUP($P75,'Cost Schedule'!$B:$F,2,FALSE) -> Waste disposal to Council landfill - fees (general waste) | E75: Y | G75: =VLOOKUP($P75,'Cost Schedule'!$B:$F,3,FALSE) -> tonne | H75: =VLOOKUP($P75,'Cost Schedule'!$B:$F,4,FALSE) -> 193 | J75: 0 | L75: =VLOOKUP($P75,'Cost Schedule'!$B:$F,5,FALSE) -> Fee for waste disposal of general waste to local Council landfill; transport rates separate. Please note that this is not applicable to operations with approval for building and demolition waste disposal on site. | O75: =IF(I75="",0,1) -> 0 | P75: 1.58 | R75: =E75 -> Y
D76: =VLOOKUP($P76,'Cost Schedule'!$B:$F,2,FALSE) -> Waste disposal to Council landfill - fees (industrial demolition / concrete / scrap metal) | E76: Y | G76: =VLOOKUP($P76,'Cost Schedule'!$B:$F,3,FALSE) -> tonne | H76: =VLOOKUP($P76,'Cost Schedule'!$B:$F,4,FALSE) -> 174 | J76: =IF($E76="Y",IF(I76=0,F76*H76,F76*I76),"") -> 0 | L76: =VLOOKUP($P76,'Cost Schedule'!$B:$F,5,FALSE) -> Fee for waste disposal of industrial demolition / concrete / scrap metal waste to local Council landfill; transport rates separate. Rate does not assume material is recyclable. Please note that this is not applicable to operations with approval for building and demolition waste disposal on site. | O76: 0 | P76: 1.59 | R76: Y
C77: =C15&" Subtotal" -> Termination of Services and Demolition Works Subtotal | J77: =SUM(J15:J76) -> 0
C78: Rail Infrastructure | D78: =VLOOKUP($P78,'Cost Schedule'!$B:$F,2,FALSE) -> Remove rail loop and spur, ballast etc. and disposal on-site/locally | E78: Y | G78: =VLOOKUP($P78,'Cost Schedule'!$B:$F,3,FALSE) -> m | H78: =VLOOKUP($P78,'Cost Schedule'!$B:$F,4,FALSE) -> 60 | J78: =IF($E78="Y",IF(I78=0,F78*H78,F78*I78),"") -> 0 | K78: =IF(I78<>"","insert additional information here","") ->  | L78: =VLOOKUP($P78,'Cost Schedule'!$B:$F,5,FALSE) -> Remove all materials to allow area to be reshaped and rehabilitated - does not include transport to regional disposal facility or equivalent. | O78: 0 | P78: 2.01 | R78: Y
D79: =VLOOKUP($P79,'Cost Schedule'!$B:$F,2,FALSE) -> Remove train loading facilities and disposal on-site/locally | E79: Y | G79: =VLOOKUP($P79,'Cost Schedule'!$B:$F,3,FALSE) -> m2 | H79: =VLOOKUP($P79,'Cost Schedule'!$B:$F,4,FALSE) -> 185 | J79: =IF($E79="Y",IF(I79=0,F79*H79,F79*I79),"") -> 0 | K79: =IF(I79<>"","insert additional information here","") ->  | L79: =VLOOKUP($P79,'Cost Schedule'!$B:$F,5,FALSE) -> Remove rail load point infrastructure including gantries and control structures. Does not include transport to regional disposal facility or equivalent. | O79: 0 | P79: 2.02 | R79: Y
D80: =VLOOKUP($P80,'Cost Schedule'!$B:$F,2,FALSE) -> Reshape rail spur and load out areas. Does not include growth media and revegetation | E80: Y | G80: =VLOOKUP($P80,'Cost Schedule'!$B:$F,3,FALSE) -> ha | H80: =VLOOKUP($P80,'Cost Schedule'!$B:$F,4,FALSE) -> 2860 | J80: =IF($E80="Y",IF(I80=0,F80*H80,F80*I80),"") -> 0 | K80: =IF(I80<>"","insert additional information here","") ->  | L80: =VLOOKUP($P80,'Cost Schedule'!$B:$F,5,FALSE) -> D10 Dozer and 16 H Grader (50% utilisation). | O80: 0 | P80: 2.03 | R80: Y
C81: =C78&" Subtotal" -> Rail Infrastructure Subtotal | J81: =SUM(J78:J80) -> 0
C82: Contaminated Materials | D82: =VLOOKUP($P82,'Cost Schedule'!$B:$F,2,FALSE) -> Undertake a preliminary site investigation (Phase 1). This accounts for current and historical locations where areas of disturbance are clustered. If there are multiple cluster areas on site, multiple studies may be required. | E82: Y | G82: =VLOOKUP($P82,'Cost Schedule'!$B:$F,3,FALSE) -> Cluster | H82: =VLOOKUP($P82,'Cost Schedule'!$B:$F,4,FALSE) -> 15000 | J82: =IF($E82="Y",IF(I82=0,F82*H82,F82*I82),"") -> 0 | K82: =IF(I82<>"","insert additional information here","") ->  | L82: =VLOOKUP($P82,'Cost Schedule'!$B:$F,5,FALSE) -> The preliminary investigation would include at minimum a desktop assessment of the area and site history, incidents, etc. as per the National Environmental Protection (Site Contamination) Measure (NEPM) Phase 1 assessment (EP Act Section 389 (2) (iv)) or similar approved and recognised assessment method. A cluster may include: - Mine infrastructure (i.e., fuel / chemical store, workshop, vehicle wash-down, sewage treatment etc.) - Processing plants (i.e., ore and product storage, mine waste storage and disposal, rail load-out etc.) - Remote pit-top facilities (i.e., vehicle re-fuel, sewage treatment, secondary workshop, chemical storage etc.) | O82: =IF(I82="",0,1) -> 0 | P82: 3.01a | R82: Y
D83: =VLOOKUP($P83,'Cost Schedule'!$B:$F,2,FALSE) -> Undertake an intrusive site investigation on sites with small footprints to investigate e.g. ≤15 ha. This accounts for current and historical locations where areas of disturbance are clustered. If there are multiple cluster areas on site, multiple intrusive investigations should be included. | E83: Y | G83: =VLOOKUP($P83,'Cost Schedule'!$B:$F,3,FALSE) -> Cluster | H83: =VLOOKUP($P83,'Cost Schedule'!$B:$F,4,FALSE) -> 44000 | J83: 0 | L83: =VLOOKUP($P83,'Cost Schedule'!$B:$F,5,FALSE) -> The intrusive investigation would include at minimum a site walkover and field sampling as per the National Environmental Protection (Site Contamination) Measure (NEPM) Phase 2 intrusive investigation (EP Act Section 389 (2) (iv)) or similar approved and recognised assessment method. Note: An intrusive investigation is not required for all contaminated areas and should be applied considering the rehabilitation program, site history, location, etc. A cluster area where it is highly anticipated that contamination has occurred (i.e., underground tanks / pipes that are known to have leaked, chemical stores with earthen bunds, around ineffective oil/water separators etc.) and further field work is required involving intrusive investigation. Assumes site is easily accessible and a small area e.g. ~10-15 ha requires investigation and testing (test pits, boreholes, etc.) based on Sampling and Analysis Quality Plan. Includes SAQP, fieldwork, sampling and analysis. | O83: 0 | P83: 3.01b | R83: =E83 -> Y
D84: =VLOOKUP($P84,'Cost Schedule'!$B:$F,2,FALSE) -> Undertake an intrusive site investigation on sites with large footprints to investigate e.g. >15 ha. This accounts for current and historical locations where areas of disturbance are clustered. If there are multiple cluster areas on site, multiple intrusive investigations should be included. | E84: Y | G84: =VLOOKUP($P84,'Cost Schedule'!$B:$F,3,FALSE) -> Cluster | H84: =VLOOKUP($P84,'Cost Schedule'!$B:$F,4,FALSE) -> 106000 | J84: 0 | L84: =VLOOKUP($P84,'Cost Schedule'!$B:$F,5,FALSE) -> The intrusive investigation would include at minimum a site walkover and field sampling as per the National Environmental Protection (Site Contamination) Measure (NEPM) Phase 2 intrusive investigation (EP Act Section 389 (2) (iv)) or similar approved and recognised assessment method. Note: An intrusive investigation is not required for all contaminated areas and should be applied considering the rehabilitation program, site history, location, etc. A cluster area where it is highly anticipated that contamination has occurred (i.e., underground tanks / pipes that are known to have leaked, chemical stores with earthen bunds, around ineffective oil/water separators etc.) and further field work is required involving intrusive investigation. Assume site has a history of contamination and/or a large area >15 ha requires investigation and testing (test pits, boreholes, etc.) based on Sampling and Analysis Quality Plan. Includes SAQP, fieldwork, sampling and analysis. | O84: 0 | P84: 3.01c | R84: =E84 -> Y
D85: =VLOOKUP($P85,'Cost Schedule'!$B:$F,2,FALSE) -> Develop a Remediation Action Plan on sites with small footprints based on outcomes of intrusive investigation including strategies to address contamination exceedances | E85: Y | G85: =VLOOKUP($P85,'Cost Schedule'!$B:$F,3,FALSE) -> allow | H85: =VLOOKUP($P85,'Cost Schedule'!$B:$F,4,FALSE) -> 35000 | J85: 0 | L85: =VLOOKUP($P85,'Cost Schedule'!$B:$F,5,FALSE) -> Develop remediation plan for approval including designs and detailed costs. Costs may increase if detailed designs required for construction. | O85: 0 | P85: 3.01d | R85: =E85 -> Y
D86: =VLOOKUP($P86,'Cost Schedule'!$B:$F,2,FALSE) -> Develop a Remediation Action Plan on sites with large footprints based on outcomes of intrusive investigation including strategies to address contamination exceedances | E86: Y | G86: =VLOOKUP($P86,'Cost Schedule'!$B:$F,3,FALSE) -> allow | H86: =VLOOKUP($P86,'Cost Schedule'!$B:$F,4,FALSE) -> Use alternate rate cell | J86: =IF($E86="Y",IF(I86=0,F86*0,F86*I86),"") -> 0 | L86: =VLOOKUP($P86,'Cost Schedule'!$B:$F,5,FALSE) -> Assumes complex site; detailed design drawings required for cover. | O86: 0 | P86: 3.01e | R86: =E86 -> Y
D87: =VLOOKUP($P87,'Cost Schedule'!$B:$F,2,FALSE) -> Removal and disposal of contaminated water from tanks, bunded areas and sumps | E87: Y | G87: =VLOOKUP($P87,'Cost Schedule'!$B:$F,3,FALSE) -> L | H87: =VLOOKUP($P87,'Cost Schedule'!$B:$F,4,FALSE) -> 0.35 | J87: 0 | L87: =VLOOKUP($P87,'Cost Schedule'!$B:$F,5,FALSE) -> Cost for recent sump clean-up from resource activity - requires specialists to treat. | O87: 0 | P87: 3.02 | R87: Y
D88: =VLOOKUP($P88,'Cost Schedule'!$B:$F,2,FALSE) -> Remove material (carbonaceous / metalliferous spillage or otherwise) from footprint of the process facility (leach pads) / stockpile area (ROM product) / roads and dump in a void on-site (Select Haul Distance from list) | E88: Y | G88: m3 | H88: =VLOOKUP($P88,'Cost Schedule'!$B:$F,4,FALSE) -> Select from List | J88: =IF($E88="Y",IF(I88="",IF($H88="Select from List","",IF(I88=0,F88*H88,"")),F88*I88),"") ->  | K88: Select Haul Distance Here | L88: =VLOOKUP($P88,'Cost Schedule'!$B:$F,5,FALSE) -> This item includes scraping and removal of the volume of carbonaceous material using dozer, grader etc. to make safe an area and enable the establishment of rehabilitation. | O88: 0 | P88: =IF(Q88=1,"3.03-",IF(Q88=2,"3.03a",IF(Q88=3,"3.03b",IF(Q88=4,"3.03c",IF(Q88=5,"3.03d","3.03"))))) -> 3.03- | Q88: =VLOOKUP(K88,Select_Haul_Distance_Index,2,FALSE) -> 1 | R88: Y
D89: =VLOOKUP($P89,'Cost Schedule'!$B:$F,2,FALSE) ->  | K89: =IF(I88<>"","insert additional information here","") ->  | R89: =R88 -> Y
D90: =VLOOKUP($P90,'Cost Schedule'!$B:$F,2,FALSE) -> Load, cart and dispose of Hazardous classified contaminated material off site to a licensed landfill. Assumes cartage to a licensed landfill. | E90: Y | G90: =VLOOKUP($P90,'Cost Schedule'!$B:$F,3,FALSE) -> m3 | H90: =VLOOKUP($P90,'Cost Schedule'!$B:$F,4,FALSE) -> 800 | J90: =IF($E90="Y",IF(I90=0,F90*H90,F90*I90),"") -> 0 | K90: =IF(I90<>"","insert additional information here","") ->  | L90: =VLOOKUP($P90,'Cost Schedule'!$B:$F,5,FALSE) -> Includes load, haul and dump fees to a licensed facility. | O90: =IF(I90="",0,1) -> 0 | P90: 3.04a | R90: Y
D91: =VLOOKUP($P91,'Cost Schedule'!$B:$F,2,FALSE) -> Load, cart and disposal of Restricted classified contaminated material off site to a licensed landfill. Add $50/m3 for cartage from regional areas | E91: Y | G91: =VLOOKUP($P91,'Cost Schedule'!$B:$F,3,FALSE) -> m4 | H91: =VLOOKUP($P91,'Cost Schedule'!$B:$F,4,FALSE) -> 660 | J91: =IF($E91="Y",IF(I91=0,F91*H91,F91*I91),"") -> 0 | K91: =IF(I91<>"","insert additional information here","") ->  | L91: =VLOOKUP($P91,'Cost Schedule'!$B:$F,5,FALSE) -> Includes load, haul and dump fees to a licensed facility. | O91: 0 | P91: 3.04b | R91: Y
D92: =VLOOKUP($P92,'Cost Schedule'!$B:$F,2,FALSE) -> Load, cart and disposal of Low Level contaminated material off site to a licensed landfill. Add $50/m3 for cartage to regional landfill | E92: Y | G92: =VLOOKUP($P92,'Cost Schedule'!$B:$F,3,FALSE) -> m3 | H92: =VLOOKUP($P92,'Cost Schedule'!$B:$F,4,FALSE) -> 220 | J92: 0 | K92: =IF(I92<>"","insert additional information here","") ->  | L92: =VLOOKUP($P92,'Cost Schedule'!$B:$F,5,FALSE) -> Includes load, haul and dump fees to a licensed facility. | O92: 0 | P92: 3.05 | R92: Y
D93: =VLOOKUP($P93,'Cost Schedule'!$B:$F,2,FALSE) -> Onsite remediation of hydrocarbon contaminated soils manual land farming (Select Volume from List) | E93: Y | G93: =VLOOKUP($P93,'Cost Schedule'!$B:$F,3,FALSE) -> m3 | H93: =VLOOKUP($P93,'Cost Schedule'!$B:$F,4,FALSE) -> Select from List | J93: =IF($E93="Y",IF(I93="",IF($H93="Select from List","",IF(I93=0,F93*H93,"")),F93*I93),"") ->  | K93: Select Volume Here | L93: =VLOOKUP($P93,'Cost Schedule'!$B:$F,5,FALSE) -> Spreading of contaminated soils on a prepared surface and stimulation of aerobic microbial activity within the soils through aeration and/or the addition of minerals, nutrients and moisture to promote the aerobic degradation of organic chemicals - time frame of up to 24 months. | O93: =IF(I95="",0,1) -> 0 | P93: =IF(Q93=1,"3.06-",IF(Q93=2,"3.06a",IF(Q93=3,"3.06b",IF(Q93=4,"3.06c",IF(Q93=5,"3.06d","3.06"))))) -> 3.06- | Q93: =VLOOKUP(K93,Select_Volume_Index,2,FALSE) -> 1 | R93: Y
H94: =VLOOKUP($P94,'Cost Schedule'!$B:$F,4,FALSE) ->  | K94: =IF(I93<>"","insert additional information here","") ->  | R94: =R93 -> Y
D95: =VLOOKUP($P95,'Cost Schedule'!$B:$F,2,FALSE) -> Mobilisation of cement stabilisation plant and equipment for hydrocarbon (i.e., PAH, long chain hydrocarbons, etc.) contaminated soil treatment | E95: Y | G95: =VLOOKUP($P95,'Cost Schedule'!$B:$F,3,FALSE) -> Item | H95: =VLOOKUP($P95,'Cost Schedule'!$B:$F,4,FALSE) -> 150000 | J95: 0 | K95: =IF(I95<>"","insert additional information here","") ->  | L95: =VLOOKUP($P95,'Cost Schedule'!$B:$F,5,FALSE) -> Required if treatment of hydrocarbon contamination is required to be fast tracked. | O95: 0 | P95: 3.07 | R95: Y
D96: =VLOOKUP($P96,'Cost Schedule'!$B:$F,2,FALSE) -> On-site remediation of hydrocarbon contaminated soils - using a mobile treatment unit | E96: Y | G96: =VLOOKUP($P96,'Cost Schedule'!$B:$F,3,FALSE) -> m3 | H96: =VLOOKUP($P96,'Cost Schedule'!$B:$F,4,FALSE) -> 165 | J96: 0 | L96: =VLOOKUP($P96,'Cost Schedule'!$B:$F,5,FALSE) -> Additional cost as the treatment process is fast tracked. | O96: 0 | P96: 3.08 | R96: Y
D97: =VLOOKUP($P97,'Cost Schedule'!$B:$F,2,FALSE) -> Remove and dispose of asbestos (<750 m2) | E97: Y | G97: =VLOOKUP($P97,'Cost Schedule'!$B:$F,3,FALSE) -> m2 | H97: =VLOOKUP($P97,'Cost Schedule'!$B:$F,4,FALSE) -> 50 | J97: 0 | L97: =VLOOKUP($P97,'Cost Schedule'!$B:$F,5,FALSE) -> Where an assessment/estimation has been made to confirm the volume of asbestos to be removed. | O97: 0 | P97: 3.09 | R97: Y
D98: =VLOOKUP($P98,'Cost Schedule'!$B:$F,2,FALSE) -> Remove and dispose of asbestos (>750 m2) | E98: Y | G98: =VLOOKUP($P98,'Cost Schedule'!$B:$F,3,FALSE) -> m2 | H98: =VLOOKUP($P98,'Cost Schedule'!$B:$F,4,FALSE) -> 40 | J98: 0 | L98: =VLOOKUP($P98,'Cost Schedule'!$B:$F,5,FALSE) -> Where an assessment/estimation has been made to confirm the volume of asbestos to be removed. | O98: 0 | P98: 3.1 | R98: Y
D99: =VLOOKUP($P99,'Cost Schedule'!$B:$F,2,FALSE) -> Waste disposal to Council landfill - fees (asbestos) | E99: Y | G99: =VLOOKUP($P99,'Cost Schedule'!$B:$F,3,FALSE) -> tonne | H99: =VLOOKUP($P99,'Cost Schedule'!$B:$F,4,FALSE) -> 290 | J99: 0 | L99: =VLOOKUP($P99,'Cost Schedule'!$B:$F,5,FALSE) -> Landfill fees to regional landfill. | O99: 0 | P99: 3.11 | R99: Y
D100: =VLOOKUP($P100,'Cost Schedule'!$B:$F,2,FALSE) -> Treatment of known Acid Sulfate Soils | E100: Y | G100: =VLOOKUP($P100,'Cost Schedule'!$B:$F,3,FALSE) -> ha | H100: =VLOOKUP($P100,'Cost Schedule'!$B:$F,4,FALSE) -> 2580 | J100: 0 | L100: =VLOOKUP($P100,'Cost Schedule'!$B:$F,5,FALSE) -> Assumes ASS is treatable via neutralisation and does not require capping and isolation. Assumes 1% by weight lime addition and treatment to 100 mm depth only. | O100: 0 | P100: 3.12 | R100: =E100 -> Y
D101: =VLOOKUP($P101,'Cost Schedule'!$B:$F,2,FALSE) -> Removal and disposal of plastic liner (i.e. dam, leach pad, sump etc.) | E101: Y | G101: =VLOOKUP($P101,'Cost Schedule'!$B:$F,3,FALSE) -> m2 | H101: =VLOOKUP($P101,'Cost Schedule'!$B:$F,4,FALSE) -> 1 | J101: =IF($E101="Y",IF(I101=0,F101*H101,F101*I101),"") -> 0 | K101: =IF(I101<>"","insert additional information here","") ->  | L101: =VLOOKUP($P101,'Cost Schedule'!$B:$F,5,FALSE) -> Provisional sum for cutting using ripping tynes and on-site disposal of the liner. | O101: 0 | P101: 3.13 | R101: Y
D102: =VLOOKUP($P102,'Cost Schedule'!$B:$F,2,FALSE) -> Long haulage brine/salt for disposal (Select Haul Distance from list) | E102: Y | G102: =VLOOKUP($P102,'Cost Schedule'!$B:$F,3,FALSE) -> tonne | H102: =VLOOKUP($P102,'Cost Schedule'!$B:$F,4,FALSE) -> Select from List | J102: =IF($E102="Y",IF(I102=0,IF($H102="Select from List","",IF(I102=0,F102*H102,"")),F102*I102),"") ->  | K102: Select Haul Distance Here | L102: =VLOOKUP($P102,'Cost Schedule'!$B:$F,5,FALSE) -> Costs for haulage to location for authorised disposal. | O102: =IF(I102="",0,1) -> 0 | P102: =IF(Q102=1,"3.14-",IF(Q102=2,"3.14a",IF(Q102=3,"3.14b",IF(Q102=4,"3.14c",IF(Q102=5,"3.14d","3.14"))))) -> 3.14- | Q102: =VLOOKUP(K102,Select_Haul_distance_Here_index,2,FALSE) -> 1 | R102: Y
K103: =IF(I102<>"","insert additional information here","") -> 
D104: =VLOOKUP($P104,'Cost Schedule'!$B:$F,2,FALSE) -> Brine disposal to landfill - fees only | E104: Y | G104: =VLOOKUP($P104,'Cost Schedule'!$B:$F,3,FALSE) -> tonne | H104: =VLOOKUP($P104,'Cost Schedule'!$B:$F,4,FALSE) -> 288 | J104: =IF($E104="Y",IF(I104=0,F104*H104,F104*I104),"") -> 0 | K104: =IF(I104<>"","insert additional information here","") ->  | L104: =VLOOKUP($P104,'Cost Schedule'!$B:$F,5,FALSE) -> Rate for trackable liquid levy of $78.20 per tonne and authorised disposal to landfill. | O104: =IF(I104="",0,1) -> 0 | P104: 3.14d | R104: =E104 -> Y
D105: =VLOOKUP($P105,'Cost Schedule'!$B:$F,2,FALSE) -> Long haulage water (clean or contaminated) (Select Haul Distance from list) | E105: Y | G105: =VLOOKUP($P105,'Cost Schedule'!$B:$F,3,FALSE) -> tonne | H105: =VLOOKUP($P105,'Cost Schedule'!$B:$F,4,FALSE) -> Select from List | J105: =IF($E105="Y",IF(I105=0,IF($H105="Select from List","",IF(I105=0,F105*H105,"")),F105*I105),"") ->  | K105: Select Haul Distance Here | L105: =VLOOKUP($P105,'Cost Schedule'!$B:$F,5,FALSE) -> Assumes transport in a 20,000 L tanker. Add disposal costs to additional items where warranted. | O105: =IF(I105="",0,1) -> 0 | P105: =IF(Q105=1,"3.15-",IF(Q105=2,"3.15a",IF(Q105=3,"3.15b",IF(Q105=4,"3.15c",IF(Q105=5,"3.15d","3.15"))))) -> 3.15- | Q105: =VLOOKUP(K105,Select_Haul_Dist_315_Index,2,FALSE) -> 1 | R105: Y
K106: =IF(I105<>"","insert additional information here","") -> 
C107: =C82&" Subtotal" -> Contaminated Materials Subtotal | J107: =SUM(J82:J105) -> 0 | R107: Y
C108: Vents, Shafts and Boreholes | D108: =VLOOKUP($P108,'Cost Schedule'!$B:$F,2,FALSE) -> Seal portals / drifts (width >3 m) – only entry seal / plug required with in front of access backfill with engineered fill for 5 m | E108: Y | G108: =VLOOKUP($P108,'Cost Schedule'!$B:$F,3,FALSE) -> allow | H108: =VLOOKUP($P108,'Cost Schedule'!$B:$F,4,FALSE) -> 126000 | J108: =IF($E108="Y",IF(I108=0,F108*H108,F108*I108),"") -> 0 | K108: =IF(I108<>"","insert additional information here","") ->  | L108: =VLOOKUP($P108,'Cost Schedule'!$B:$F,5,FALSE) -> This cost is not applicable to coal operations which require backfilling to MDG6001 or similar due to gases. Costs include engineering and QA/QC. Costs assume engineered fill backfilled between 2 x 1 m plugs for sealing, + haul material to backfill per >5 km distance + concrete pump and secondary support. | O108: =IF(I108="",0,1) -> 0 | P108: 4.01a | R108: Y
D109: =VLOOKUP($P109,'Cost Schedule'!$B:$F,2,FALSE) -> Seal portals / drifts (width >3 m) accessible to men and machinery requiring a bulkhead – grout backfill against a concrete bulkhead to be constructed | E109: Y | G109: =VLOOKUP($P109,'Cost Schedule'!$B:$F,3,FALSE) -> allow | H109: =VLOOKUP($P109,'Cost Schedule'!$B:$F,4,FALSE) -> 250000 | J109: 0 | L109: =VLOOKUP($P109,'Cost Schedule'!$B:$F,5,FALSE) -> Cost includes engineering the bulkhead and underground construction (access available) followed by grout backfill via workings and rehabilitation (reshape, bulk push and full rehabilitation). Assume tunnel length of 20 m. For every additional m add $7,250 for grouting. If no bulkhead required, deduct $60,000. | O109: 0 | P109: 4.01b | R109: Y
D110: =VLOOKUP($P110,'Cost Schedule'!$B:$F,2,FALSE) -> Seal portals / drifts (width >3 m) not accessible by men or machinery – grout backfill against a concrete bulkhead existing or to be constructed | E110: Y | G110: =VLOOKUP($P110,'Cost Schedule'!$B:$F,3,FALSE) -> allow | H110: =VLOOKUP($P110,'Cost Schedule'!$B:$F,4,FALSE) -> 250000 | J110: 0 | L110: =VLOOKUP($P110,'Cost Schedule'!$B:$F,5,FALSE) -> Cost includes engineering the bulkhead if required and construction via access directly above heading followed by grout backfill via boreholes every 10 m to fill voids and rehabilitation (bulk push, final trim, seeding and full rehabilitation). Assume tunnel length of 20 m. For every additional m add $8,700 for grouting. If no bulkhead required, deduct $60,000. Assumes any existing bulkhead is observable by camera and satisfies regulations and engineer (location, etc.). | O110: 0 | P110: 4.01c | R110: Y
D111: =VLOOKUP($P111,'Cost Schedule'!$B:$F,2,FALSE) -> Seal small adits (width ≤3 m) accessible by men and/or machinery or neither requiring a bulkhead –backfill with appropriate material against a concrete bulkhead existing or to be constructed. The rate includes reshaping and rehabilitation of the batter around the entrance of the adit | E111: Y | G111: =VLOOKUP($P111,'Cost Schedule'!$B:$F,3,FALSE) -> allow | H111: =VLOOKUP($P111,'Cost Schedule'!$B:$F,4,FALSE) -> 25000 | J111: 0 | L111: =VLOOKUP($P111,'Cost Schedule'!$B:$F,5,FALSE) -> Costs estimated from executed works program in NSW from multiple sites. Rate assumes standard works program with suitable access, and additional roof and rib stabilisation works etc. is not required. | O111: 0 | P111: 4.01d | R111: Y
D112: =VLOOKUP($P112,'Cost Schedule'!$B:$F,2,FALSE) -> Costs to grout fill tunnel via mine workings to seal and eliminate voids and/or likelihood of failures of ground | E112: Y | G112: =VLOOKUP($P112,'Cost Schedule'!$B:$F,3,FALSE) -> m | H112: =VLOOKUP($P112,'Cost Schedule'!$B:$F,4,FALSE) -> 7250 | J112: 0 | L112: =VLOOKUP($P112,'Cost Schedule'!$B:$F,5,FALSE) -> Workings are accessible to run grout lines via machine or seam dip is favourable i.e. dips inbye | O112: 0 | P112: 4.02a | R112: Y
D113: =VLOOKUP($P113,'Cost Schedule'!$B:$F,2,FALSE) -> Costs to grout fill tunnel by drilling directly above to seal and eliminate voids and/or likelihood of failures of ground | E113: Y | G113: =VLOOKUP($P113,'Cost Schedule'!$B:$F,3,FALSE) -> m | H113: =VLOOKUP($P113,'Cost Schedule'!$B:$F,4,FALSE) -> 8700 | J113: 0 | L113: =VLOOKUP($P113,'Cost Schedule'!$B:$F,5,FALSE) -> Area directly above heading is accessible by drill rig with depth of cover <30 m and access outbye. One borehole required every 10m to fill void. | O113: 0 | P113: 4.02b | R113: Y
D114: =VLOOKUP($P114,'Cost Schedule'!$B:$F,2,FALSE) -> Demolish ventilation fans | E114: Y | G114: =VLOOKUP($P114,'Cost Schedule'!$B:$F,3,FALSE) -> Item | H114: =VLOOKUP($P114,'Cost Schedule'!$B:$F,4,FALSE) -> 30000 | J114: 0 | L114: =VLOOKUP($P114,'Cost Schedule'!$B:$F,5,FALSE) -> Costs for demolition of ventilation fan prior to sealing shaft. | O114: 0 | P114: 4.03a | R114: Y
D115: =VLOOKUP($P115,'Cost Schedule'!$B:$F,2,FALSE) -> Seal and rehabilitate ventilation shafts on hard rock operations (no to low gas risk) or coal operations - allows for works in a remote location | E115: Y | G115: =VLOOKUP($P115,'Cost Schedule'!$B:$F,3,FALSE) -> allow | H115: =VLOOKUP($P115,'Cost Schedule'!$B:$F,4,FALSE) -> 150000 | J115: 0 | L115: =VLOOKUP($P115,'Cost Schedule'!$B:$F,5,FALSE) -> Rate accounts for a range of factors including variations in depth and size, accessibility limitations, equipment transport to the shaft etc. Assumes engineered fill is available within 10 km round trip and no bulkhead required. Excludes demolition of ventilation fans. | O115: 0 | P115: 4.03b | R115: Y
D116: =VLOOKUP($P116,'Cost Schedule'!$B:$F,2,FALSE) -> Maintenance and monitoring of sealed adits/portals and shafts (for a total of 5 years) | E116: Y | G116: =VLOOKUP($P116,'Cost Schedule'!$B:$F,3,FALSE) -> allow | H116: =VLOOKUP($P116,'Cost Schedule'!$B:$F,4,FALSE) -> 25000 | J116: 0 | L116: =VLOOKUP($P116,'Cost Schedule'!$B:$F,5,FALSE) -> Assume 1 x day visual inspection (10hrs inc’ travel) for suitably qualified / competent person + reporting, for an annual inspection @ $5,000 per year. Exclusions are intrusive investigation and testing (e.g. concrete strength etc). | O116: 0 | P116: 4.04 | R116: Y
D117: =VLOOKUP($P117,'Cost Schedule'!$B:$F,2,FALSE) -> Install gate or grill over the adit (Where site might be used by bats) | E117: Y | G117: =VLOOKUP($P117,'Cost Schedule'!$B:$F,3,FALSE) -> Item | H117: =VLOOKUP($P117,'Cost Schedule'!$B:$F,4,FALSE) -> 200000 | J117: 0 | L117: =VLOOKUP($P117,'Cost Schedule'!$B:$F,5,FALSE) -> Rate accounts for a range of factors including establishing clear access, and/or working in remote locations without services, and/or stabilisation works to prevent the entry collapsing and compromising the gate etc. | O117: 0 | P117: 4.05 | R117: Y
D118: =VLOOKUP($P118,'Cost Schedule'!$B:$F,2,FALSE) -> Option 1 - Coal bore hole Exploration boreholes – rehabilitate coal boreholes and drill pads as required | E118: Y | G118: =VLOOKUP($P118,'Cost Schedule'!$B:$F,3,FALSE) -> depth (m) | H118: =VLOOKUP($P118,'Cost Schedule'!$B:$F,4,FALSE) -> 44.55 | J118: 0 | L118: =VLOOKUP($P118,'Cost Schedule'!$B:$F,5,FALSE) -> Cost to grout and cap an open exploration borehole. Assume a 20 m x 20 m drill pad requires rehabilitation - push cover of nearby growth media, rip and seed. | O118: =IF(I118="",0,1) -> 0 | P118: 4.06a | R118: =E118 -> Y
D119: =VLOOKUP($P119,'Cost Schedule'!$B:$F,2,FALSE) -> Option 3 - Mineral RAB and aircore drill holes Exploration boreholes – backfill open Rotary Airblast (RAB) or aircore drill holes with cuttings | E119: Y | G119: =VLOOKUP($P119,'Cost Schedule'!$B:$F,3,FALSE) -> allow | H119: =VLOOKUP($P119,'Cost Schedule'!$B:$F,4,FALSE) -> 42.5 | J119: 0 | L119: =VLOOKUP($P119,'Cost Schedule'!$B:$F,5,FALSE) -> May include cutting of casing, installation of a casing cap, and/or manually backfilling the hole with drill cuttings. Does not include reshaping / ripping the drill pad, amelioration / seeding etc. | O119: 0 | P119: 4.06b | R119: Y
D120: =VLOOKUP($P120,'Cost Schedule'!$B:$F,2,FALSE) -> Option 2 - Mineral drill hole requiring grouting Exploration boreholes – grout and cap open bore holes | E120: Y | G120: =VLOOKUP($P120,'Cost Schedule'!$B:$F,3,FALSE) -> allow | H120: =VLOOKUP($P120,'Cost Schedule'!$B:$F,4,FALSE) -> 5700 | J120: 0 | L120: =VLOOKUP($P120,'Cost Schedule'!$B:$F,5,FALSE) -> Includes grouting and capping 100 - 200 m exploration boreholes to meet the requirements of Departmental Guidelines. | O120: 0 | P120: 4.07 | R120: Y
D121: =VLOOKUP($P121,'Cost Schedule'!$B:$F,2,FALSE) -> Boreholes – cap and seal open bore holes with steel casing (i.e., goaf drainage etc.) | E121: Y | G121: =VLOOKUP($P121,'Cost Schedule'!$B:$F,3,FALSE) -> allow | H121: =VLOOKUP($P121,'Cost Schedule'!$B:$F,4,FALSE) -> 6960 | J121: 0 | L121: =VLOOKUP($P121,'Cost Schedule'!$B:$F,5,FALSE) -> Holes deeper than 100 m - includes cutting steel collar 6 m below surface, grouting and capping. | O121: 0 | P121: 4.08 | R121: Y
D122: =VLOOKUP($P122,'Cost Schedule'!$B:$F,2,FALSE) -> Boreholes – cap and seal open bore holes - surface-to-in-seam gas drainage | E122: Y | G122: =VLOOKUP($P122,'Cost Schedule'!$B:$F,3,FALSE) -> allow | H122: =VLOOKUP($P122,'Cost Schedule'!$B:$F,4,FALSE) -> 17890 | J122: 0 | L122: =VLOOKUP($P122,'Cost Schedule'!$B:$F,5,FALSE) -> Surface-to-in-seam gas drainage boreholes. | O122: 0 | P122: 4.09 | R122: Y
D123: =VLOOKUP($P123,'Cost Schedule'!$B:$F,2,FALSE) -> Boreholes – cap and seal open bore holes - vertical gas drainage | E123: Y | G123: =VLOOKUP($P123,'Cost Schedule'!$B:$F,3,FALSE) -> allow | H123: =VLOOKUP($P123,'Cost Schedule'!$B:$F,4,FALSE) -> 16000 | J123: 0 | L123: =VLOOKUP($P123,'Cost Schedule'!$B:$F,5,FALSE) -> Vertical gas drainage boreholes. | O123: 0 | P123: 4.1 | R123: Y
D124: =VLOOKUP($P124,'Cost Schedule'!$B:$F,2,FALSE) -> Boreholes – grout (with concrete) cap and seal bore holes (i.e. where sealing aquifers) | E124: Y | G124: =VLOOKUP($P124,'Cost Schedule'!$B:$F,3,FALSE) -> allow | H124: =VLOOKUP($P124,'Cost Schedule'!$B:$F,4,FALSE) -> 35000 | J124: 0 | L124: =VLOOKUP($P124,'Cost Schedule'!$B:$F,5,FALSE) -> Includes multi skin sleaves to prevent aquifer mixing. | O124: 0 | P124: 4.11 | R124: Y
D125: =VLOOKUP($P125,'Cost Schedule'!$B:$F,2,FALSE) -> Boreholes – cap and seal service boreholes for UG coal operations | E125: Y | G125: =VLOOKUP($P125,'Cost Schedule'!$B:$F,3,FALSE) -> allow | H125: =VLOOKUP($P125,'Cost Schedule'!$B:$F,4,FALSE) -> 45000 | J125: 0 | L125: =VLOOKUP($P125,'Cost Schedule'!$B:$F,5,FALSE) -> Includes large diameter boreholes used for supplying electricity (66kV), compressed air, water, solsenic etc. | O125: 0 | P125: 4.12 | R125: Y
D126: =VLOOKUP($P126,'Cost Schedule'!$B:$F,2,FALSE) -> Option 4 - Mineral diamond drill hole Rehabilitation of diamond drill holes and pad including sealing drill holes for mineral exploration | E126: Y | G126: =VLOOKUP($P126,'Cost Schedule'!$B:$F,3,FALSE) -> Item | H126: =VLOOKUP($P126,'Cost Schedule'!$B:$F,4,FALSE) -> 2070 | J126: 0 | L126: =VLOOKUP($P126,'Cost Schedule'!$B:$F,5,FALSE) -> Bog out cuttings, remove fencing, remove rubbish, push sumps in, rehabilitate pads and tracks, cut and plug collars. Includes labour and equipment, disposal of rubbish locally on site | O126: 0 | P126: 4.13 | R126: Y
D127: =VLOOKUP($P127,'Cost Schedule'!$B:$F,2,FALSE) -> Option 5 - Mineral reverse circulation drill holes Rehabilitation of reverse circulation drill holes and pad including sealing drill holes for mineral exploration | E127: Y | G127: =VLOOKUP($P127,'Cost Schedule'!$B:$F,3,FALSE) -> Item | H127: =VLOOKUP($P127,'Cost Schedule'!$B:$F,4,FALSE) -> 1340 | J127: 0 | L127: =VLOOKUP($P127,'Cost Schedule'!$B:$F,5,FALSE) -> Sealing required, but not complete filling with concrete/grout | O127: 0 | P127: 4.14 | R127: Y
D128: =VLOOKUP($P128,'Cost Schedule'!$B:$F,2,FALSE) -> Option 6 - Rehabilitation of drill hole collars Rehabilitation of drill hole collars (mineral exploration) | E128: Y | G128: =VLOOKUP($P128,'Cost Schedule'!$B:$F,3,FALSE) -> each | H128: =VLOOKUP($P128,'Cost Schedule'!$B:$F,4,FALSE) -> 415 | J128: 0 | L128: =VLOOKUP($P128,'Cost Schedule'!$B:$F,5,FALSE) -> Cut collar, remove, cap, backfill capped collar and cover with nearby organic or growth material | O128: 0 | P128: 4.15 | R128: Y
C129: =C108&" Subtotal" -> Vents, Shafts and Boreholes Subtotal | J129: =SUM(J108:J128) -> 0 | R129: Y
C130: Roads and Tracks | D130: =VLOOKUP($P130,'Cost Schedule'!$B:$F,2,FALSE) -> Unsealed roads / vehicle park-up areas – minor works including deep rip and trim | E130: Y | G130: =VLOOKUP($P130,'Cost Schedule'!$B:$F,3,FALSE) -> ha | H130: =VLOOKUP($P130,'Cost Schedule'!$B:$F,4,FALSE) -> 1040 | J130: =IF($E130="Y",IF(I130=0,F130*H130,F130*I130),"") -> 0 | K130: =IF(I130<>"","insert additional information here","") ->  | L130: =VLOOKUP($P130,'Cost Schedule'!$B:$F,5,FALSE) -> Assumes ~6 m road width - 16H Grader. | O130: 0 | P130: 5.01 | R130: Y
D131: =VLOOKUP($P131,'Cost Schedule'!$B:$F,2,FALSE) -> Unsealed roads / access tracks / vehicle park-up areas with windrows and/or small earthen bunds – minor earthworks and deep rip and trim | E131: Y | G131: =VLOOKUP($P131,'Cost Schedule'!$B:$F,3,FALSE) -> ha | H131: =VLOOKUP($P131,'Cost Schedule'!$B:$F,4,FALSE) -> 1500 | J131: 0 | L131: =VLOOKUP($P131,'Cost Schedule'!$B:$F,5,FALSE) -> D10 Dozer @ $400 per hour and 16 H grader @ $230 per hour (50% utilisation) - no seed | O131: 0 | P131: 5.02 | R131: Y
D132: =VLOOKUP($P132,'Cost Schedule'!$B:$F,2,FALSE) -> Unsealed roads / vehicle park-up areas – Minor earthworks, final trim and deep rip and seed (pasture grass) | E132: Y | G132: =VLOOKUP($P132,'Cost Schedule'!$B:$F,3,FALSE) -> ha | H132: =VLOOKUP($P132,'Cost Schedule'!$B:$F,4,FALSE) -> 3700 | J132: 0 | L132: =VLOOKUP($P132,'Cost Schedule'!$B:$F,5,FALSE) -> D10 Dozer @ $400 per hour and 16 H grader @ $230 per hour (50% utilisation) - pasture grass seed | O132: 0 | P132: 5.03 | R132: Y
D133: =VLOOKUP($P133,'Cost Schedule'!$B:$F,2,FALSE) -> Unsealed roads / vehicle park-up areas – Minor earthworks, final trim and deep rip, ameliorate and seed (native tree/shrub/grass) | E133: Y | G133: =VLOOKUP($P133,'Cost Schedule'!$B:$F,3,FALSE) -> ha | H133: =VLOOKUP($P133,'Cost Schedule'!$B:$F,4,FALSE) -> 4485 | J133: 0 | L133: =VLOOKUP($P133,'Cost Schedule'!$B:$F,5,FALSE) -> D10 Dozer @ $400 per hour and 16 H grader @ $230 per hour (50% utilisation) - native tree/shrub seed | O133: 0 | P133: 5.04 | R133: Y
D134: =VLOOKUP($P134,'Cost Schedule'!$B:$F,2,FALSE) -> Unsealed roads / haul roads / vehicle park-up areas with windrows and/or small earthen bunds – Minor earthworks, final trim and deep rip, ameliorate and seed (pasture grass) | E134: Y | G134: =VLOOKUP($P134,'Cost Schedule'!$B:$F,3,FALSE) -> ha | H134: =VLOOKUP($P134,'Cost Schedule'!$B:$F,4,FALSE) -> 4870 | J134: 0 | L134: =VLOOKUP($P134,'Cost Schedule'!$B:$F,5,FALSE) -> D10 Dozer @ $400 per hour and 16 H grader @ $230 per hour (50% utilisation) - pasture grass seed | O134: 0 | P134: 5.05 | R134: Y
D135: =VLOOKUP($P135,'Cost Schedule'!$B:$F,2,FALSE) -> Unsealed roads / haul roads / vehicle park-up areas with windrows and/or small earthen bunds – Minor earthworks, final trim and deep rip, ameliorate and seed (native tree/shrub/grass) | E135: Y | G135: =VLOOKUP($P135,'Cost Schedule'!$B:$F,3,FALSE) -> ha | H135: =VLOOKUP($P135,'Cost Schedule'!$B:$F,4,FALSE) -> 7025 | J135: 0 | L135: =VLOOKUP($P135,'Cost Schedule'!$B:$F,5,FALSE) -> D10 Dozer @ $400 per hour and 16 H grader @ $230 per hour (50% utilisation) - native tree/shrub seed | O135: 0 | P135: 5.06 | R135: Y
D136: =VLOOKUP($P136,'Cost Schedule'!$B:$F,2,FALSE) -> Remove stabilised material (blue metal, aggregate etc.) from roadways and disposal on-site/locally (Select Haul Distance from list) | E136: Y | G136: =VLOOKUP($P136,'Cost Schedule'!$B:$F,3,FALSE) -> m3 | H136: =VLOOKUP($P136,'Cost Schedule'!$B:$F,4,FALSE) -> Select from List | J136: =IF($E136="Y",IF(I136="",IF($H136="Select from List","",IF(I136=0,F136*H136,"")),F136*I136),"") ->  | K136: Select Haul Distance Here | L136: =VLOOKUP($P136,'Cost Schedule'!$B:$F,5,FALSE) -> This item includes the scraping and removal of the volume of stabilised material from the road, laydown or other surface using an excavator, dozer and grader to enable the establishment of rehabilitation. | O136: 0 | P136: =IF(Q136=1,"5.07-",IF(Q136=2,"5.07a",IF(Q136=3,"5.07b",IF(Q136=4,"5.07c",IF(Q136=5,"5.07d","5.07"))))) -> 5.07- | Q136: =VLOOKUP(K136,Select_Haul_Distance_Index,2,FALSE) -> 1 | R136: Y
G137: =VLOOKUP($P137,'Cost Schedule'!$B:$F,3,FALSE) ->  | K137: =IF(I136<>"","insert additional information here","") ->  | R137: =R136 -> Y
C138: =C130&" Subtotal" -> Roads and Tracks Subtotal | J138: =SUM(J130:J137) -> 0 | R138: Y
C139: Earthworks / Structural Works | D139: =VLOOKUP($P139,'Cost Schedule'!$B:$F,2,FALSE) -> Major bulk pushing to achieve grades nominated in the approval/permit – Select Push Length | E139: Y | G139: m3 | H139: =VLOOKUP($P139,'Cost Schedule'!$B:$F,4,FALSE) -> Select from List | J139: =IF($E139="Y",IF(I139="",IF($H139="Select from List","",IF(I139=0,F139*H139,"")),F139*I139),"") ->  | K139: Select Push Length Here | L139: =VLOOKUP($P139,'Cost Schedule'!$B:$F,5,FALSE) -> Major bulk pushing to achieve grades nominated in the approval/permit | O139: 0 | P139: =IF(Q139=1,"7.01-",IF(Q139=2,"7.01a",IF(Q139=3,"7.01b",IF(Q139=4,"7.01c",IF(Q139=5,"7.01d","7.01-"))))) -> 7.01- | Q139: =VLOOKUP(K139,Select_Push_Length_Index,2,FALSE) -> 1 | R139: Y
K140: =IF(I139<>"","insert additional information here","") ->  | R140: =R139 -> Y
D141: =VLOOKUP($P141,'Cost Schedule'!$B:$F,2,FALSE) -> Minor reshaping and pushing | E141: Y | G141: =VLOOKUP($P141,'Cost Schedule'!$B:$F,3,FALSE) -> ha | H141: =VLOOKUP($P141,'Cost Schedule'!$B:$F,4,FALSE) -> 3900 | J141: =IF($E141="Y",IF(I141=0,F141*H141,F141*I141),"") -> 0 | K141: =IF(I141<>"","insert additional information here","") ->  | L141: =VLOOKUP($P141,'Cost Schedule'!$B:$F,5,FALSE) -> D10 Dozer @ $400 per hour and 16 H grader @ $230 per hour (50% utilisation). | O141: =IF(I141="",0,1) -> 0 | P141: 7.02 | R141: Y
D142: =VLOOKUP($P142,'Cost Schedule'!$B:$F,2,FALSE) -> Structural works, banks, waterways - contour banks, drainage channels and other soil conservation measures | E142: Y | G142: =VLOOKUP($P142,'Cost Schedule'!$B:$F,3,FALSE) -> ha | H142: =VLOOKUP($P142,'Cost Schedule'!$B:$F,4,FALSE) -> 1600 | J142: =IF($E142="Y",IF(I142=0,F142*H142,F142*I142),"") -> 0 | K142: =IF(I142<>"","insert additional information here","") ->  | L142: =VLOOKUP($P142,'Cost Schedule'!$B:$F,5,FALSE) -> Combination of dozer and excavator work plus grader for ~4 hours each per ha. | O142: =IF(I142="",0,1) -> 0 | P142: 7.03 | R142: Y
D143: =VLOOKUP($P143,'Cost Schedule'!$B:$F,2,FALSE) -> Construction of spine drains / drop structures and/or stabilising water course entry points - required for large catchments | E143: Y | G143: =VLOOKUP($P143,'Cost Schedule'!$B:$F,3,FALSE) -> m2 | H143: =VLOOKUP($P143,'Cost Schedule'!$B:$F,4,FALSE) -> 27 | J143: =IF($E143="Y",IF(I143=0,F143*H143,F143*I143),"") -> 0 | K143: =IF(I143<>"","insert additional information here","") ->  | L143: =VLOOKUP($P143,'Cost Schedule'!$B:$F,5,FALSE) -> Installation of on-site rock material (rip-rap) where managing water run-off from disturbed land and/or upon entry to water courses - prevents erosion of gully head (assumes competent material is locally available). If required to be sourced off site, assume an additional $20/m2. | O143: =IF(I143="",0,1) -> 0 | P143: 7.04 | R143: Y
C144: =C139&" Subtotal" -> Earthworks / Structural Works Subtotal | J144: =SUM(J139:J143) -> 0 | R144: Y
C145: Rehabilitation | D145: =VLOOKUP($P145,'Cost Schedule'!$B:$F,2,FALSE) -> Source, cart and spread growth media (Select Haul Distance from List) | E145: Y | G145: m3 | H145: =VLOOKUP($P145,'Cost Schedule'!$B:$F,4,FALSE) -> Select from List | J145: =IF($E145="Y",IF(I145="",IF($H145="Select from List","",IF(I145=0,F145*H145,"")),F145*I145),"") ->  | K145: Select Haul Distance Here | L145: =VLOOKUP($P145,'Cost Schedule'!$B:$F,5,FALSE) -> If topsoil is not available on-site, then Virgin Excavated Natural Material (VENM) may need to be externally sourced. | O145: 0 | P145: =IF(Q145=1,"9.01-",IF(Q145=2,"9.01a",IF(Q145=3,"9.01b",IF(Q145=4,"9.01c",IF(Q145=5,"9.01d","7.01-"))))) -> 9.01- | Q145: =VLOOKUP(K145,Select_Haul_Distance_Index,2,FALSE) -> 1 | R145: Y
K146: =IF(I145<>"","insert additional information here","") ->  | R146: =R145 -> Y
D147: =VLOOKUP($P147,'Cost Schedule'!$B:$F,2,FALSE) -> Fill dams, voids etc. - Source local material, cart and spread to cap or backfill, cap thickness determined by approval / permit (Select Haul Distance from List) | E147: Y | G147: m3 | H147: =VLOOKUP($P147,'Cost Schedule'!$B:$F,4,FALSE) -> Select from List | J147: =IF($E147="Y",IF(I147="",IF($H147="Select from List","",IF(I147=0,F147*H147,"")),F147*I147),"") ->  | K147: Select Haul Distance Here | L147: =VLOOKUP($P147,'Cost Schedule'!$B:$F,5,FALSE) -> This item includes the volume of material requiring backfill using an excavator and scraper to fill the void and enable the establishment of rehabilitation. | O147: 0 | P147: =IF(Q147=1,"9.02-",IF(Q147=2,"9.02a",IF(Q147=3,"9.02b",IF(Q147=4,"9.02c",IF(Q147=5,"9.02d","7.01-"))))) -> 9.02- | Q147: =VLOOKUP(K147,Select_Haul_Distance_Index,2,FALSE) -> 1 | R147: Y
K148: =IF(I147<>"","insert additional information here","") ->  | R148: =R147 -> Y
D149: =VLOOKUP($P149,'Cost Schedule'!$B:$F,2,FALSE) -> Shotcrete application on cuttings and steep slopes | E149: Y | G149: =VLOOKUP($P149,'Cost Schedule'!$B:$F,3,FALSE) -> m2 | H149: =VLOOKUP($P149,'Cost Schedule'!$B:$F,4,FALSE) -> 185 | J149: =IF($E149="Y",IF(I149=0,F149*H149,F149*I149),"") -> 0 | K149: =IF(I149<>"","insert additional information here","") ->  | L149: =VLOOKUP($P149,'Cost Schedule'!$B:$F,5,FALSE) -> This rate is used to rehabilitate steep slopes of weathered rock, roadway cuttings, etc that cannot be cut back and stabilised. | O149: =IF(I149="",0,1) -> 0 | P149: 9.03 | R149: Y
D150: =VLOOKUP($P150,'Cost Schedule'!$B:$F,2,FALSE) -> Trim, rock rake & deep rip (includes levelling / landscaping and rip in 1 direction) | E150: Y | G150: =VLOOKUP($P150,'Cost Schedule'!$B:$F,3,FALSE) -> ha | H150: =VLOOKUP($P150,'Cost Schedule'!$B:$F,4,FALSE) -> 1130 | J150: 0 | L150: =VLOOKUP($P150,'Cost Schedule'!$B:$F,5,FALSE) -> Undertaken using D10 dozer and 16M grader. | O150: 0 | P150: 9.04 | R150: Y
D151: =VLOOKUP($P151,'Cost Schedule'!$B:$F,2,FALSE) -> Deep rip hard stand / lay down areas | E151: Y | G151: =VLOOKUP($P151,'Cost Schedule'!$B:$F,3,FALSE) -> ha | H151: =VLOOKUP($P151,'Cost Schedule'!$B:$F,4,FALSE) -> 960 | J151: 0 | L151: =VLOOKUP($P151,'Cost Schedule'!$B:$F,5,FALSE) -> D10 deep ripping. | O151: 0 | P151: 9.05 | R151: Y
D152: =VLOOKUP($P152,'Cost Schedule'!$B:$F,2,FALSE) -> Planting mature trees (>15 cm) | E152: Y | G152: =VLOOKUP($P152,'Cost Schedule'!$B:$F,3,FALSE) -> allow | H152: =VLOOKUP($P152,'Cost Schedule'!$B:$F,4,FALSE) -> 15 | J152: 0 | L152: =VLOOKUP($P152,'Cost Schedule'!$B:$F,5,FALSE) -> 4 m centres. | O152: 0 | P152: 9.06 | R152: Y
D153: =VLOOKUP($P153,'Cost Schedule'!$B:$F,2,FALSE) -> Planting tube stock (<15 cm) | E153: Y | G153: =VLOOKUP($P153,'Cost Schedule'!$B:$F,3,FALSE) -> allow | H153: =VLOOKUP($P153,'Cost Schedule'!$B:$F,4,FALSE) -> 6.6 | J153: 0 | L153: =VLOOKUP($P153,'Cost Schedule'!$B:$F,5,FALSE) -> 4 m centres. | O153: 0 | P153: 9.07 | R153: Y
D154: =VLOOKUP($P154,'Cost Schedule'!$B:$F,2,FALSE) -> Direct seeding / fertiliser (pasture grass species) | E154: Y | G154: =VLOOKUP($P154,'Cost Schedule'!$B:$F,3,FALSE) -> ha | H154: =VLOOKUP($P154,'Cost Schedule'!$B:$F,4,FALSE) -> 1875 | J154: 0 | L154: =VLOOKUP($P154,'Cost Schedule'!$B:$F,5,FALSE) -> Includes treating, weighing, mixing with fertiliser + spreading by tractor or helicopter (aerial seeding). | O154: 0 | P154: 9.08 | R154: Y
D155: =VLOOKUP($P155,'Cost Schedule'!$B:$F,2,FALSE) -> Direct seeding / fertiliser (tree or native grass species) | E155: Y | G155: =VLOOKUP($P155,'Cost Schedule'!$B:$F,3,FALSE) -> ha | H155: =VLOOKUP($P155,'Cost Schedule'!$B:$F,4,FALSE) -> 4135 | J155: 0 | L155: =VLOOKUP($P155,'Cost Schedule'!$B:$F,5,FALSE) -> Includes treating, weighing, mixing with fertiliser + spreading by tractor or helicopter (aerial seeding). | O155: 0 | P155: 9.09 | R155: Y
D156: =VLOOKUP($P156,'Cost Schedule'!$B:$F,2,FALSE) -> Hydro-seeding with straw mulching and bitumen tack with native seed | E156: Y | G156: =VLOOKUP($P156,'Cost Schedule'!$B:$F,3,FALSE) -> m2 | H156: =VLOOKUP($P156,'Cost Schedule'!$B:$F,4,FALSE) -> 1.9 | J156: =IF($E156="Y",IF(I156=0,F156*H156,F156*I156),"") -> 0 | K156: =IF(I156<>"","insert additional information here","") ->  | L156: =VLOOKUP($P156,'Cost Schedule'!$B:$F,5,FALSE) -> Process to be used on flat well prepared surfaces under irrigation e.g. sewage treatment irrigation areas. Ranges from $0.15 - $0.50 depending on size and input variables. Native seed +$1.00 | O156: =IF(I156="",0,1) -> 0 | P156: 9.10a | R156: =E156 -> Y
D157: =VLOOKUP($P157,'Cost Schedule'!$B:$F,2,FALSE) -> Hydro-seeding with straw mulching and bitumen tack with pasture seed | E157: Y | G157: =VLOOKUP($P157,'Cost Schedule'!$B:$F,3,FALSE) -> m2 | H157: =VLOOKUP($P157,'Cost Schedule'!$B:$F,4,FALSE) -> 0.43 | J157: =IF($E157="Y",IF(I157=0,F157*H157,F157*I157),"") -> 0 | K157: =IF(I157<>"","insert additional information here","") ->  | L157: =VLOOKUP($P157,'Cost Schedule'!$B:$F,5,FALSE) -> Process to be used on flat well prepared surfaces under irrigation e.g. sewage treatment irrigation areas. Ranges from $0.15 - $0.50 depending on size and input variables. Pasture seed +$0.10 | O157: =IF(I157="",0,1) -> 0 | P157: 9.10b | R157: =E157 -> Y
D158: =VLOOKUP($P158,'Cost Schedule'!$B:$F,2,FALSE) -> Hydromulch - base grade or standard for flat areas that can be irrigated by water cart | E158: Y | G158: =VLOOKUP($P158,'Cost Schedule'!$B:$F,3,FALSE) -> m2 | H158: =VLOOKUP($P158,'Cost Schedule'!$B:$F,4,FALSE) -> 0.8 | J158: =IF($E158="Y",IF(I158=0,F158*H158,F158*I158),"") -> 0 | K158: =IF(I158<>"","insert additional information here","") ->  | L158: =VLOOKUP($P158,'Cost Schedule'!$B:$F,5,FALSE) -> Assumes use on flat areas with a gradient of less than 4:1, and where irrigation from water cart may be possible. Industry standard application rate of 2500kg/ha. Product will last short term (less than 3 months) and vegetation is required to grow ASAP for stability. This cost includes cover crop only, additional seeding required. | O158: =IF(I158="",0,1) -> 0 | P158: 9.10c | R158: =E158 -> Y
D159: =VLOOKUP($P159,'Cost Schedule'!$B:$F,2,FALSE) -> Hydromulch - bonded fibre matrix grade for steep areas to stabilise up to 12 months | E159: Y | G159: =VLOOKUP($P159,'Cost Schedule'!$B:$F,3,FALSE) -> m2 | H159: =VLOOKUP($P159,'Cost Schedule'!$B:$F,4,FALSE) -> 1.8 | J159: =IF($E159="Y",IF(I159=0,F159*H159,F159*I159),"") -> 0 | K159: =IF(I159<>"","insert additional information here","") ->  | L159: =VLOOKUP($P159,'Cost Schedule'!$B:$F,5,FALSE) -> Assumes use on steep areas where stabilisation is required for up to 12 months. Application rate of ~3500kg/ha. This cost includes cover crop only, additional seeding required. | O159: =IF(I159="",0,1) -> 0 | P159: 9.10d | R159: =E159 -> Y
D160: =VLOOKUP($P160,'Cost Schedule'!$B:$F,2,FALSE) -> Hydromulch - high performance flexible growth medium grade | E160: Y | G160: =VLOOKUP($P160,'Cost Schedule'!$B:$F,3,FALSE) -> m2 | H160: =VLOOKUP($P160,'Cost Schedule'!$B:$F,4,FALSE) -> 2.5 | J160: 0 | L160: =VLOOKUP($P160,'Cost Schedule'!$B:$F,5,FALSE) -> Assumes use on extreme slopes where stabilisation is required for up to 18 months. Application rate of ~4,000kg/ha minimum. This cost includes cover crop only, additional seeding required. | O160: 0 | P160: 9.10e | R160: Y
D161: =VLOOKUP($P161,'Cost Schedule'!$B:$F,2,FALSE) -> Single application of fertiliser (pasture) | E161: Y | G161: =VLOOKUP($P161,'Cost Schedule'!$B:$F,3,FALSE) -> ha | H161: =VLOOKUP($P161,'Cost Schedule'!$B:$F,4,FALSE) -> 420 | J161: 0 | L161: =VLOOKUP($P161,'Cost Schedule'!$B:$F,5,FALSE) -> Assumes 250 kg / ha. These rates have fluctuated over the last few years however in light of current conditions (lower fuel prices, reduced demand etc) this is a suitable standard rate. | O161: 0 | P161: 9.11 | R161: Y
D162: =VLOOKUP($P162,'Cost Schedule'!$B:$F,2,FALSE) -> Single application of fertiliser (trees) | E162: Y | G162: =VLOOKUP($P162,'Cost Schedule'!$B:$F,3,FALSE) -> ha | H162: =VLOOKUP($P162,'Cost Schedule'!$B:$F,4,FALSE) -> 140 | J162: 0 | L162: =VLOOKUP($P162,'Cost Schedule'!$B:$F,5,FALSE) -> These rates have fluctuated over the last few years however in light of current conditions (lower fuel prices, reduced demand etc) this is a suitable standard rate. | O162: 0 | P162: 9.12 | R162: Y
D163: =VLOOKUP($P163,'Cost Schedule'!$B:$F,2,FALSE) -> Spoil amelioration (adding lime / gypsum etc.) | E163: Y | G163: =VLOOKUP($P163,'Cost Schedule'!$B:$F,3,FALSE) -> ha | H163: =VLOOKUP($P163,'Cost Schedule'!$B:$F,4,FALSE) -> 1000 | J163: 0 | L163: =VLOOKUP($P163,'Cost Schedule'!$B:$F,5,FALSE) -> Assumes 2.5 t / ha as an average application rate. | O163: 0 | P163: 9.13 | R163: Y
D164: =VLOOKUP($P164,'Cost Schedule'!$B:$F,2,FALSE) -> growth media amelioration with biosolids | E164: Y | G164: =VLOOKUP($P164,'Cost Schedule'!$B:$F,3,FALSE) -> ha | H164: =VLOOKUP($P164,'Cost Schedule'!$B:$F,4,FALSE) -> 1015 | J164: 0 | L164: =VLOOKUP($P164,'Cost Schedule'!$B:$F,5,FALSE) -> Recent experience with agronomy projects. | O164: 0 | P164: 9.14 | R164: Y
D165: =VLOOKUP($P165,'Cost Schedule'!$B:$F,2,FALSE) -> Construct no-climb stock fence around rehabilitated areas | E165: Y | G165: =VLOOKUP($P165,'Cost Schedule'!$B:$F,3,FALSE) -> m | H165: =VLOOKUP($P165,'Cost Schedule'!$B:$F,4,FALSE) -> 22 | J165: 0 | L165: =VLOOKUP($P165,'Cost Schedule'!$B:$F,5,FALSE) -> Standard rate for no-climb stock fencing. | O165: 0 | P165: 9.16 | R165: Y
D166: =VLOOKUP($P166,'Cost Schedule'!$B:$F,2,FALSE) -> Construct standard stock fence around rehabilitated areas | E166: Y | G166: =VLOOKUP($P166,'Cost Schedule'!$B:$F,3,FALSE) -> m | H166: =VLOOKUP($P166,'Cost Schedule'!$B:$F,4,FALSE) -> 13 | J166: 0 | L166: =VLOOKUP($P166,'Cost Schedule'!$B:$F,5,FALSE) -> Standard rate for standard stock fencing. | O166: 0 | P166: 9.17 | R166: Y
D167: =VLOOKUP($P167,'Cost Schedule'!$B:$F,2,FALSE) -> Purchase and erect warning signs | E167: Y | G167: =VLOOKUP($P167,'Cost Schedule'!$B:$F,3,FALSE) -> allow | H167: =VLOOKUP($P167,'Cost Schedule'!$B:$F,4,FALSE) -> 250 | J167: 0 | L167: =VLOOKUP($P167,'Cost Schedule'!$B:$F,5,FALSE) -> Compliance with AS 1319-1994 - Safety signs for the occupational environment - installed every 25 m. | O167: 0 | P167: 9.18 | R167: Y
D168: =VLOOKUP($P168,'Cost Schedule'!$B:$F,2,FALSE) -> Supply from external sources virgin excavated natural material (VENM) for growth media. | E168: Y | G168: =VLOOKUP($P168,'Cost Schedule'!$B:$F,3,FALSE) -> m3 | H168: =VLOOKUP($P168,'Cost Schedule'!$B:$F,4,FALSE) -> 80.8 | J168: 0 | L168: =VLOOKUP($P168,'Cost Schedule'!$B:$F,5,FALSE) -> D7 to spread material at $205/hr, Excavator ($220/hr) load Artic Trucks (90c/km) from imported stockpile - allow nominal rate of $70/m3 for imported fill material. | O168: 0 | P168: 9.19 | R168: Y
D169: =VLOOKUP($P169,'Cost Schedule'!$B:$F,2,FALSE) -> Supply from external sources a combination of virgin excavated natural material (VENM) and spoil from large excavation for filing voids and/or capping etc. | E169: Y | G169: =VLOOKUP($P169,'Cost Schedule'!$B:$F,3,FALSE) -> m3 | H169: =VLOOKUP($P169,'Cost Schedule'!$B:$F,4,FALSE) -> 72.5 | J169: =IF($E169="Y",IF(I169=0,F169*H169,F169*I169),"") -> 0 | K169: =IF(I169<>"","insert additional information here","") ->  | L169: =VLOOKUP($P169,'Cost Schedule'!$B:$F,5,FALSE) -> D10 push into void at $270/hr, Excavator ($220/hr) load Artic Trucks (90c/km) from imported stockpile - allow nominal rate of $60/m3 for imported fill material. | O169: 0 | P169: 9.2 | R169: Y
D170: =VLOOKUP($P170,'Cost Schedule'!$B:$F,2,FALSE) -> Clearing and grubbing of trees and vegetation | E170: Y | G170: =VLOOKUP($P170,'Cost Schedule'!$B:$F,3,FALSE) -> ha | H170: =VLOOKUP($P170,'Cost Schedule'!$B:$F,4,FALSE) -> 4730 | J170: =IF($E170="Y",IF(I170=0,F170*H170,F170*I170),"") -> 0 | K170: =IF(I170<>"","insert additional information here","") ->  | L170: =VLOOKUP($P170,'Cost Schedule'!$B:$F,5,FALSE) -> Clearing and grubbing of light vegetation growth e.g. regrowth | O170: 0 | P170: 9.21 | R170: Y
D171: =VLOOKUP($P171,'Cost Schedule'!$B:$F,2,FALSE) -> Topsoil stripping | E171: Y | G171: =VLOOKUP($P171,'Cost Schedule'!$B:$F,3,FALSE) -> m3 | H171: =VLOOKUP($P171,'Cost Schedule'!$B:$F,4,FALSE) -> 4.8625 | J171: =IF($E171="Y",IF(I171=0,F171*H171,F171*I171),"") -> 0 | K171: =IF(I171<>"","insert additional information here","") ->  | L171: =VLOOKUP($P171,'Cost Schedule'!$B:$F,5,FALSE) -> Stripping or topsoil at an approximate depth of 0.2 m into stockpiles; load and haul to final rehabilitation location required or respreading where necessary. | O171: 0 | P171: 9.22 | R171: Y
D172: =VLOOKUP($P172,'Cost Schedule'!$B:$F,2,FALSE) -> Growth media supplementation with manure | E172: Y | G172: =VLOOKUP($P172,'Cost Schedule'!$B:$F,3,FALSE) -> ha | H172: =VLOOKUP($P172,'Cost Schedule'!$B:$F,4,FALSE) -> 747.5 | J172: =IF($E172="Y",IF(I172=0,F172*H172,F172*I172),"") -> 0 | K172: =IF(I172<>"","insert additional information here","") ->  | L172: =VLOOKUP($P172,'Cost Schedule'!$B:$F,5,FALSE) -> Addition of manure to improve soil quality. | O172: 0 | P172: 9.23 | R172: Y
D173: =VLOOKUP($P173,'Cost Schedule'!$B:$F,2,FALSE) -> Utilise biotic soil media - organic topsoil alternative | E173: Y | G173: =VLOOKUP($P173,'Cost Schedule'!$B:$F,3,FALSE) -> m2 | H173: =VLOOKUP($P173,'Cost Schedule'!$B:$F,4,FALSE) -> 2.5 | J173: 0 | L173: =VLOOKUP($P173,'Cost Schedule'!$B:$F,5,FALSE) -> Material that can be applied as an alternative to spreading topsoil prior to hydromulching. | O173: 0 | P173: 9.24a | R173: Y
C174: =C145&" Subtotal" -> Rehabilitation Subtotal | J174: =SUM(J145:J173) -> 0 | R174: Y
C175: Water Management | D175: =VLOOKUP($P175,'Cost Schedule'!$B:$F,2,FALSE) -> Clean water dams to be retained after decommissioning – make safe and minor earthworks | E175: Y | G175: =VLOOKUP($P175,'Cost Schedule'!$B:$F,3,FALSE) -> allow | H175: =VLOOKUP($P175,'Cost Schedule'!$B:$F,4,FALSE) -> 2500 | J175: =IF($E175="Y",IF(I175=0,F175*H175,F175*I175),"") -> 0 | K175: =IF(I175<>"","insert additional information here","") ->  | L175: =VLOOKUP($P175,'Cost Schedule'!$B:$F,5,FALSE) -> Provisional sum for earthworks and revegetation required to rehabilitate dam batters etc suitable for re-use by an alternate land-user - D6 Dozer (or similar) @ ~$200 per hour and pasture grass. | O175: =IF(I175="",0,1) -> 0 | P175: 10.03a | R175: Y
D176: =VLOOKUP($P176,'Cost Schedule'!$B:$F,2,FALSE) -> Large clean water dams (i.e. ≥ 2 ha) to be retained after mine closure – make safe and minor earthworks | E176: Y | G176: =VLOOKUP($P176,'Cost Schedule'!$B:$F,3,FALSE) -> allow | H176: =VLOOKUP($P176,'Cost Schedule'!$B:$F,4,FALSE) -> 10500 | J176: =IF($E176="Y",IF(I176=0,F176*H176,F176*I176),"") -> 0 | K176: =IF(I176<>"","insert additional information here","") ->  | L176: =VLOOKUP($P176,'Cost Schedule'!$B:$F,5,FALSE) -> Provisional sum for earthworks and revegetation required to rehabilitate dam batters etc suitable for re-use by an alternate land-user - D6 Dozer (or similar) + pasture grass. | O176: =IF(I176="",0,1) -> 0 | P176: 10.03b | R176: Y
D177: =VLOOKUP($P177,'Cost Schedule'!$B:$F,2,FALSE) -> Remove sediments from the floor of the dam to enable it to be converted into clean water structure (Select Haul Distance from list) | E177: Y | G177: =VLOOKUP($P177,'Cost Schedule'!$B:$F,3,FALSE) -> m3 | H177: =VLOOKUP($P177,'Cost Schedule'!$B:$F,4,FALSE) -> Select from List | J177: =IF($E177="Y",IF(I177="",IF($H177="Select from List","",IF(I177=0,F177*H177,"")),F177*I177),"") ->  | K177: Select Haul Distance Here | L177: =VLOOKUP($P177,'Cost Schedule'!$B:$F,5,FALSE) -> This item includes the volume of contaminated sediment requiring removal using an excavator, truck and dozer to clean out the dam. | O177: =IF(I177="",0,1) -> 0 | P177: =IF(Q177=1,"10.04-",IF(Q177=2,"10.04a",IF(Q177=3,"10.04b",IF(Q177=4,"10.04c",IF(Q177=5,"10.04d","10.04-"))))) -> 10.04- | Q177: =VLOOKUP(K177,Select_Haul_Distance_Index,2,FALSE) -> 1 | R177: Y
K178: =IF(I177<>"","insert additional information here","") ->  | R178: =R177 -> Y
D179: =VLOOKUP($P179,'Cost Schedule'!$B:$F,2,FALSE) -> Removal of evaporation fans and/or other water transfer and management infrastructure | E179: Y | G179: =VLOOKUP($P179,'Cost Schedule'!$B:$F,3,FALSE) -> allow | H179: =VLOOKUP($P179,'Cost Schedule'!$B:$F,4,FALSE) -> 25000 | J179: =IF($E179="Y",IF(I179=0,F179*H179,F179*I179),"") -> 0 | K179: =IF(I179<>"","insert additional information here","") ->  | L179: =VLOOKUP($P179,'Cost Schedule'!$B:$F,5,FALSE) -> Provisional sum for removal of water management infrastructure. | O179: =IF(I179="",0,1) -> 0 | P179: 10.05 | R179: Y
C180: =C175&" Subtotal" -> Water Management Subtotal | J180: =SUM(J175:J179) -> 0 | R180: Y
C181: Maintenance of Rehabilitated Areas | D181: =VLOOKUP($P181,'Cost Schedule'!$B:$F,2,FALSE) -> Maintenance of areas that have been shaped and seeded and revegetation has been 'successful' | E181: Y | G181: =VLOOKUP($P181,'Cost Schedule'!$B:$F,3,FALSE) -> ha | H181: =VLOOKUP($P181,'Cost Schedule'!$B:$F,4,FALSE) -> 925 | J181: =IF($E181="Y",IF(I181=0,F181*H181,F181*I181),"") -> 0 | K181: =IF(I181<>"","insert additional information here","") ->  | L181: =VLOOKUP($P181,'Cost Schedule'!$B:$F,5,FALSE) -> Rehabilitation maintenance might include re-seeding, watering, fertilising, minor re-shaping, erosion control, inspections/audits - does not include major repair works. | O181: =IF(I181="",0,1) -> 0 | P181: 12.01 | R181: Y
D182: =VLOOKUP($P182,'Cost Schedule'!$B:$F,2,FALSE) -> Existing rehabilitation repair - minor | E182: Y | G182: =VLOOKUP($P182,'Cost Schedule'!$B:$F,3,FALSE) -> ha | H182: =VLOOKUP($P182,'Cost Schedule'!$B:$F,4,FALSE) -> 1200 | J182: =IF($E182="Y",IF(I182=0,F182*H182,F182*I182),"") -> 0 | K182: =IF(I182<>"","insert additional information here","") ->  | L182: =VLOOKUP($P182,'Cost Schedule'!$B:$F,5,FALSE) -> Areas requiring minor repair - rills, minor growth media replacement. | O182: =IF(I182="",0,1) -> 0 | P182: 12.06 | R182: Y
D183: =VLOOKUP($P183,'Cost Schedule'!$B:$F,2,FALSE) -> Existing rehabilitation repair - moderate | E183: Y | G183: =VLOOKUP($P183,'Cost Schedule'!$B:$F,3,FALSE) -> ha | H183: =VLOOKUP($P183,'Cost Schedule'!$B:$F,4,FALSE) -> 1700 | J183: =IF($E183="Y",IF(I183=0,F183*H183,F183*I183),"") -> 0 | K183: =IF(I183<>"","insert additional information here","") ->  | L183: =VLOOKUP($P183,'Cost Schedule'!$B:$F,5,FALSE) -> Areas requiring moderate repair - rills, significant growth media replacement. | O183: =IF(I183="",0,1) -> 0 | P183: 12.07 | R183: Y
D184: =VLOOKUP($P184,'Cost Schedule'!$B:$F,2,FALSE) -> Existing rehabilitation repair - major | E184: Y | G184: =VLOOKUP($P184,'Cost Schedule'!$B:$F,3,FALSE) -> ha | H184: =VLOOKUP($P184,'Cost Schedule'!$B:$F,4,FALSE) -> 2500 | J184: =IF($E184="Y",IF(I184=0,F184*H184,F184*I184),"") -> 0 | K184: =IF(I184<>"","insert additional information here","") ->  | L184: =VLOOKUP($P184,'Cost Schedule'!$B:$F,5,FALSE) -> Areas requiring major repair - rills, gullies, growth media replacement, some level of additional surface water management. | O184: =IF(I184="",0,1) -> 0 | P184: 12.08 | R184: Y
D185: =VLOOKUP($P185,'Cost Schedule'!$B:$F,2,FALSE) -> Existing rehabilitation repair - total failure of landform | E185: Y | G185: =VLOOKUP($P185,'Cost Schedule'!$B:$F,3,FALSE) -> ha | H185: =VLOOKUP($P185,'Cost Schedule'!$B:$F,4,FALSE) -> 40000 | J185: =IF($E185="Y",IF(I185=0,F185*H185,F185*I185),"") -> 0 | K185: =IF(I185<>"","insert additional information here","") ->  | L185: =VLOOKUP($P185,'Cost Schedule'!$B:$F,5,FALSE) -> Areas that require extensive rehabilitation repair - re-design and re-construction of landform. | O185: =IF(I185="",0,1) -> 0 | P185: 12.09 | R185: Y
C186: =C181&" Subtotal" -> Maintenance of Rehabilitated Areas Subtotal | J186: =SUM(J181:J185) -> 0 | R186: Y
C187: Additional Items | D187: Other 1 <insert> | E187: N | H187: This is | J187: =IF($E187="Y",IF(I187=0,F187*H187,F187*I187),"") ->  | K187: =IF(I187<>"","insert additional information here","") ->  | L187: This item includes <<to be added by the operator>> | O187: =IF(I187="",0,1) -> 0 | R187: =E187 -> N
D188: Other 2 <insert> | E188: N | H188: deliberately | J188: =IF($E188="Y",IF(I188=0,F188*H188,F188*I188),"") ->  | K188: =IF(I188<>"","insert additional information here","") ->  | L188: This item includes <<to be added by the operator>> | O188: =IF(I188="",0,1) -> 0 | R188: N
D189: Other 3 <insert> | E189: N | H189: left blank | J189: =IF($E189="Y",IF(I189=0,F189*H189,F189*I189),"") ->  | K189: =IF(I189<>"","insert additional information here","") ->  | L189: This item includes <<to be added by the operator>> | O189: =IF(I189="",0,1) -> 0 | R189: N
C190: =C187&" Subtotal" -> Additional Items Subtotal | J190: =SUM(J187:J189) -> 0 | R190: Y
C191: TXRESULT | D191: Total Cost for Infrastructure Domain | J191: =SUM(J190,J186,J180,J174,J144,J138,J129,J107,J81,J77) -> 0 | R191: Y
R192: Y
R193: Y
R194: Y
C195: Open Cut and Underground Operations | R195: Y
C196: Domain 2a: Tailings & Rejects | E196: =D290 -> Total Cost for Tailings & Rejects Domain | L196: =J290 -> 0 | R196: Y
R197: Y
C198: Additional Assumptions: Record any relevant assumptions to this domain below: | R198: Y
J199: Key Rehabilitation Area Data for Domain | L199: Enter data below manually | R199: Y
J200: Total Landform Establishment: | R200: Y
J201: Total Growth Media Development: | R201: Y
J202: Total Ecosystem Establishment: | R202: Y
R203: Y
R204: Y
... 304 more rows

Sheet Underground (1) (hidden)
C1: Management Precinct | D1: Activity / Description | E1: Applicable (Y or N) | F1: Quantity | G1: Unit | H1: Default Unit Rate | I1: Alternative Unit Rate | J1: Total Cost | K1: Basis for Costs Estimation and Additional Relevant Information | L1: Description / Notes: | AG1: =#REF! -> 
AG2: =#REF! -> 
C4: Underground Operations
C5: Domain 1a: Infrastructure | E5: =D190 -> Total Cost for Infrastructure Domain | L5: =J190 -> 0
C7: Additional Assumptions: Record any relevant assumptions to this domain below:
J8: Key Rehabilitation Area Data for Domain | L8: Enter data below manually
J9: Total Landform Establishment:
J10: Total Growth Media Development:
J11: Total Ecosystem Establishment:
C14: Management Precinct | D14: Activity / Description | E14: Applicable (Y or N) | F14: Quantity | G14: Unit | H14: Default Unit Rate | I14: Alternative Unit Rate | J14: Total Cost | K14: Basis for Costs Estimation and Additional Relevant Information | L14: Description / Notes: | O14: Chg | P14: Link | Q14: List | R14: Print
C15: Termination of Services and Demolition Works | D15: =VLOOKUP($P15,'Cost Schedule'!$B:$F,2,FALSE) -> Disconnect and terminate all services (Water, electricity, gas etc at point of attachment to site) | E15: Y | G15: =VLOOKUP($P15,'Cost Schedule'!$B:$F,3,FALSE) -> allow | H15: =VLOOKUP($P15,'Cost Schedule'!$B:$F,4,FALSE) -> 35000 | J15: =IF($E15="Y",IF(I15=0,F15*H15,F15*I15),"") -> 0 | K15: =IF(I15<>"","insert additional information here","") ->  | L15: =VLOOKUP($P15,'Cost Schedule'!$B:$F,5,FALSE) -> For disconnection of all services, at building boundaries, physical cut at the point of attachment or distribution location. If infrastructure is not consolidated (i.e., administration, camp and workshops are in separate places), consider multiple disconnection fees. | O15: =IF(I15="",0,1) -> 0 | P15: 1.01 | R15: =E15 -> Y
D16: =VLOOKUP($P16,'Cost Schedule'!$B:$F,2,FALSE) -> Disconnect and terminate services at remote areas (i.e. pump stations, remote workshops, sewage treatment plant etc.) | E16: Y | G16: =VLOOKUP($P16,'Cost Schedule'!$B:$F,3,FALSE) -> allow | H16: =VLOOKUP($P16,'Cost Schedule'!$B:$F,4,FALSE) -> 5850 | J16: 0 | L16: =VLOOKUP($P16,'Cost Schedule'!$B:$F,5,FALSE) -> Used for infrastructure remote from primary connection. Can also be used for small mines / quarries that do not have dedicated supplies from supply authorities such as steel lattice power lines. | O16: =IF(I16="",0,1) -> 0 | P16: 1.02 | R16: =E16 -> Y
D17: =VLOOKUP($P17,'Cost Schedule'!$B:$F,2,FALSE) -> Removal of low/medium voltage powerlines including disconnection, rolling up the wires and removing the poles - does not include the removal of substations | E17: Y | G17: =VLOOKUP($P17,'Cost Schedule'!$B:$F,3,FALSE) -> km | H17: =VLOOKUP($P17,'Cost Schedule'!$B:$F,4,FALSE) -> 15000 | J17: 0 | L17: =VLOOKUP($P17,'Cost Schedule'!$B:$F,5,FALSE) -> Applies to power lines on stobie, concrete or similar poles. | O17: 0 | P17: 1.03 | R17: Y
D18: =VLOOKUP($P18,'Cost Schedule'!$B:$F,2,FALSE) -> Removal of power lines on tower or lattice structures (this includes disconnection, rolling up the wires and removing the structures) - does not include the removal of substations | E18: Y | G18: =VLOOKUP($P18,'Cost Schedule'!$B:$F,3,FALSE) -> km | H18: =VLOOKUP($P18,'Cost Schedule'!$B:$F,4,FALSE) -> 100000 | J18: 0 | L18: =VLOOKUP($P18,'Cost Schedule'!$B:$F,5,FALSE) -> Applies to power lines on steel tower and steel lattice structures assuming 3 towers / km. | O18: 0 | P18: 1.04 | R18: Y
D19: =VLOOKUP($P19,'Cost Schedule'!$B:$F,2,FALSE) -> Remove small rail, road, water course overpass - manage potential interruptions and demolish and remove bridge supports/pylons/bridge structure etc. and dispose of waste material on-site/locally | E19: Y | G19: =VLOOKUP($P19,'Cost Schedule'!$B:$F,3,FALSE) -> Item | H19: =VLOOKUP($P19,'Cost Schedule'!$B:$F,4,FALSE) -> 350000 | J19: 0 | L19: =VLOOKUP($P19,'Cost Schedule'!$B:$F,5,FALSE) -> Smaller structures - minimal civil works to demolish (constructed for the purposes of mining related works - does not include transport to regional disposal facility or equivalent). | O19: 0 | P19: 1.05a | R19: Y
D20: =VLOOKUP($P20,'Cost Schedule'!$B:$F,2,FALSE) -> Remove medium rail, road, water course overpass - manage potential interruptions and demolish and remove bridge supports/pylons/bridge structure etc. and dispose of waste material on-site/locally | E20: Y | G20: =VLOOKUP($P20,'Cost Schedule'!$B:$F,3,FALSE) -> Item | H20: =VLOOKUP($P20,'Cost Schedule'!$B:$F,4,FALSE) -> 500000 | J20: 0 | K20: =IF(I20<>"","insert additional information here","") ->  | L20: =VLOOKUP($P20,'Cost Schedule'!$B:$F,5,FALSE) -> Medium structures - minimal civil works to demolish (constructed for the purposes of mining related works - does not include transport to regional disposal facility or equivalent). | O20: 0 | P20: 1.05b | R20: Y
D21: =VLOOKUP($P21,'Cost Schedule'!$B:$F,2,FALSE) -> Remove large / significant rail, road, water course overpass - manage potential interruptions and demolish and remove bridge supports/pylons/bridge structure etc. and dispose of waste material on-site/locally | E21: Y | G21: =VLOOKUP($P21,'Cost Schedule'!$B:$F,3,FALSE) -> Item | H21: =VLOOKUP($P21,'Cost Schedule'!$B:$F,4,FALSE) -> 1300000 | J21: 0 | K21: =IF(I21<>"","insert additional information here","") ->  | L21: =VLOOKUP($P21,'Cost Schedule'!$B:$F,5,FALSE) -> Large structures - includes significant water management e.g. watercourse diversion and civil works to demolish (constructed for the purposes of mining related works - does not include transport to regional disposal facility or equivalent). | O21: 0 | P21: 1.05c | R21: Y
D22: =VLOOKUP($P22,'Cost Schedule'!$B:$F,2,FALSE) -> Demolish and/or remove substations (assumes they are in a closed building). Dispose of waste material on-site/locally | E22: Y | G22: =VLOOKUP($P22,'Cost Schedule'!$B:$F,3,FALSE) -> m2 | H22: =VLOOKUP($P22,'Cost Schedule'!$B:$F,4,FALSE) -> 100 | J22: 0 | L22: =VLOOKUP($P22,'Cost Schedule'!$B:$F,5,FALSE) -> Simple structure to demolish mechanically (no labour required), assumes single story building with no asbestos and segregation of contents for scrap as applicable. | O22: 0 | P22: 1.06 | R22: Y
D23: =VLOOKUP($P23,'Cost Schedule'!$B:$F,2,FALSE) -> Demolish and remove switchyard. Dispose of waste material on-site/locally | E23: Y | G23: =VLOOKUP($P23,'Cost Schedule'!$B:$F,3,FALSE) -> m2 | H23: =VLOOKUP($P23,'Cost Schedule'!$B:$F,4,FALSE) -> 75 | J23: 0 | L23: =VLOOKUP($P23,'Cost Schedule'!$B:$F,5,FALSE) -> Includes demolition and removal of all switchgear and transformers etc. and segregation of contents for scrap as applicable. | O23: 0 | P23: 1.07 | R23: Y
D24: =VLOOKUP($P24,'Cost Schedule'!$B:$F,2,FALSE) -> Demolish and remove demountable structures on concrete stumps. Assumes not being re-used | E24: Y | G24: =VLOOKUP($P24,'Cost Schedule'!$B:$F,3,FALSE) -> m2 | H24: =VLOOKUP($P24,'Cost Schedule'!$B:$F,4,FALSE) -> 40 | J24: 0 | L24: =VLOOKUP($P24,'Cost Schedule'!$B:$F,5,FALSE) -> Crib huts, temporary offices and other 'non permanent' structures. Does not include transport to regional disposal facility or equivalent. | O24: 0 | P24: 1.08 | R24: Y
D25: =VLOOKUP($P25,'Cost Schedule'!$B:$F,2,FALSE) -> Demolish and remove small buildings/tanks (admin buildings, single story accommodation etc) and disposal on-site/locally | E25: Y | G25: =VLOOKUP($P25,'Cost Schedule'!$B:$F,3,FALSE) -> m2 | H25: =VLOOKUP($P25,'Cost Schedule'!$B:$F,4,FALSE) -> 61 | J25: 0 | L25: =VLOOKUP($P25,'Cost Schedule'!$B:$F,5,FALSE) -> Simple structure to demolish, assumes no greater than 2 stories high. Does not include transport to regional disposal facility or equivalent. | O25: 0 | P25: 1.09 | R25: Y
D26: =VLOOKUP($P26,'Cost Schedule'!$B:$F,2,FALSE) -> Demolish and remove light industrial buildings and disposal on-site/locally | E26: Y | G26: =VLOOKUP($P26,'Cost Schedule'!$B:$F,3,FALSE) -> m2/floor | H26: =VLOOKUP($P26,'Cost Schedule'!$B:$F,4,FALSE) -> 90 | J26: 0 | L26: =VLOOKUP($P26,'Cost Schedule'!$B:$F,5,FALSE) -> Needs to be calculated per floor/level (Assume 1 floor/level = 3-4 m) - does not include transport to regional disposal facility or equivalent. Assumes asbestos free and mechanically demolished. | O26: 0 | P26: 1.1 | R26: Y
D27: =VLOOKUP($P27,'Cost Schedule'!$B:$F,2,FALSE) -> Demolish and remove industrial buildings (workshops tyre change and servicing area etc not CHPP/process plant) and disposal on-site/locally | E27: Y | G27: =VLOOKUP($P27,'Cost Schedule'!$B:$F,3,FALSE) -> m2/floor | H27: =VLOOKUP($P27,'Cost Schedule'!$B:$F,4,FALSE) -> 130 | J27: 0 | L27: =VLOOKUP($P27,'Cost Schedule'!$B:$F,5,FALSE) -> Needs to be calculated per floor/level (Assume 1 floor/level = 3-4 m). Does not include transport to regional disposal facility or equivalent. | O27: 0 | P27: 1.11 | R27: Y
D28: =VLOOKUP($P28,'Cost Schedule'!$B:$F,2,FALSE) -> Demolish and remove CHPP/process plant (include the area of each floor of the structure) and disposal on-site/locally | E28: Y | G28: =VLOOKUP($P28,'Cost Schedule'!$B:$F,3,FALSE) -> m2/floor | H28: =VLOOKUP($P28,'Cost Schedule'!$B:$F,4,FALSE) -> 225 | J28: 0 | L28: =VLOOKUP($P28,'Cost Schedule'!$B:$F,5,FALSE) -> Needs to be calculated per floor/level (Assume 1 floor/level = 3-4 m). Does not include transport to regional disposal facility or equivalent. | O28: 0 | P28: 1.12 | R28: Y
D29: =VLOOKUP($P29,'Cost Schedule'!$B:$F,2,FALSE) -> Collapse, demolish and remove washery, crushers, hoppers, mills, furnaces, agglomeration, electrowinning, floatation, sizing stations, rotary breakers, etc (include the area of each floor of the structure) and disposal on-site/locally | E29: Y | G29: =VLOOKUP($P29,'Cost Schedule'!$B:$F,3,FALSE) -> m2/floor | H29: =VLOOKUP($P29,'Cost Schedule'!$B:$F,4,FALSE) -> 225 | J29: 0 | L29: =VLOOKUP($P29,'Cost Schedule'!$B:$F,5,FALSE) -> Needs to be calculated per floor/level (Assume 1 floor/level = 3-4 m). Does not include transport to regional disposal facility or equivalent. | O29: 0 | P29: 1.13 | R29: Y
D30: =VLOOKUP($P30,'Cost Schedule'!$B:$F,2,FALSE) -> Collapse, demolish and remove stacker OR reclaimer (radial or luffing etc. with maneuverability for stockpile control) and disposal on-site/locally | E30: Y | G30: =VLOOKUP($P30,'Cost Schedule'!$B:$F,3,FALSE) -> allow | H30: =VLOOKUP($P30,'Cost Schedule'!$B:$F,4,FALSE) -> 750000 | J30: 0 | L30: =VLOOKUP($P30,'Cost Schedule'!$B:$F,5,FALSE) -> Cost for removal of stacker or reclaim unit only. Does not include terminate services, remove rails and ballast etc. Does not include transport to regional disposal facility or equivalent. | O30: 0 | P30: 1.14 | R30: Y
D31: =VLOOKUP($P31,'Cost Schedule'!$B:$F,2,FALSE) -> Collapse, demolish and remove bucket wheel stacker/reclaimer and disposal on-site/locally | E31: Y | G31: =VLOOKUP($P31,'Cost Schedule'!$B:$F,3,FALSE) -> allow | H31: =VLOOKUP($P31,'Cost Schedule'!$B:$F,4,FALSE) -> 2000000 | J31: 0 | L31: =VLOOKUP($P31,'Cost Schedule'!$B:$F,5,FALSE) -> Cost for just removal of the bucket wheel stacker/reclaim units. Does not include terminate services, remove rails and ballast etc. Does not include transport to regional disposal facility or equivalent. | O31: 0 | P31: 1.15 | R31: Y
D32: =VLOOKUP($P32,'Cost Schedule'!$B:$F,2,FALSE) -> Remove stacker/reclaimer rails and ballast and demolish and remove concrete footings etc and disposal on-site/locally | E32: Y | G32: =VLOOKUP($P32,'Cost Schedule'!$B:$F,3,FALSE) -> m | H32: =VLOOKUP($P32,'Cost Schedule'!$B:$F,4,FALSE) -> 75 | J32: 0 | L32: =VLOOKUP($P32,'Cost Schedule'!$B:$F,5,FALSE) -> Includes both rails, does not include the conveyor system. Does not include transport to regional disposal facility or equivalent. | O32: 0 | P32: 1.16 | R32: Y
D33: =VLOOKUP($P33,'Cost Schedule'!$B:$F,2,FALSE) -> Collapse, Cut and Remove 5000T coal silo and disposal on-site/locally | E33: Y | G33: =VLOOKUP($P33,'Cost Schedule'!$B:$F,3,FALSE) -> allow | H33: =VLOOKUP($P33,'Cost Schedule'!$B:$F,4,FALSE) -> 92500 | J33: 0 | L33: =VLOOKUP($P33,'Cost Schedule'!$B:$F,5,FALSE) -> Collapse structure and remove. Does not include transport to regional disposal facility or equivalent. | O33: 0 | P33: 1.17 | R33: Y
D34: =VLOOKUP($P34,'Cost Schedule'!$B:$F,2,FALSE) -> Collapse, Cut and Remove 3000 T coal silo and disposal on-site/locally | E34: Y | G34: =VLOOKUP($P34,'Cost Schedule'!$B:$F,3,FALSE) -> allow | H34: =VLOOKUP($P34,'Cost Schedule'!$B:$F,4,FALSE) -> 77500 | J34: 0 | L34: =VLOOKUP($P34,'Cost Schedule'!$B:$F,5,FALSE) -> Collapse structure and remove. Does not include transport to regional disposal facility or equivalent. | O34: 0 | P34: 1.18 | R34: Y
D35: =VLOOKUP($P35,'Cost Schedule'!$B:$F,2,FALSE) -> Collapse, Cut and Remove 1250 T coal silo and disposal on-site/locally | E35: Y | G35: =VLOOKUP($P35,'Cost Schedule'!$B:$F,3,FALSE) -> allow | H35: =VLOOKUP($P35,'Cost Schedule'!$B:$F,4,FALSE) -> 62500 | J35: 0 | L35: =VLOOKUP($P35,'Cost Schedule'!$B:$F,5,FALSE) -> Collapse structure and remove. Does not include transport to regional disposal facility or equivalent. | O35: 0 | P35: 1.19 | R35: Y
D36: =VLOOKUP($P36,'Cost Schedule'!$B:$F,2,FALSE) -> Collapse, Cut and Remove rail loading bins and disposal on-site/locally | E36: Y | G36: =VLOOKUP($P36,'Cost Schedule'!$B:$F,3,FALSE) -> allow | H36: =VLOOKUP($P36,'Cost Schedule'!$B:$F,4,FALSE) -> 65000 | J36: 0 | L36: =VLOOKUP($P36,'Cost Schedule'!$B:$F,5,FALSE) -> Collapse structure and remove. Does not include transport to regional disposal facility or equivalent. | O36: 0 | P36: 1.2 | R36: Y
D37: =VLOOKUP($P37,'Cost Schedule'!$B:$F,2,FALSE) -> Demolish and Remove large concrete rail loading bin - and disposal on-site/locally | E37: Y | G37: =VLOOKUP($P37,'Cost Schedule'!$B:$F,3,FALSE) -> allow | H37: =VLOOKUP($P37,'Cost Schedule'!$B:$F,4,FALSE) -> 460000 | J37: 0 | K37: =IF(I37<>"","insert additional information here","") ->  | L37: =VLOOKUP($P37,'Cost Schedule'!$B:$F,5,FALSE) -> Collapse structure and remove. Does not include transport to regional disposal facility or equivalent. | O37: 0 | P37: 1.20a | R37: Y
D38: =VLOOKUP($P38,'Cost Schedule'!$B:$F,2,FALSE) -> Demolish and remove onground conveyors, transfer stations & gantries (scrap only – does not include dismantling for reuse at another site) and disposal on-site/locally | E38: Y | G38: =VLOOKUP($P38,'Cost Schedule'!$B:$F,3,FALSE) -> m | H38: =VLOOKUP($P38,'Cost Schedule'!$B:$F,4,FALSE) -> 185 | J38: 0 | L38: =VLOOKUP($P38,'Cost Schedule'!$B:$F,5,FALSE) -> Estimate for on-ground conveyor including anything up to 10 m off the ground. Does not include transport to regional disposal facility or equivalent. | O38: 0 | P38: 1.21 | R38: Y
D39: =VLOOKUP($P39,'Cost Schedule'!$B:$F,2,FALSE) -> Demolish and remove elevated conveyors, transfer stations & gantries (scrap only, does not include dismantling for reuse at another site) and disposal on-site/locally | E39: Y | G39: =VLOOKUP($P39,'Cost Schedule'!$B:$F,3,FALSE) -> m | H39: =VLOOKUP($P39,'Cost Schedule'!$B:$F,4,FALSE) -> 295 | J39: 0 | L39: =VLOOKUP($P39,'Cost Schedule'!$B:$F,5,FALSE) -> Estimate for elevated conveyor up to ~10 m off the ground. Does not include transport to regional disposal facility or equivalent. | O39: 0 | P39: 1.22 | R39: Y
D40: =VLOOKUP($P40,'Cost Schedule'!$B:$F,2,FALSE) -> Demolish and remove overhead conveyors, transfer stations & gantries (scrap only, does not include dismantling for reuse at another site) and disposal on-site/locally. This may include small scale fixed material stacking infrastructure | E40: Y | G40: =VLOOKUP($P40,'Cost Schedule'!$B:$F,3,FALSE) -> m | H40: =VLOOKUP($P40,'Cost Schedule'!$B:$F,4,FALSE) -> 850 | J40: 0 | L40: =VLOOKUP($P40,'Cost Schedule'!$B:$F,5,FALSE) -> Estimate for overhead conveyor including conveyors that are >10 m off the ground that require a crane to remove. Does not include transport to regional disposal facility or equivalent. | O40: =IF(I40="",0,1) -> 0 | P40: 1.23 | R40: Y
D41: =VLOOKUP($P41,'Cost Schedule'!$B:$F,2,FALSE) -> Remove and demolish conveyor from reclaim tunnel (Does not include excavation and demolition of reclaim tunnel roof) | E41: Y | G41: =VLOOKUP($P41,'Cost Schedule'!$B:$F,3,FALSE) -> m | H41: =VLOOKUP($P41,'Cost Schedule'!$B:$F,4,FALSE) -> 150 | J41: 0 | L41: =VLOOKUP($P41,'Cost Schedule'!$B:$F,5,FALSE) -> Due to no canopy or infrastructure attached. | O41: 0 | P41: 1.24 | R41: Y
D42: =VLOOKUP($P42,'Cost Schedule'!$B:$F,2,FALSE) -> Demolition of reclaim tunnel concrete (Assumes complete removal and dumping in mine pit void) | E42: Y | G42: =VLOOKUP($P42,'Cost Schedule'!$B:$F,3,FALSE) -> m | H42: =VLOOKUP($P42,'Cost Schedule'!$B:$F,4,FALSE) -> 950 | J42: 0 | L42: =VLOOKUP($P42,'Cost Schedule'!$B:$F,5,FALSE) -> Assumes this area will be used for another land-use that requires the structure to be dug up and re-buried somewhere else. | O42: 0 | P42: 1.25 | R42: Y
D43: =VLOOKUP($P43,'Cost Schedule'!$B:$F,2,FALSE) -> Demolition and removal of vent raise fans, electrical substation and winch and disposal on-site/locally | E43: Y | G43: =VLOOKUP($P43,'Cost Schedule'!$B:$F,3,FALSE) -> allow | H43: =VLOOKUP($P43,'Cost Schedule'!$B:$F,4,FALSE) -> 25000 | J43: 0 | L43: =VLOOKUP($P43,'Cost Schedule'!$B:$F,5,FALSE) -> Does not include filling and capping the shaft. Does not include transport to regional disposal facility or equivalent. | O43: 0 | P43: 1.26 | R43: Y
D44: =VLOOKUP($P44,'Cost Schedule'!$B:$F,2,FALSE) -> Demolish and remove small tank clean (Thickener etc 3 - 9 m diameter) and disposal on-site/locally | E44: Y | G44: =VLOOKUP($P44,'Cost Schedule'!$B:$F,3,FALSE) -> allow | H44: =VLOOKUP($P44,'Cost Schedule'!$B:$F,4,FALSE) -> 10000 | J44: 0 | L44: =VLOOKUP($P44,'Cost Schedule'!$B:$F,5,FALSE) -> Assume tank is clean - contents removed. If tank is full allow extra 30% for excavator and 2 men to dig out and dispose. Does not include transport to regional disposal facility or equivalent. | O44: 0 | P44: 1.27 | R44: Y
D45: =VLOOKUP($P45,'Cost Schedule'!$B:$F,2,FALSE) -> Demolish and remove medium tank clean (Thickener etc 10 - 15 m diameter) and disposal on-site/locally | E45: Y | G45: =VLOOKUP($P45,'Cost Schedule'!$B:$F,3,FALSE) -> allow | H45: =VLOOKUP($P45,'Cost Schedule'!$B:$F,4,FALSE) -> 30000 | J45: 0 | L45: =VLOOKUP($P45,'Cost Schedule'!$B:$F,5,FALSE) -> Assume tank is clean - contents removed. If tank is full allow extra 30% for excavator and 2 men to dig out and dispose. Does not include transport to regional disposal facility or equivalent. | O45: 0 | P45: 1.28 | R45: Y
D46: =VLOOKUP($P46,'Cost Schedule'!$B:$F,2,FALSE) -> Demolish and remove large tank clean (Thickener etc 15 - 30 m diameter) and disposal on-site/locally | E46: Y | G46: =VLOOKUP($P46,'Cost Schedule'!$B:$F,3,FALSE) -> allow | H46: =VLOOKUP($P46,'Cost Schedule'!$B:$F,4,FALSE) -> 45000 | J46: 0 | L46: =VLOOKUP($P46,'Cost Schedule'!$B:$F,5,FALSE) -> Assume tank is clean - contents removed. If tank is full allow extra 30% for excavator and 2 men to dig out and dispose. Does not include transport to regional disposal facility or equivalent. | O46: =IF(I46="",0,1) -> 0 | P46: 1.29 | R46: Y
D47: =VLOOKUP($P47,'Cost Schedule'!$B:$F,2,FALSE) -> Demolish and remove extra large tank clean (Thickener etc >30 m diameter) and disposal on-site/locally | E47: Y | G47: =VLOOKUP($P47,'Cost Schedule'!$B:$F,3,FALSE) -> allow | H47: =VLOOKUP($P47,'Cost Schedule'!$B:$F,4,FALSE) -> 100000 | J47: 0 | L47: =VLOOKUP($P47,'Cost Schedule'!$B:$F,5,FALSE) -> Assume tank is clean - contents removed. If tank is full allow extra 30% for excavator and 2 men to dig out and dispose. Does not include transport to regional disposal facility or equivalent. | O47: 0 | P47: 1.3 | R47: Y
D48: =VLOOKUP($P48,'Cost Schedule'!$B:$F,2,FALSE) -> Demolish and remove tank clean (Thickener etc) >50 m diameter and disposal on-site/locally | E48: Y | G48: =VLOOKUP($P48,'Cost Schedule'!$B:$F,3,FALSE) -> allow | H48: =VLOOKUP($P48,'Cost Schedule'!$B:$F,4,FALSE) -> 100000 | J48: 0 | L48: =VLOOKUP($P48,'Cost Schedule'!$B:$F,5,FALSE) -> Estimate only - may require a detailed assessment from demolition expert due to specialised equipment required for removal. Does not include transport to regional disposal facility or equivalent. | O48: 0 | P48: 1.31 | R48: Y
D49: =VLOOKUP($P49,'Cost Schedule'!$B:$F,2,FALSE) -> Removal of UG tank <5000 L - including pipes, bunds etc. and disposal on-site/locally | E49: Y | G49: =VLOOKUP($P49,'Cost Schedule'!$B:$F,3,FALSE) -> allow | H49: =VLOOKUP($P49,'Cost Schedule'!$B:$F,4,FALSE) -> 21000 | J49: 0 | L49: =VLOOKUP($P49,'Cost Schedule'!$B:$F,5,FALSE) -> Assume tank is clean (contents removed), does not include transport to regional disposal facility or equivalent. | O49: 0 | P49: 1.32 | R49: Y
D50: =VLOOKUP($P50,'Cost Schedule'!$B:$F,2,FALSE) -> Removal of UG tank 5000 L - 15000 L - including pipes, bunds etc. and disposal on-site/locally | E50: Y | G50: =VLOOKUP($P50,'Cost Schedule'!$B:$F,3,FALSE) -> allow | H50: =VLOOKUP($P50,'Cost Schedule'!$B:$F,4,FALSE) -> 30000 | J50: 0 | L50: =VLOOKUP($P50,'Cost Schedule'!$B:$F,5,FALSE) -> Assume tank is clean (contents removed), does not include transport to regional disposal facility or equivalent. | O50: 0 | P50: 1.33 | R50: Y
D51: =VLOOKUP($P51,'Cost Schedule'!$B:$F,2,FALSE) -> Remove small underground pipe and disposal on-site/locally | E51: Y | G51: =VLOOKUP($P51,'Cost Schedule'!$B:$F,3,FALSE) -> m | H51: =VLOOKUP($P51,'Cost Schedule'!$B:$F,4,FALSE) -> 25 | J51: 0 | L51: =VLOOKUP($P51,'Cost Schedule'!$B:$F,5,FALSE) -> For example: 300 mm pipes - 0.5 m deep, does not include transport to regional disposal facility or equivalent. | O51: 0 | P51: 1.34 | R51: Y
D52: =VLOOKUP($P52,'Cost Schedule'!$B:$F,2,FALSE) -> Remove medium underground pipe and disposal on-site/locally | E52: Y | G52: =VLOOKUP($P52,'Cost Schedule'!$B:$F,3,FALSE) -> m | H52: =VLOOKUP($P52,'Cost Schedule'!$B:$F,4,FALSE) -> 60 | J52: 0 | L52: =VLOOKUP($P52,'Cost Schedule'!$B:$F,5,FALSE) -> For example: 500 mm pipes - 1 m deep, does not include transport to regional disposal facility or equivalent. | O52: 0 | P52: 1.35 | R52: Y
D53: =VLOOKUP($P53,'Cost Schedule'!$B:$F,2,FALSE) -> Remove large underground pipe and disposal on-site/locally | E53: Y | G53: =VLOOKUP($P53,'Cost Schedule'!$B:$F,3,FALSE) -> m | H53: =VLOOKUP($P53,'Cost Schedule'!$B:$F,4,FALSE) -> 165 | J53: 0 | L53: =VLOOKUP($P53,'Cost Schedule'!$B:$F,5,FALSE) -> For example: 1 m pipes - 2 m deep. | O53: 0 | P53: 1.36 | R53: Y
D54: =VLOOKUP($P54,'Cost Schedule'!$B:$F,2,FALSE) -> Remove above ground pipe (supported) and disposal on-site/locally | E54: Y | G54: =VLOOKUP($P54,'Cost Schedule'!$B:$F,3,FALSE) -> m | H54: =VLOOKUP($P54,'Cost Schedule'!$B:$F,4,FALSE) -> 12 | J54: 0 | L54: =VLOOKUP($P54,'Cost Schedule'!$B:$F,5,FALSE) -> ~300 mm pipes and assumes pipes are in close proximity to infrastructure areas. Does not include transport to regional disposal facility or equivalent. | O54: 0 | P54: 1.37 | R54: Y
D55: =VLOOKUP($P55,'Cost Schedule'!$B:$F,2,FALSE) -> Remove surface pipelines (unsupported) and disposal on-site/locally | E55: Y | G55: =VLOOKUP($P55,'Cost Schedule'!$B:$F,3,FALSE) -> m | H55: =VLOOKUP($P55,'Cost Schedule'!$B:$F,4,FALSE) -> 15 | J55: 0 | L55: =VLOOKUP($P55,'Cost Schedule'!$B:$F,5,FALSE) -> ~300 mm pipes and assumes pipes are used for water transfer between pits (or similar) and remotely located. Does not include transport to regional disposal facility or equivalent. | O55: 0 | P55: 1.38 | R55: Y
D56: =VLOOKUP($P56,'Cost Schedule'!$B:$F,2,FALSE) -> Remove pump and pontoon from small lake or dam including pipes and electrical supply or diesel tank/s | E56: Y | G56: =VLOOKUP($P56,'Cost Schedule'!$B:$F,3,FALSE) -> allow | H56: =VLOOKUP($P56,'Cost Schedule'!$B:$F,4,FALSE) -> 20000 | J56: 0 | L56: =VLOOKUP($P56,'Cost Schedule'!$B:$F,5,FALSE) -> Includes equipment for retrieval - boats, etc. and labour. Does not include transport to regional disposal facility or equivalent. | O56: =IF(I56="",0,1) -> 0 | P56: 1.39 | R56: Y
D57: =VLOOKUP($P57,'Cost Schedule'!$B:$F,2,FALSE) -> Remove bitumen (car park and access roads) and dispose on-site/locally | E57: Y | G57: =VLOOKUP($P57,'Cost Schedule'!$B:$F,3,FALSE) -> m2 | H57: =VLOOKUP($P57,'Cost Schedule'!$B:$F,4,FALSE) -> 10 | J57: 0 | L57: =VLOOKUP($P57,'Cost Schedule'!$B:$F,5,FALSE) -> Scalp bitumen and stabilised material. Generally haulage rates will be $0.60 - $1.20 / km, depending on truck fleet, loaders etc. For off-site disposal use alternate rate option and add $0.90 / km for transport. | O57: 0 | P57: 1.4 | R57: Y
D58: =VLOOKUP($P58,'Cost Schedule'!$B:$F,2,FALSE) -> Remove bitumen (airstrip) and dispose on-site/locally | E58: Y | G58: =VLOOKUP($P58,'Cost Schedule'!$B:$F,3,FALSE) -> m2 | H58: =VLOOKUP($P58,'Cost Schedule'!$B:$F,4,FALSE) -> 20 | J58: 0 | L58: =VLOOKUP($P58,'Cost Schedule'!$B:$F,5,FALSE) -> Scalp bitumen and stabilised material. Generally haulage rates will be $0.60 - $1.20 / km, depending on truck fleet, loaders etc. For off-site disposal use alternate rate option and add $0.90 / km for transport. | O58: 0 | P58: 1.41 | R58: Y
D59: =VLOOKUP($P59,'Cost Schedule'!$B:$F,2,FALSE) -> Remove concrete pads & footings (<300 mm thickness) and disposal on-site/locally | E59: Y | G59: =VLOOKUP($P59,'Cost Schedule'!$B:$F,3,FALSE) -> m2 | H59: =VLOOKUP($P59,'Cost Schedule'!$B:$F,4,FALSE) -> 36 | J59: 0 | L59: =VLOOKUP($P59,'Cost Schedule'!$B:$F,5,FALSE) -> Breaking up slab and disposal or for conversion to aggregate. Generally haulage rates will be $0.60 - $1.20 / km, depending on truck fleet, loaders etc. For off-site disposal use alternate rate option and add $0.90 / km for transport. | O59: 0 | P59: 1.42 | R59: Y
D60: =VLOOKUP($P60,'Cost Schedule'!$B:$F,2,FALSE) -> Remove concrete pads & footings (>300 mm thickness) and disposal on-site/locally | E60: Y | G60: =VLOOKUP($P60,'Cost Schedule'!$B:$F,3,FALSE) -> m2 | H60: =VLOOKUP($P60,'Cost Schedule'!$B:$F,4,FALSE) -> 75 | J60: 0 | L60: =VLOOKUP($P60,'Cost Schedule'!$B:$F,5,FALSE) -> Breaking up slab and disposal or for conversion to aggregate. Generally haulage rates will be $0.60 - $1.20 / km, depending on truck fleet, loaders etc. For off-site disposal use alternate rate option and add $0.90 / km for transport. | O60: 0 | P60: 1.43 | R60: Y
D61: =VLOOKUP($P61,'Cost Schedule'!$B:$F,2,FALSE) -> Crush concrete to make road aggregate - 75 mm | E61: Y | G61: =VLOOKUP($P61,'Cost Schedule'!$B:$F,3,FALSE) -> tonne | H61: =VLOOKUP($P61,'Cost Schedule'!$B:$F,4,FALSE) -> 10 | J61: 0 | L61: =VLOOKUP($P61,'Cost Schedule'!$B:$F,5,FALSE) -> Does not include haulage of materials - assumes crushing plant is readily available. | O61: 0 | P61: 1.44 | R61: Y
D62: =VLOOKUP($P62,'Cost Schedule'!$B:$F,2,FALSE) -> Crush concrete to make road aggregate - 50 mm | E62: Y | G62: =VLOOKUP($P62,'Cost Schedule'!$B:$F,3,FALSE) -> tonne | H62: =VLOOKUP($P62,'Cost Schedule'!$B:$F,4,FALSE) -> 13 | J62: 0 | L62: =VLOOKUP($P62,'Cost Schedule'!$B:$F,5,FALSE) -> Does not include haulage of materials - assumes crushing plant is readily available. | O62: 0 | P62: 1.45 | R62: Y
D63: =VLOOKUP($P63,'Cost Schedule'!$B:$F,2,FALSE) -> Crush concrete to make road aggregate - 30 mm | E63: Y | G63: =VLOOKUP($P63,'Cost Schedule'!$B:$F,3,FALSE) -> tonne | H63: =VLOOKUP($P63,'Cost Schedule'!$B:$F,4,FALSE) -> 15 | J63: =IF($E63="Y",IF(I63=0,F63*H63,F63*I63),"") -> 0 | K63: =IF(I63<>"","insert additional information here","") ->  | L63: =VLOOKUP($P63,'Cost Schedule'!$B:$F,5,FALSE) -> Does not include haulage of materials - assumes crushing plant is readily available. | O63: 0 | P63: 1.46 | R63: Y
D64: =VLOOKUP($P64,'Cost Schedule'!$B:$F,2,FALSE) -> Remove fence (cyclone/wire fence) and disposal on-site/locally | E64: Y | G64: =VLOOKUP($P64,'Cost Schedule'!$B:$F,3,FALSE) -> m | H64: =VLOOKUP($P64,'Cost Schedule'!$B:$F,4,FALSE) -> 20 | J64: 0 | L64: =VLOOKUP($P64,'Cost Schedule'!$B:$F,5,FALSE) -> Roll up fence and remove posts. | O64: 0 | P64: 1.47 | R64: Y
D65: =VLOOKUP($P65,'Cost Schedule'!$B:$F,2,FALSE) -> Removal of small plastic tanks | E65: Y | G65: =VLOOKUP($P65,'Cost Schedule'!$B:$F,3,FALSE) -> each | H65: =VLOOKUP($P65,'Cost Schedule'!$B:$F,4,FALSE) -> 1000 | J65: 0 | L65: =VLOOKUP($P65,'Cost Schedule'!$B:$F,5,FALSE) -> Remove small poly tanks used for water storage, etc. | O65: 0 | P65: 1.48 | R65: Y
D66: =VLOOKUP($P66,'Cost Schedule'!$B:$F,2,FALSE) -> Demolish and remove galvanised/corrugated light weight tanks | E66: Y | G66: =VLOOKUP($P66,'Cost Schedule'!$B:$F,3,FALSE) -> each | H66: =VLOOKUP($P66,'Cost Schedule'!$B:$F,4,FALSE) -> 500 | J66: 0 | L66: =VLOOKUP($P66,'Cost Schedule'!$B:$F,5,FALSE) -> Demolish and remove small lightweight metal tanks. No costs included for managing liquids, etc. | O66: 0 | P66: 1.49 | R66: Y
D67: =VLOOKUP($P67,'Cost Schedule'!$B:$F,2,FALSE) -> Demolish and remove communication towers | E67: Y | G67: =VLOOKUP($P67,'Cost Schedule'!$B:$F,3,FALSE) -> each | H67: =VLOOKUP($P67,'Cost Schedule'!$B:$F,4,FALSE) -> 5000 | J67: 0 | L67: =VLOOKUP($P67,'Cost Schedule'!$B:$F,5,FALSE) -> Cost includes demolition and removal of tower only; separate costs required for disconnection of services, demolition of footings, etc. | O67: 0 | P67: 1.5 | R67: Y
D68: =VLOOKUP($P68,'Cost Schedule'!$B:$F,2,FALSE) -> Removal of UG services (power within main gate areas, etc.) | E68: Y | G68: =VLOOKUP($P68,'Cost Schedule'!$B:$F,3,FALSE) -> allow | H68: =VLOOKUP($P68,'Cost Schedule'!$B:$F,4,FALSE) -> 50000 | J68: 0 | L68: =VLOOKUP($P68,'Cost Schedule'!$B:$F,5,FALSE) -> Assume service disconnection at the mine boundary is at surface level. This cost covers all fees and charges | O68: 0 | P68: 1.51 | R68: Y
D69: =VLOOKUP($P69,'Cost Schedule'!$B:$F,2,FALSE) -> Waste disposal to Council landfill (general waste) - haulage >10 km but <15 km | E69: Y | G69: =VLOOKUP($P69,'Cost Schedule'!$B:$F,3,FALSE) -> tonne | H69: =VLOOKUP($P69,'Cost Schedule'!$B:$F,4,FALSE) -> 7 | J69: 0 | L69: =VLOOKUP($P69,'Cost Schedule'!$B:$F,5,FALSE) -> Rate accounts for round trip haulage to Council landfill but excludes landfill fees. Input quantity against Waste disposal to Council landfill - fees for relevant waste type. | O69: 0 | P69: 1.52 | R69: Y
D70: =VLOOKUP($P70,'Cost Schedule'!$B:$F,2,FALSE) -> Waste disposal to Council landfill (general waste) - haulage >15 km but <25 km | E70: Y | G70: =VLOOKUP($P70,'Cost Schedule'!$B:$F,3,FALSE) -> tonne | H70: =VLOOKUP($P70,'Cost Schedule'!$B:$F,4,FALSE) -> 9 | J70: 0 | L70: =VLOOKUP($P70,'Cost Schedule'!$B:$F,5,FALSE) -> Rate accounts for round trip haulage to Council landfill but excludes landfill fees. Input quantity against Waste disposal to Council landfill - fees for relevant waste type. | O70: 0 | P70: 1.53 | R70: Y
D71: =VLOOKUP($P71,'Cost Schedule'!$B:$F,2,FALSE) -> Waste disposal to Council landfill (general waste) - haulage >25 km but <50 km | E71: Y | G71: =VLOOKUP($P71,'Cost Schedule'!$B:$F,3,FALSE) -> tonne | H71: =VLOOKUP($P71,'Cost Schedule'!$B:$F,4,FALSE) -> 12.5 | J71: 0 | L71: =VLOOKUP($P71,'Cost Schedule'!$B:$F,5,FALSE) -> Rate accounts for round trip haulage to Council landfill but excludes landfill fees. Input quantity against Waste disposal to Council landfill - fees for relevant waste type. | O71: 0 | P71: 1.54 | R71: Y
D72: =VLOOKUP($P72,'Cost Schedule'!$B:$F,2,FALSE) -> Waste disposal to Council landfill (industrial demolition / concrete / scrap metal) - haulage >10 km but <15 km | E72: Y | G72: =VLOOKUP($P72,'Cost Schedule'!$B:$F,3,FALSE) -> tonne | H72: =VLOOKUP($P72,'Cost Schedule'!$B:$F,4,FALSE) -> 32 | J72: 0 | L72: =VLOOKUP($P72,'Cost Schedule'!$B:$F,5,FALSE) -> Rate accounts for round trip haulage to Council landfill but excludes landfill fees. Input quantity against Waste disposal to Council landfill - fees for relevant waste type. | O72: 0 | P72: 1.55 | R72: Y
D73: =VLOOKUP($P73,'Cost Schedule'!$B:$F,2,FALSE) -> Waste disposal to Council landfill (industrial demolition / concrete / scrap metal) - haulage >15 km but <25 km | E73: Y | G73: =VLOOKUP($P73,'Cost Schedule'!$B:$F,3,FALSE) -> tonne | H73: =VLOOKUP($P73,'Cost Schedule'!$B:$F,4,FALSE) -> 36 | J73: 0 | L73: =VLOOKUP($P73,'Cost Schedule'!$B:$F,5,FALSE) -> Rate accounts for round trip haulage to Council landfill but excludes landfill fees. Input quantity against Waste disposal to Council landfill - fees for relevant waste type. | O73: 0 | P73: 1.56 | R73: Y
D74: =VLOOKUP($P74,'Cost Schedule'!$B:$F,2,FALSE) -> Waste disposal to Council landfill (industrial demolition / concrete / scrap metal) - haulage >25 km but <50 km | E74: Y | G74: =VLOOKUP($P74,'Cost Schedule'!$B:$F,3,FALSE) -> allow | H74: =VLOOKUP($P74,'Cost Schedule'!$B:$F,4,FALSE) -> Use alternate rate cell | J74: =IF($E74="Y",IF(I74=0,F74*0,F74*I74),"") -> 0 | L74: =VLOOKUP($P74,'Cost Schedule'!$B:$F,5,FALSE) -> Rate accounts for round trip haulage to Council landfill but excludes landfill fees. Input quantity against Waste disposal to Council landfill - fees for relevant waste type. | O74: 0 | P74: 1.57 | R74: Y
D75: =VLOOKUP($P75,'Cost Schedule'!$B:$F,2,FALSE) -> Waste disposal to Council landfill - fees (general waste) | E75: Y | G75: =VLOOKUP($P75,'Cost Schedule'!$B:$F,3,FALSE) -> tonne | H75: =VLOOKUP($P75,'Cost Schedule'!$B:$F,4,FALSE) -> 193 | J75: 0 | L75: =VLOOKUP($P75,'Cost Schedule'!$B:$F,5,FALSE) -> Fee for waste disposal of general waste to local Council landfill; transport rates separate. Please note that this is not applicable to operations with approval for building and demolition waste disposal on site. | O75: =IF(I75="",0,1) -> 0 | P75: 1.58 | R75: =E75 -> Y
D76: =VLOOKUP($P76,'Cost Schedule'!$B:$F,2,FALSE) -> Waste disposal to Council landfill - fees (industrial demolition / concrete / scrap metal) | E76: Y | G76: =VLOOKUP($P76,'Cost Schedule'!$B:$F,3,FALSE) -> tonne | H76: =VLOOKUP($P76,'Cost Schedule'!$B:$F,4,FALSE) -> 174 | J76: =IF($E76="Y",IF(I76=0,F76*H76,F76*I76),"") -> 0 | L76: =VLOOKUP($P76,'Cost Schedule'!$B:$F,5,FALSE) -> Fee for waste disposal of industrial demolition / concrete / scrap metal waste to local Council landfill; transport rates separate. Rate does not assume material is recyclable. Please note that this is not applicable to operations with approval for building and demolition waste disposal on site. | O76: 0 | P76: 1.59 | R76: Y
C77: =C15&" Subtotal" -> Termination of Services and Demolition Works Subtotal | J77: =SUM(J15:J76) -> 0 | R77: Y
C78: Rail Infrastructure | D78: =VLOOKUP($P78,'Cost Schedule'!$B:$F,2,FALSE) -> Remove rail loop and spur, ballast etc. and disposal on-site/locally | E78: Y | G78: =VLOOKUP($P78,'Cost Schedule'!$B:$F,3,FALSE) -> m | H78: =VLOOKUP($P78,'Cost Schedule'!$B:$F,4,FALSE) -> 60 | J78: =IF($E78="Y",IF(I78=0,F78*H78,F78*I78),"") -> 0 | K78: =IF(I78<>"","insert additional information here","") ->  | L78: =VLOOKUP($P78,'Cost Schedule'!$B:$F,5,FALSE) -> Remove all materials to allow area to be reshaped and rehabilitated - does not include transport to regional disposal facility or equivalent. | O78: 0 | P78: 2.01 | R78: Y
D79: =VLOOKUP($P79,'Cost Schedule'!$B:$F,2,FALSE) -> Remove train loading facilities and disposal on-site/locally | E79: Y | G79: =VLOOKUP($P79,'Cost Schedule'!$B:$F,3,FALSE) -> m2 | H79: =VLOOKUP($P79,'Cost Schedule'!$B:$F,4,FALSE) -> 185 | J79: =IF($E79="Y",IF(I79=0,F79*H79,F79*I79),"") -> 0 | K79: =IF(I79<>"","insert additional information here","") ->  | L79: =VLOOKUP($P79,'Cost Schedule'!$B:$F,5,FALSE) -> Remove rail load point infrastructure including gantries and control structures. Does not include transport to regional disposal facility or equivalent. | O79: 0 | P79: 2.02 | R79: Y
D80: =VLOOKUP($P80,'Cost Schedule'!$B:$F,2,FALSE) -> Reshape rail spur and load out areas. Does not include growth media and revegetation | E80: Y | G80: =VLOOKUP($P80,'Cost Schedule'!$B:$F,3,FALSE) -> ha | H80: =VLOOKUP($P80,'Cost Schedule'!$B:$F,4,FALSE) -> 2860 | J80: =IF($E80="Y",IF(I80=0,F80*H80,F80*I80),"") -> 0 | K80: =IF(I80<>"","insert additional information here","") ->  | L80: =VLOOKUP($P80,'Cost Schedule'!$B:$F,5,FALSE) -> D10 Dozer and 16 H Grader (50% utilisation). | O80: 0 | P80: 2.03 | R80: Y
C81: =C78&" Subtotal" -> Rail Infrastructure Subtotal | J81: =SUM(J78:J80) -> 0 | R81: Y
C82: Contaminated Materials | D82: =VLOOKUP($P82,'Cost Schedule'!$B:$F,2,FALSE) -> Undertake a preliminary site investigation (Phase 1). This accounts for current and historical locations where areas of disturbance are clustered. If there are multiple cluster areas on site, multiple studies may be required. | E82: Y | G82: =VLOOKUP($P82,'Cost Schedule'!$B:$F,3,FALSE) -> Cluster | H82: =VLOOKUP($P82,'Cost Schedule'!$B:$F,4,FALSE) -> 15000 | J82: =IF($E82="Y",IF(I82=0,F82*H82,F82*I82),"") -> 0 | K82: =IF(I82<>"","insert additional information here","") ->  | L82: =VLOOKUP($P82,'Cost Schedule'!$B:$F,5,FALSE) -> The preliminary investigation would include at minimum a desktop assessment of the area and site history, incidents, etc. as per the National Environmental Protection (Site Contamination) Measure (NEPM) Phase 1 assessment (EP Act Section 389 (2) (iv)) or similar approved and recognised assessment method. A cluster may include: - Mine infrastructure (i.e., fuel / chemical store, workshop, vehicle wash-down, sewage treatment etc.) - Processing plants (i.e., ore and product storage, mine waste storage and disposal, rail load-out etc.) - Remote pit-top facilities (i.e., vehicle re-fuel, sewage treatment, secondary workshop, chemical storage etc.) | O82: =IF(I82="",0,1) -> 0 | P82: 3.01a | R82: Y
D83: =VLOOKUP($P83,'Cost Schedule'!$B:$F,2,FALSE) -> Undertake an intrusive site investigation on sites with small footprints to investigate e.g. ≤15 ha. This accounts for current and historical locations where areas of disturbance are clustered. If there are multiple cluster areas on site, multiple intrusive investigations should be included. | E83: Y | G83: =VLOOKUP($P83,'Cost Schedule'!$B:$F,3,FALSE) -> Cluster | H83: =VLOOKUP($P83,'Cost Schedule'!$B:$F,4,FALSE) -> 44000 | J83: 0 | L83: =VLOOKUP($P83,'Cost Schedule'!$B:$F,5,FALSE) -> The intrusive investigation would include at minimum a site walkover and field sampling as per the National Environmental Protection (Site Contamination) Measure (NEPM) Phase 2 intrusive investigation (EP Act Section 389 (2) (iv)) or similar approved and recognised assessment method. Note: An intrusive investigation is not required for all contaminated areas and should be applied considering the rehabilitation program, site history, location, etc. A cluster area where it is highly anticipated that contamination has occurred (i.e., underground tanks / pipes that are known to have leaked, chemical stores with earthen bunds, around ineffective oil/water separators etc.) and further field work is required involving intrusive investigation. Assumes site is easily accessible and a small area e.g. ~10-15 ha requires investigation and testing (test pits, boreholes, etc.) based on Sampling and Analysis Quality Plan. Includes SAQP, fieldwork, sampling and analysis. | O83: 0 | P83: 3.01b | R83: Y
D84: =VLOOKUP($P84,'Cost Schedule'!$B:$F,2,FALSE) -> Undertake an intrusive site investigation on sites with large footprints to investigate e.g. >15 ha. This accounts for current and historical locations where areas of disturbance are clustered. If there are multiple cluster areas on site, multiple intrusive investigations should be included. | E84: Y | G84: =VLOOKUP($P84,'Cost Schedule'!$B:$F,3,FALSE) -> Cluster | H84: =VLOOKUP($P84,'Cost Schedule'!$B:$F,4,FALSE) -> 106000 | J84: 0 | L84: =VLOOKUP($P84,'Cost Schedule'!$B:$F,5,FALSE) -> The intrusive investigation would include at minimum a site walkover and field sampling as per the National Environmental Protection (Site Contamination) Measure (NEPM) Phase 2 intrusive investigation (EP Act Section 389 (2) (iv)) or similar approved and recognised assessment method. Note: An intrusive investigation is not required for all contaminated areas and should be applied considering the rehabilitation program, site history, location, etc. A cluster area where it is highly anticipated that contamination has occurred (i.e., underground tanks / pipes that are known to have leaked, chemical stores with earthen bunds, around ineffective oil/water separators etc.) and further field work is required involving intrusive investigation. Assume site has a history of contamination and/or a large area >15 ha requires investigation and testing (test pits, boreholes, etc.) based on Sampling and Analysis Quality Plan. Includes SAQP, fieldwork, sampling and analysis. | O84: 0 | P84: 3.01c | R84: Y
D85: =VLOOKUP($P85,'Cost Schedule'!$B:$F,2,FALSE) -> Develop a Remediation Action Plan on sites with small footprints based on outcomes of intrusive investigation including strategies to address contamination exceedances | E85: Y | G85: =VLOOKUP($P85,'Cost Schedule'!$B:$F,3,FALSE) -> allow | H85: =VLOOKUP($P85,'Cost Schedule'!$B:$F,4,FALSE) -> 35000 | J85: 0 | L85: =VLOOKUP($P85,'Cost Schedule'!$B:$F,5,FALSE) -> Develop remediation plan for approval including designs and detailed costs. Costs may increase if detailed designs required for construction. | O85: 0 | P85: 3.01d | R85: Y
D86: =VLOOKUP($P86,'Cost Schedule'!$B:$F,2,FALSE) -> Develop a Remediation Action Plan on sites with large footprints based on outcomes of intrusive investigation including strategies to address contamination exceedances | E86: Y | G86: =VLOOKUP($P86,'Cost Schedule'!$B:$F,3,FALSE) -> allow | H86: =VLOOKUP($P86,'Cost Schedule'!$B:$F,4,FALSE) -> Use alternate rate cell | J86: =IF($E86="Y",IF(I86=0,F86*0,F86*I86),"") -> 0 | L86: =VLOOKUP($P86,'Cost Schedule'!$B:$F,5,FALSE) -> Assumes complex site; detailed design drawings required for cover. | O86: 0 | P86: 3.01e | R86: Y
D87: =VLOOKUP($P87,'Cost Schedule'!$B:$F,2,FALSE) -> Removal and disposal of contaminated water from tanks, bunded areas and sumps | E87: Y | G87: =VLOOKUP($P87,'Cost Schedule'!$B:$F,3,FALSE) -> L | H87: =VLOOKUP($P87,'Cost Schedule'!$B:$F,4,FALSE) -> 0.35 | J87: 0 | L87: =VLOOKUP($P87,'Cost Schedule'!$B:$F,5,FALSE) -> Cost for recent sump clean-up from resource activity - requires specialists to treat. | O87: 0 | P87: 3.02 | R87: Y
D88: =VLOOKUP($P88,'Cost Schedule'!$B:$F,2,FALSE) -> Remove material (carbonaceous / metalliferous spillage or otherwise) from footprint of the process facility (leach pads) / stockpile area (ROM product) / roads and dump in a void on-site (Select Haul Distance from list) | E88: Y | G88: m3 | H88: =VLOOKUP($P88,'Cost Schedule'!$B:$F,4,FALSE) -> Select from List | J88: =IF($E88="Y",IF(I88="",IF($H88="Select from List","",IF(I88=0,F88*H88,"")),F88*I88),"") ->  | K88: Select Haul Distance Here | L88: =VLOOKUP($P88,'Cost Schedule'!$B:$F,5,FALSE) -> This item includes scraping and removal of the volume of carbonaceous material using dozer, grader etc. to make safe an area and enable the establishment of rehabilitation. | O88: 0 | P88: =IF(Q88=1,"3.03-",IF(Q88=2,"3.03a",IF(Q88=3,"3.03b",IF(Q88=4,"3.03c",IF(Q88=5,"3.03d","3.03"))))) -> 3.03- | Q88: =VLOOKUP(K88,Select_Haul_Distance_Index,2,FALSE) -> 1 | R88: Y
D89: =VLOOKUP($P89,'Cost Schedule'!$B:$F,2,FALSE) ->  | K89: =IF(I88<>"","insert additional information here","") ->  | R89: =R88 -> Y
D90: =VLOOKUP($P90,'Cost Schedule'!$B:$F,2,FALSE) -> Load, cart and dispose of Hazardous classified contaminated material off site to a licensed landfill. Assumes cartage to a licensed landfill. | E90: Y | G90: =VLOOKUP($P90,'Cost Schedule'!$B:$F,3,FALSE) -> m3 | H90: =VLOOKUP($P90,'Cost Schedule'!$B:$F,4,FALSE) -> 800 | J90: =IF($E90="Y",IF(I90=0,F90*H90,F90*I90),"") -> 0 | K90: =IF(I90<>"","insert additional information here","") ->  | L90: =VLOOKUP($P90,'Cost Schedule'!$B:$F,5,FALSE) -> Includes load, haul and dump fees to a licensed facility. | O90: =IF(I90="",0,1) -> 0 | P90: 3.04a | R90: Y
D91: =VLOOKUP($P91,'Cost Schedule'!$B:$F,2,FALSE) -> Load, cart and disposal of Restricted classified contaminated material off site to a licensed landfill. Add $50/m3 for cartage from regional areas | E91: Y | G91: =VLOOKUP($P91,'Cost Schedule'!$B:$F,3,FALSE) -> m4 | H91: =VLOOKUP($P91,'Cost Schedule'!$B:$F,4,FALSE) -> 660 | J91: =IF($E91="Y",IF(I91=0,F91*H91,F91*I91),"") -> 0 | K91: =IF(I91<>"","insert additional information here","") ->  | L91: =VLOOKUP($P91,'Cost Schedule'!$B:$F,5,FALSE) -> Includes load, haul and dump fees to a licensed facility. | O91: 0 | P91: 3.04b | R91: Y
D92: =VLOOKUP($P92,'Cost Schedule'!$B:$F,2,FALSE) -> Load, cart and disposal of Low Level contaminated material off site to a licensed landfill. Add $50/m3 for cartage to regional landfill | E92: Y | G92: =VLOOKUP($P92,'Cost Schedule'!$B:$F,3,FALSE) -> m3 | H92: =VLOOKUP($P92,'Cost Schedule'!$B:$F,4,FALSE) -> 220 | J92: 0 | K92: =IF(I92<>"","insert additional information here","") ->  | L92: =VLOOKUP($P92,'Cost Schedule'!$B:$F,5,FALSE) -> Includes load, haul and dump fees to a licensed facility. | O92: 0 | P92: 3.05 | R92: Y
D93: =VLOOKUP($P93,'Cost Schedule'!$B:$F,2,FALSE) -> Onsite remediation of hydrocarbon contaminated soils manual land farming (Select Volume from List) | E93: Y | G93: =VLOOKUP($P93,'Cost Schedule'!$B:$F,3,FALSE) -> m3 | H93: =VLOOKUP($P93,'Cost Schedule'!$B:$F,4,FALSE) -> Select from List | J93: =IF($E93="Y",IF(I93="",IF($H93="Select from List","",IF(I93=0,F93*H93,"")),F93*I93),"") ->  | K93: Select Volume Here | L93: =VLOOKUP($P93,'Cost Schedule'!$B:$F,5,FALSE) -> Spreading of contaminated soils on a prepared surface and stimulation of aerobic microbial activity within the soils through aeration and/or the addition of minerals, nutrients and moisture to promote the aerobic degradation of organic chemicals - time frame of up to 24 months. | O93: =IF(I95="",0,1) -> 0 | P93: =IF(Q93=1,"3.06-",IF(Q93=2,"3.06a",IF(Q93=3,"3.06b",IF(Q93=4,"3.06c",IF(Q93=5,"3.06d","3.06"))))) -> 3.06- | Q93: =VLOOKUP(K93,Select_Volume_Index,2,FALSE) -> 1 | R93: Y
H94: =VLOOKUP($P94,'Cost Schedule'!$B:$F,4,FALSE) ->  | K94: =IF(I93<>"","insert additional information here","") ->  | R94: =R93 -> Y
D95: =VLOOKUP($P95,'Cost Schedule'!$B:$F,2,FALSE) -> Mobilisation of cement stabilisation plant and equipment for hydrocarbon (i.e., PAH, long chain hydrocarbons, etc.) contaminated soil treatment | E95: Y | G95: =VLOOKUP($P95,'Cost Schedule'!$B:$F,3,FALSE) -> Item | H95: =VLOOKUP($P95,'Cost Schedule'!$B:$F,4,FALSE) -> 150000 | J95: 0 | K95: =IF(I95<>"","insert additional information here","") ->  | L95: =VLOOKUP($P95,'Cost Schedule'!$B:$F,5,FALSE) -> Required if treatment of hydrocarbon contamination is required to be fast tracked. | O95: 0 | P95: 3.07 | R95: Y
D96: =VLOOKUP($P96,'Cost Schedule'!$B:$F,2,FALSE) -> On-site remediation of hydrocarbon contaminated soils - using a mobile treatment unit | E96: Y | G96: =VLOOKUP($P96,'Cost Schedule'!$B:$F,3,FALSE) -> m3 | H96: =VLOOKUP($P96,'Cost Schedule'!$B:$F,4,FALSE) -> 165 | J96: 0 | L96: =VLOOKUP($P96,'Cost Schedule'!$B:$F,5,FALSE) -> Additional cost as the treatment process is fast tracked. | O96: 0 | P96: 3.08 | R96: Y
D97: =VLOOKUP($P97,'Cost Schedule'!$B:$F,2,FALSE) -> Remove and dispose of asbestos (<750 m2) | E97: Y | G97: =VLOOKUP($P97,'Cost Schedule'!$B:$F,3,FALSE) -> m2 | H97: =VLOOKUP($P97,'Cost Schedule'!$B:$F,4,FALSE) -> 50 | J97: 0 | L97: =VLOOKUP($P97,'Cost Schedule'!$B:$F,5,FALSE) -> Where an assessment/estimation has been made to confirm the volume of asbestos to be removed. | O97: 0 | P97: 3.09 | R97: Y
D98: =VLOOKUP($P98,'Cost Schedule'!$B:$F,2,FALSE) -> Remove and dispose of asbestos (>750 m2) | E98: Y | G98: =VLOOKUP($P98,'Cost Schedule'!$B:$F,3,FALSE) -> m2 | H98: =VLOOKUP($P98,'Cost Schedule'!$B:$F,4,FALSE) -> 40 | J98: 0 | L98: =VLOOKUP($P98,'Cost Schedule'!$B:$F,5,FALSE) -> Where an assessment/estimation has been made to confirm the volume of asbestos to be removed. | O98: 0 | P98: 3.1 | R98: Y
D99: =VLOOKUP($P99,'Cost Schedule'!$B:$F,2,FALSE) -> Waste disposal to Council landfill - fees (asbestos) | E99: Y | G99: =VLOOKUP($P99,'Cost Schedule'!$B:$F,3,FALSE) -> tonne | H99: =VLOOKUP($P99,'Cost Schedule'!$B:$F,4,FALSE) -> 290 | J99: 0 | L99: =VLOOKUP($P99,'Cost Schedule'!$B:$F,5,FALSE) -> Landfill fees to regional landfill. | O99: 0 | P99: 3.11 | R99: Y
D100: =VLOOKUP($P100,'Cost Schedule'!$B:$F,2,FALSE) -> Treatment of known Acid Sulfate Soils | E100: Y | G100: =VLOOKUP($P100,'Cost Schedule'!$B:$F,3,FALSE) -> ha | H100: =VLOOKUP($P100,'Cost Schedule'!$B:$F,4,FALSE) -> 2580 | J100: 0 | L100: =VLOOKUP($P100,'Cost Schedule'!$B:$F,5,FALSE) -> Assumes ASS is treatable via neutralisation and does not require capping and isolation. Assumes 1% by weight lime addition and treatment to 100 mm depth only. | O100: 0 | P100: 3.12 | R100: =E100 -> Y
D101: =VLOOKUP($P101,'Cost Schedule'!$B:$F,2,FALSE) -> Removal and disposal of plastic liner (i.e. dam, leach pad, sump etc.) | E101: Y | G101: =VLOOKUP($P101,'Cost Schedule'!$B:$F,3,FALSE) -> m2 | H101: =VLOOKUP($P101,'Cost Schedule'!$B:$F,4,FALSE) -> 1 | J101: =IF($E101="Y",IF(I101=0,F101*H101,F101*I101),"") -> 0 | K101: =IF(I101<>"","insert additional information here","") ->  | L101: =VLOOKUP($P101,'Cost Schedule'!$B:$F,5,FALSE) -> Provisional sum for cutting using ripping tynes and on-site disposal of the liner. | O101: 0 | P101: 3.13 | R101: Y
D102: =VLOOKUP($P102,'Cost Schedule'!$B:$F,2,FALSE) -> Long haulage brine/salt for disposal (Select Haul Distance from list) | E102: Y | G102: =VLOOKUP($P102,'Cost Schedule'!$B:$F,3,FALSE) -> tonne | H102: =VLOOKUP($P102,'Cost Schedule'!$B:$F,4,FALSE) -> Select from List | J102: =IF($E102="Y",IF(I102=0,IF($H102="Select from List","",IF(I102=0,F102*H102,"")),F102*I102),"") ->  | K102: Select Haul Distance Here | L102: =VLOOKUP($P102,'Cost Schedule'!$B:$F,5,FALSE) -> Costs for haulage to location for authorised disposal. | O102: =IF(I102="",0,1) -> 0 | P102: =IF(Q102=1,"3.14-",IF(Q102=2,"3.14a",IF(Q102=3,"3.14b",IF(Q102=4,"3.14c",IF(Q102=5,"3.14d","3.14"))))) -> 3.14- | Q102: =VLOOKUP(K102,Select_Haul_distance_Here_index,2,FALSE) -> 1 | R102: Y
K103: =IF(I102<>"","insert additional information here","") -> 
D104: =VLOOKUP($P104,'Cost Schedule'!$B:$F,2,FALSE) -> Brine disposal to landfill - fees only | E104: Y | G104: =VLOOKUP($P104,'Cost Schedule'!$B:$F,3,FALSE) -> tonne | H104: =VLOOKUP($P104,'Cost Schedule'!$B:$F,4,FALSE) -> 288 | J104: =IF($E104="Y",IF(I104=0,F104*H104,F104*I104),"") -> 0 | K104: =IF(I104<>"","insert additional information here","") ->  | L104: =VLOOKUP($P104,'Cost Schedule'!$B:$F,5,FALSE) -> Rate for trackable liquid levy of $78.20 per tonne and authorised disposal to landfill. | O104: =IF(I104="",0,1) -> 0 | P104: 3.14d | R104: =E104 -> Y
D105: =VLOOKUP($P105,'Cost Schedule'!$B:$F,2,FALSE) -> Long haulage water (clean or contaminated) (Select Haul Distance from list) | E105: Y | G105: =VLOOKUP($P105,'Cost Schedule'!$B:$F,3,FALSE) -> tonne | H105: =VLOOKUP($P105,'Cost Schedule'!$B:$F,4,FALSE) -> Select from List | J105: =IF($E105="Y",IF(I105=0,IF($H105="Select from List","",IF(I105=0,F105*H105,"")),F105*I105),"") ->  | K105: Select Haul Distance Here | L105: =VLOOKUP($P105,'Cost Schedule'!$B:$F,5,FALSE) -> Assumes transport in a 20,000 L tanker. Add disposal costs to additional items where warranted. | O105: =IF(I105="",0,1) -> 0 | P105: =IF(Q105=1,"3.15-",IF(Q105=2,"3.15a",IF(Q105=3,"3.15b",IF(Q105=4,"3.15c",IF(Q105=5,"3.15d","3.15"))))) -> 3.15- | Q105: =VLOOKUP(K105,Select_Haul_Dist_315_Index,2,FALSE) -> 1 | R105: Y
K106: =IF(I105<>"","insert additional information here","") -> 
C107: =C82&" Subtotal" -> Contaminated Materials Subtotal | J107: =SUM(J82:J105) -> 0 | R107: Y
C108: Vents, Shafts and Boreholes | D108: =VLOOKUP($P108,'Cost Schedule'!$B:$F,2,FALSE) -> Seal portals / drifts (width >3 m) – only entry seal / plug required with in front of access backfill with engineered fill for 5 m | E108: Y | G108: =VLOOKUP($P108,'Cost Schedule'!$B:$F,3,FALSE) -> allow | H108: =VLOOKUP($P108,'Cost Schedule'!$B:$F,4,FALSE) -> 126000 | J108: =IF($E108="Y",IF(I108=0,F108*H108,F108*I108),"") -> 0 | K108: =IF(I108<>"","insert additional information here","") ->  | L108: =VLOOKUP($P108,'Cost Schedule'!$B:$F,5,FALSE) -> This cost is not applicable to coal operations which require backfilling to MDG6001 or similar due to gases. Costs include engineering and QA/QC. Costs assume engineered fill backfilled between 2 x 1 m plugs for sealing, + haul material to backfill per >5 km distance + concrete pump and secondary support. | O108: =IF(I108="",0,1) -> 0 | P108: 4.01a | R108: Y
D109: =VLOOKUP($P109,'Cost Schedule'!$B:$F,2,FALSE) -> Seal portals / drifts (width >3 m) accessible to men and machinery requiring a bulkhead – grout backfill against a concrete bulkhead to be constructed | E109: Y | G109: =VLOOKUP($P109,'Cost Schedule'!$B:$F,3,FALSE) -> allow | H109: =VLOOKUP($P109,'Cost Schedule'!$B:$F,4,FALSE) -> 250000 | J109: 0 | L109: =VLOOKUP($P109,'Cost Schedule'!$B:$F,5,FALSE) -> Cost includes engineering the bulkhead and underground construction (access available) followed by grout backfill via workings and rehabilitation (reshape, bulk push and full rehabilitation). Assume tunnel length of 20 m. For every additional m add $7,250 for grouting. If no bulkhead required, deduct $60,000. | O109: 0 | P109: 4.01b | R109: Y
D110: =VLOOKUP($P110,'Cost Schedule'!$B:$F,2,FALSE) -> Seal portals / drifts (width >3 m) not accessible by men or machinery – grout backfill against a concrete bulkhead existing or to be constructed | E110: Y | G110: =VLOOKUP($P110,'Cost Schedule'!$B:$F,3,FALSE) -> allow | H110: =VLOOKUP($P110,'Cost Schedule'!$B:$F,4,FALSE) -> 250000 | J110: 0 | L110: =VLOOKUP($P110,'Cost Schedule'!$B:$F,5,FALSE) -> Cost includes engineering the bulkhead if required and construction via access directly above heading followed by grout backfill via boreholes every 10 m to fill voids and rehabilitation (bulk push, final trim, seeding and full rehabilitation). Assume tunnel length of 20 m. For every additional m add $8,700 for grouting. If no bulkhead required, deduct $60,000. Assumes any existing bulkhead is observable by camera and satisfies regulations and engineer (location, etc.). | O110: 0 | P110: 4.01c | R110: Y
D111: =VLOOKUP($P111,'Cost Schedule'!$B:$F,2,FALSE) -> Seal small adits (width ≤3 m) accessible by men and/or machinery or neither requiring a bulkhead –backfill with appropriate material against a concrete bulkhead existing or to be constructed. The rate includes reshaping and rehabilitation of the batter around the entrance of the adit | E111: Y | G111: =VLOOKUP($P111,'Cost Schedule'!$B:$F,3,FALSE) -> allow | H111: =VLOOKUP($P111,'Cost Schedule'!$B:$F,4,FALSE) -> 25000 | J111: 0 | L111: =VLOOKUP($P111,'Cost Schedule'!$B:$F,5,FALSE) -> Costs estimated from executed works program in NSW from multiple sites. Rate assumes standard works program with suitable access, and additional roof and rib stabilisation works etc. is not required. | O111: 0 | P111: 4.01d | R111: Y
D112: =VLOOKUP($P112,'Cost Schedule'!$B:$F,2,FALSE) -> Costs to grout fill tunnel via mine workings to seal and eliminate voids and/or likelihood of failures of ground | E112: Y | G112: =VLOOKUP($P112,'Cost Schedule'!$B:$F,3,FALSE) -> m | H112: =VLOOKUP($P112,'Cost Schedule'!$B:$F,4,FALSE) -> 7250 | J112: 0 | L112: =VLOOKUP($P112,'Cost Schedule'!$B:$F,5,FALSE) -> Workings are accessible to run grout lines via machine or seam dip is favourable i.e. dips inbye | O112: 0 | P112: 4.02a | R112: Y
D113: =VLOOKUP($P113,'Cost Schedule'!$B:$F,2,FALSE) -> Costs to grout fill tunnel by drilling directly above to seal and eliminate voids and/or likelihood of failures of ground | E113: Y | G113: =VLOOKUP($P113,'Cost Schedule'!$B:$F,3,FALSE) -> m | H113: =VLOOKUP($P113,'Cost Schedule'!$B:$F,4,FALSE) -> 8700 | J113: 0 | L113: =VLOOKUP($P113,'Cost Schedule'!$B:$F,5,FALSE) -> Area directly above heading is accessible by drill rig with depth of cover <30 m and access outbye. One borehole required every 10m to fill void. | O113: 0 | P113: 4.02b | R113: Y
D114: =VLOOKUP($P114,'Cost Schedule'!$B:$F,2,FALSE) -> Demolish ventilation fans | E114: Y | G114: =VLOOKUP($P114,'Cost Schedule'!$B:$F,3,FALSE) -> Item | H114: =VLOOKUP($P114,'Cost Schedule'!$B:$F,4,FALSE) -> 30000 | J114: 0 | L114: =VLOOKUP($P114,'Cost Schedule'!$B:$F,5,FALSE) -> Costs for demolition of ventilation fan prior to sealing shaft. | O114: 0 | P114: 4.03a | R114: Y
D115: =VLOOKUP($P115,'Cost Schedule'!$B:$F,2,FALSE) -> Seal and rehabilitate ventilation shafts on hard rock operations (no to low gas risk) or coal operations - allows for works in a remote location | E115: Y | G115: =VLOOKUP($P115,'Cost Schedule'!$B:$F,3,FALSE) -> allow | H115: =VLOOKUP($P115,'Cost Schedule'!$B:$F,4,FALSE) -> 150000 | J115: 0 | L115: =VLOOKUP($P115,'Cost Schedule'!$B:$F,5,FALSE) -> Rate accounts for a range of factors including variations in depth and size, accessibility limitations, equipment transport to the shaft etc. Assumes engineered fill is available within 10 km round trip and no bulkhead required. Excludes demolition of ventilation fans. | O115: 0 | P115: 4.03b | R115: Y
D116: =VLOOKUP($P116,'Cost Schedule'!$B:$F,2,FALSE) -> Install gate or grill over the adit (Where site might be used by bats) | E116: Y | G116: =VLOOKUP($P116,'Cost Schedule'!$B:$F,3,FALSE) -> Item | H116: =VLOOKUP($P116,'Cost Schedule'!$B:$F,4,FALSE) -> 200000 | J116: 0 | L116: =VLOOKUP($P116,'Cost Schedule'!$B:$F,5,FALSE) -> Rate accounts for a range of factors including establishing clear access, and/or working in remote locations without services, and/or stabilisation works to prevent the entry collapsing and compromising the gate etc. | O116: =IF(I116="",0,1) -> 0 | P116: 4.05 | R116: Y
D117: =VLOOKUP($P117,'Cost Schedule'!$B:$F,2,FALSE) -> Option 1 - Coal bore hole Exploration boreholes – rehabilitate coal boreholes and drill pads as required | E117: Y | G117: =VLOOKUP($P117,'Cost Schedule'!$B:$F,3,FALSE) -> depth (m) | H117: =VLOOKUP($P117,'Cost Schedule'!$B:$F,4,FALSE) -> 44.55 | J117: 0 | L117: =VLOOKUP($P117,'Cost Schedule'!$B:$F,5,FALSE) -> Cost to grout and cap an open exploration borehole. Assume a 20 m x 20 m drill pad requires rehabilitation - push cover of nearby growth media, rip and seed. | O117: =IF(I117="",0,1) -> 0 | P117: 4.06a | R117: =E117 -> Y
D118: =VLOOKUP($P118,'Cost Schedule'!$B:$F,2,FALSE) -> Option 3 - Mineral RAB and aircore drill holes Exploration boreholes – backfill open Rotary Airblast (RAB) or aircore drill holes with cuttings | E118: Y | G118: =VLOOKUP($P118,'Cost Schedule'!$B:$F,3,FALSE) -> allow | H118: =VLOOKUP($P118,'Cost Schedule'!$B:$F,4,FALSE) -> 42.5 | J118: 0 | L118: =VLOOKUP($P118,'Cost Schedule'!$B:$F,5,FALSE) -> May include cutting of casing, installation of a casing cap, and/or manually backfilling the hole with drill cuttings. Does not include reshaping / ripping the drill pad, amelioration / seeding etc. | O118: =IF(I118="",0,1) -> 0 | P118: 4.06b | R118: Y
D119: =VLOOKUP($P119,'Cost Schedule'!$B:$F,2,FALSE) -> Option 2 - Mineral drill hole requiring grouting Exploration boreholes – grout and cap open bore holes | E119: Y | G119: =VLOOKUP($P119,'Cost Schedule'!$B:$F,3,FALSE) -> allow | H119: =VLOOKUP($P119,'Cost Schedule'!$B:$F,4,FALSE) -> 5700 | J119: 0 | L119: =VLOOKUP($P119,'Cost Schedule'!$B:$F,5,FALSE) -> Includes grouting and capping 100 - 200 m exploration boreholes to meet the requirements of Departmental Guidelines. | O119: =IF(I119="",0,1) -> 0 | P119: 4.07 | R119: Y
D120: =VLOOKUP($P120,'Cost Schedule'!$B:$F,2,FALSE) -> Boreholes – cap and seal open bore holes with steel casing (i.e., goaf drainage etc.) | E120: Y | G120: =VLOOKUP($P120,'Cost Schedule'!$B:$F,3,FALSE) -> allow | H120: =VLOOKUP($P120,'Cost Schedule'!$B:$F,4,FALSE) -> 6960 | J120: 0 | L120: =VLOOKUP($P120,'Cost Schedule'!$B:$F,5,FALSE) -> Holes deeper than 100 m - includes cutting steel collar 6 m below surface, grouting and capping. | O120: 0 | P120: 4.08 | R120: Y
D121: =VLOOKUP($P121,'Cost Schedule'!$B:$F,2,FALSE) -> Boreholes – cap and seal open bore holes - surface-to-in-seam gas drainage | E121: Y | G121: =VLOOKUP($P121,'Cost Schedule'!$B:$F,3,FALSE) -> allow | H121: =VLOOKUP($P121,'Cost Schedule'!$B:$F,4,FALSE) -> 17890 | J121: 0 | L121: =VLOOKUP($P121,'Cost Schedule'!$B:$F,5,FALSE) -> Surface-to-in-seam gas drainage boreholes. | O121: 0 | P121: 4.09 | R121: Y
D122: =VLOOKUP($P122,'Cost Schedule'!$B:$F,2,FALSE) -> Boreholes – cap and seal open bore holes - vertical gas drainage | E122: Y | G122: =VLOOKUP($P122,'Cost Schedule'!$B:$F,3,FALSE) -> allow | H122: =VLOOKUP($P122,'Cost Schedule'!$B:$F,4,FALSE) -> 16000 | J122: 0 | L122: =VLOOKUP($P122,'Cost Schedule'!$B:$F,5,FALSE) -> Vertical gas drainage boreholes. | O122: =IF(I122="",0,1) -> 0 | P122: 4.1 | R122: Y
D123: =VLOOKUP($P123,'Cost Schedule'!$B:$F,2,FALSE) -> Boreholes – grout (with concrete) cap and seal bore holes (i.e. where sealing aquifers) | E123: Y | G123: =VLOOKUP($P123,'Cost Schedule'!$B:$F,3,FALSE) -> allow | H123: =VLOOKUP($P123,'Cost Schedule'!$B:$F,4,FALSE) -> 35000 | J123: 0 | L123: =VLOOKUP($P123,'Cost Schedule'!$B:$F,5,FALSE) -> Includes multi skin sleaves to prevent aquifer mixing. | O123: 0 | P123: 4.11 | R123: Y
D124: =VLOOKUP($P124,'Cost Schedule'!$B:$F,2,FALSE) -> Boreholes – cap and seal service boreholes for UG coal operations | E124: Y | G124: =VLOOKUP($P124,'Cost Schedule'!$B:$F,3,FALSE) -> allow | H124: =VLOOKUP($P124,'Cost Schedule'!$B:$F,4,FALSE) -> 45000 | J124: 0 | L124: =VLOOKUP($P124,'Cost Schedule'!$B:$F,5,FALSE) -> Includes large diameter boreholes used for supplying electricity (66kV), compressed air, water, solsenic etc. | O124: 0 | P124: 4.12 | R124: Y
D125: =VLOOKUP($P125,'Cost Schedule'!$B:$F,2,FALSE) -> Option 4 - Mineral diamond drill hole Rehabilitation of diamond drill holes and pad including sealing drill holes for mineral exploration | E125: Y | G125: =VLOOKUP($P125,'Cost Schedule'!$B:$F,3,FALSE) -> Item | H125: =VLOOKUP($P125,'Cost Schedule'!$B:$F,4,FALSE) -> 2070 | J125: 0 | L125: =VLOOKUP($P125,'Cost Schedule'!$B:$F,5,FALSE) -> Bog out cuttings, remove fencing, remove rubbish, push sumps in, rehabilitate pads and tracks, cut and plug collars. Includes labour and equipment, disposal of rubbish locally on site | O125: 0 | P125: 4.13 | R125: Y
D126: =VLOOKUP($P126,'Cost Schedule'!$B:$F,2,FALSE) -> Option 5 - Mineral reverse circulation drill holes Rehabilitation of reverse circulation drill holes and pad including sealing drill holes for mineral exploration | E126: Y | G126: =VLOOKUP($P126,'Cost Schedule'!$B:$F,3,FALSE) -> Item | H126: =VLOOKUP($P126,'Cost Schedule'!$B:$F,4,FALSE) -> 1340 | J126: 0 | L126: =VLOOKUP($P126,'Cost Schedule'!$B:$F,5,FALSE) -> Sealing required, but not complete filling with concrete/grout | O126: 0 | P126: 4.14 | R126: Y
D127: =VLOOKUP($P127,'Cost Schedule'!$B:$F,2,FALSE) -> Option 6 - Rehabilitation of drill hole collars Rehabilitation of drill hole collars (mineral exploration) | E127: Y | G127: =VLOOKUP($P127,'Cost Schedule'!$B:$F,3,FALSE) -> each | H127: =VLOOKUP($P127,'Cost Schedule'!$B:$F,4,FALSE) -> 415 | J127: 0 | L127: =VLOOKUP($P127,'Cost Schedule'!$B:$F,5,FALSE) -> Cut collar, remove, cap, backfill capped collar and cover with nearby organic or growth material | O127: 0 | P127: 4.15 | R127: Y
C128: =C108&" Subtotal" -> Vents, Shafts and Boreholes Subtotal | J128: =SUM(J108:J127) -> 0 | R128: Y
C129: Roads and Tracks | D129: =VLOOKUP($P129,'Cost Schedule'!$B:$F,2,FALSE) -> Unsealed roads / vehicle park-up areas – minor works including deep rip and trim | E129: Y | G129: =VLOOKUP($P129,'Cost Schedule'!$B:$F,3,FALSE) -> ha | H129: =VLOOKUP($P129,'Cost Schedule'!$B:$F,4,FALSE) -> 1040 | J129: =IF($E129="Y",IF(I129=0,F129*H129,F129*I129),"") -> 0 | K129: =IF(I129<>"","insert additional information here","") ->  | L129: =VLOOKUP($P129,'Cost Schedule'!$B:$F,5,FALSE) -> Assumes ~6 m road width - 16H Grader. | O129: 0 | P129: 5.01 | R129: Y
D130: =VLOOKUP($P130,'Cost Schedule'!$B:$F,2,FALSE) -> Unsealed roads / access tracks / vehicle park-up areas with windrows and/or small earthen bunds – minor earthworks and deep rip and trim | E130: Y | G130: =VLOOKUP($P130,'Cost Schedule'!$B:$F,3,FALSE) -> ha | H130: =VLOOKUP($P130,'Cost Schedule'!$B:$F,4,FALSE) -> 1500 | J130: 0 | L130: =VLOOKUP($P130,'Cost Schedule'!$B:$F,5,FALSE) -> D10 Dozer @ $400 per hour and 16 H grader @ $230 per hour (50% utilisation) - no seed | O130: 0 | P130: 5.02 | R130: Y
D131: =VLOOKUP($P131,'Cost Schedule'!$B:$F,2,FALSE) -> Unsealed roads / vehicle park-up areas – Minor earthworks, final trim and deep rip and seed (pasture grass) | E131: Y | G131: =VLOOKUP($P131,'Cost Schedule'!$B:$F,3,FALSE) -> ha | H131: =VLOOKUP($P131,'Cost Schedule'!$B:$F,4,FALSE) -> 3700 | J131: 0 | L131: =VLOOKUP($P131,'Cost Schedule'!$B:$F,5,FALSE) -> D10 Dozer @ $400 per hour and 16 H grader @ $230 per hour (50% utilisation) - pasture grass seed | O131: 0 | P131: 5.03 | R131: Y
D132: =VLOOKUP($P132,'Cost Schedule'!$B:$F,2,FALSE) -> Unsealed roads / vehicle park-up areas – Minor earthworks, final trim and deep rip, ameliorate and seed (native tree/shrub/grass) | E132: Y | G132: =VLOOKUP($P132,'Cost Schedule'!$B:$F,3,FALSE) -> ha | H132: =VLOOKUP($P132,'Cost Schedule'!$B:$F,4,FALSE) -> 4485 | J132: 0 | L132: =VLOOKUP($P132,'Cost Schedule'!$B:$F,5,FALSE) -> D10 Dozer @ $400 per hour and 16 H grader @ $230 per hour (50% utilisation) - native tree/shrub seed | O132: 0 | P132: 5.04 | R132: Y
D133: =VLOOKUP($P133,'Cost Schedule'!$B:$F,2,FALSE) -> Unsealed roads / haul roads / vehicle park-up areas with windrows and/or small earthen bunds – Minor earthworks, final trim and deep rip, ameliorate and seed (pasture grass) | E133: Y | G133: =VLOOKUP($P133,'Cost Schedule'!$B:$F,3,FALSE) -> ha | H133: =VLOOKUP($P133,'Cost Schedule'!$B:$F,4,FALSE) -> 4870 | J133: 0 | L133: =VLOOKUP($P133,'Cost Schedule'!$B:$F,5,FALSE) -> D10 Dozer @ $400 per hour and 16 H grader @ $230 per hour (50% utilisation) - pasture grass seed | O133: 0 | P133: 5.05 | R133: Y
D134: =VLOOKUP($P134,'Cost Schedule'!$B:$F,2,FALSE) -> Unsealed roads / haul roads / vehicle park-up areas with windrows and/or small earthen bunds – Minor earthworks, final trim and deep rip, ameliorate and seed (native tree/shrub/grass) | E134: Y | G134: =VLOOKUP($P134,'Cost Schedule'!$B:$F,3,FALSE) -> ha | H134: =VLOOKUP($P134,'Cost Schedule'!$B:$F,4,FALSE) -> 7025 | J134: 0 | L134: =VLOOKUP($P134,'Cost Schedule'!$B:$F,5,FALSE) -> D10 Dozer @ $400 per hour and 16 H grader @ $230 per hour (50% utilisation) - native tree/shrub seed | O134: 0 | P134: 5.06 | R134: Y
D135: =VLOOKUP($P135,'Cost Schedule'!$B:$F,2,FALSE) -> Remove stabilised material (blue metal, aggregate etc.) from roadways and disposal on-site/locally (Select Haul Distance from list) | E135: Y | G135: =VLOOKUP($P135,'Cost Schedule'!$B:$F,3,FALSE) -> m3 | H135: =VLOOKUP($P135,'Cost Schedule'!$B:$F,4,FALSE) -> Select from List | J135: =IF($E135="Y",IF(I135="",IF($H135="Select from List","",IF(I135=0,F135*H135,"")),F135*I135),"") ->  | K135: Select Haul Distance Here | L135: =VLOOKUP($P135,'Cost Schedule'!$B:$F,5,FALSE) -> This item includes the scraping and removal of the volume of stabilised material from the road, laydown or other surface using an excavator, dozer and grader to enable the establishment of rehabilitation. | O135: 0 | P135: =IF(Q135=1,"5.07-",IF(Q135=2,"5.07a",IF(Q135=3,"5.07b",IF(Q135=4,"5.07c",IF(Q135=5,"5.07d","5.07"))))) -> 5.07- | Q135: =VLOOKUP(K135,Select_Haul_Distance_Index,2,FALSE) -> 1 | R135: Y
G136: =VLOOKUP($P136,'Cost Schedule'!$B:$F,3,FALSE) ->  | K136: =IF(I135<>"","insert additional information here","") ->  | R136: =R135 -> Y
C137: =C129&" Subtotal" -> Roads and Tracks Subtotal | J137: =SUM(J129:J136) -> 0 | R137: Y
C138: Earthworks / Structural Works (Landform Establishment) | D138: =VLOOKUP($P138,'Cost Schedule'!$B:$F,2,FALSE) -> Major bulk pushing to achieve grades nominated in the approval/permit – Select Push Length | E138: Y | G138: m3 | H138: =VLOOKUP($P138,'Cost Schedule'!$B:$F,4,FALSE) -> Select from List | J138: =IF($E138="Y",IF(I138="",IF($H138="Select from List","",IF(I138=0,F138*H138,"")),F138*I138),"") ->  | K138: Select Push Length Here | L138: =VLOOKUP($P138,'Cost Schedule'!$B:$F,5,FALSE) -> Major bulk pushing to achieve grades nominated in the approval/permit | O138: 0 | P138: =IF(Q138=1,"7.01-",IF(Q138=2,"7.01a",IF(Q138=3,"7.01b",IF(Q138=4,"7.01c",IF(Q138=5,"7.01d","7.01-"))))) -> 7.01- | Q138: =VLOOKUP(K138,Select_Push_Length_Index,2,FALSE) -> 1 | R138: Y
K139: =IF(I138<>"","insert additional information here","") ->  | R139: =R138 -> Y
D140: =VLOOKUP($P140,'Cost Schedule'!$B:$F,2,FALSE) -> Minor reshaping and pushing | E140: Y | G140: =VLOOKUP($P140,'Cost Schedule'!$B:$F,3,FALSE) -> ha | H140: =VLOOKUP($P140,'Cost Schedule'!$B:$F,4,FALSE) -> 3900 | J140: =IF($E140="Y",IF(I140=0,F140*H140,F140*I140),"") -> 0 | K140: =IF(I140<>"","insert additional information here","") ->  | L140: =VLOOKUP($P140,'Cost Schedule'!$B:$F,5,FALSE) -> D10 Dozer @ $400 per hour and 16 H grader @ $230 per hour (50% utilisation). | O140: =IF(I140="",0,1) -> 0 | P140: 7.02 | R140: Y
D141: =VLOOKUP($P141,'Cost Schedule'!$B:$F,2,FALSE) -> Fill dams, voids etc. - Source local material, cart and spread to cap or backfill, cap thickness determined by approval / permit (Select Haul Distance from List) | E141: Y | G141: m3 | H141: =VLOOKUP($P141,'Cost Schedule'!$B:$F,4,FALSE) -> Select from List | J141: =IF($E141="Y",IF(I141="",IF($H141="Select from List","",IF(I141=0,F141*H141,"")),F141*I141),"") ->  | K141: Select Haul Distance Here | L141: =VLOOKUP($P141,'Cost Schedule'!$B:$F,5,FALSE) -> This item includes the volume of material requiring backfill using an excavator and scraper to fill the void and enable the establishment of rehabilitation. | O141: 0 | P141: =IF(Q141=1,"9.02-",IF(Q141=2,"9.02a",IF(Q141=3,"9.02b",IF(Q141=4,"9.02c",IF(Q141=5,"9.02d","7.01-"))))) -> 9.02- | Q141: =VLOOKUP(K141,Select_Haul_Distance_Index,2,FALSE) -> 1 | R141: =E141 -> Y
K142: =IF(I141<>"","insert additional information here","") ->  | R142: =R141 -> Y
D143: =VLOOKUP($P143,'Cost Schedule'!$B:$F,2,FALSE) -> Shotcrete application on cuttings and steep slopes | E143: Y | G143: =VLOOKUP($P143,'Cost Schedule'!$B:$F,3,FALSE) -> m2 | H143: =VLOOKUP($P143,'Cost Schedule'!$B:$F,4,FALSE) -> 185 | J143: =IF($E143="Y",IF(I143=0,F143*H143,F143*I143),"") -> 0 | K143: =IF(I143<>"","insert additional information here","") ->  | L143: =VLOOKUP($P143,'Cost Schedule'!$B:$F,5,FALSE) -> This rate is used to rehabilitate steep slopes of weathered rock, roadway cuttings, etc that cannot be cut back and stabilised. | O143: =IF(I143="",0,1) -> 0 | P143: 9.03 | R143: =E143 -> Y
D144: =VLOOKUP($P144,'Cost Schedule'!$B:$F,2,FALSE) -> Trim, rock rake & deep rip (includes levelling / landscaping and rip in 1 direction) | E144: Y | G144: =VLOOKUP($P144,'Cost Schedule'!$B:$F,3,FALSE) -> ha | H144: =VLOOKUP($P144,'Cost Schedule'!$B:$F,4,FALSE) -> 1130 | J144: =IF($E144="Y",IF(I144=0,F144*H144,F144*I144),"") -> 0 | K144: =IF(I144<>"","insert additional information here","") ->  | L144: =VLOOKUP($P144,'Cost Schedule'!$B:$F,5,FALSE) -> Undertaken using D10 dozer and 16M grader. | O144: =IF(I144="",0,1) -> 0 | P144: 9.04 | R144: =E144 -> Y
D145: =VLOOKUP($P145,'Cost Schedule'!$B:$F,2,FALSE) -> Deep rip hard stand / lay down areas | E145: Y | G145: =VLOOKUP($P145,'Cost Schedule'!$B:$F,3,FALSE) -> ha | H145: =VLOOKUP($P145,'Cost Schedule'!$B:$F,4,FALSE) -> 960 | J145: =IF($E145="Y",IF(I145=0,F145*H145,F145*I145),"") -> 0 | K145: =IF(I145<>"","insert additional information here","") ->  | L145: =VLOOKUP($P145,'Cost Schedule'!$B:$F,5,FALSE) -> D10 deep ripping. | O145: =IF(I145="",0,1) -> 0 | P145: 9.05 | R145: =E145 -> Y
D146: =VLOOKUP($P146,'Cost Schedule'!$B:$F,2,FALSE) -> Structural works, banks, waterways - contour banks, drainage channels and other soil conservation measures | E146: Y | G146: =VLOOKUP($P146,'Cost Schedule'!$B:$F,3,FALSE) -> ha | H146: =VLOOKUP($P146,'Cost Schedule'!$B:$F,4,FALSE) -> 1600 | J146: =IF($E146="Y",IF(I146=0,F146*H146,F146*I146),"") -> 0 | K146: =IF(I146<>"","insert additional information here","") ->  | L146: =VLOOKUP($P146,'Cost Schedule'!$B:$F,5,FALSE) -> Combination of dozer and excavator work plus grader for ~4 hours each per ha. | O146: =IF(I146="",0,1) -> 0 | P146: 7.03 | R146: Y
D147: =VLOOKUP($P147,'Cost Schedule'!$B:$F,2,FALSE) -> Construction of spine drains / drop structures and/or stabilising water course entry points - required for large catchments | E147: Y | G147: =VLOOKUP($P147,'Cost Schedule'!$B:$F,3,FALSE) -> m2 | H147: =VLOOKUP($P147,'Cost Schedule'!$B:$F,4,FALSE) -> 27 | J147: =IF($E147="Y",IF(I147=0,F147*H147,F147*I147),"") -> 0 | K147: =IF(I147<>"","insert additional information here","") ->  | L147: =VLOOKUP($P147,'Cost Schedule'!$B:$F,5,FALSE) -> Installation of on-site rock material (rip-rap) where managing water run-off from disturbed land and/or upon entry to water courses - prevents erosion of gully head (assumes competent material is locally available). If required to be sourced off site, assume an additional $20/m2. | O147: =IF(I147="",0,1) -> 0 | P147: 7.04 | R147: Y
C148: =C138&" Subtotal" -> Earthworks / Structural Works (Landform Establishment) Subtotal | J148: =SUM(J138:J147) -> 0 | R148: Y
C149: Land Preparation and Revegetation (Growth Media Development and Ecosystem Establishment) | D149: =VLOOKUP($P149,'Cost Schedule'!$B:$F,2,FALSE) -> Source, cart and spread growth media (Select Haul Distance from List) | E149: Y | G149: m3 | H149: =VLOOKUP($P149,'Cost Schedule'!$B:$F,4,FALSE) -> Select from List | J149: =IF($E149="Y",IF(I149="",IF($H149="Select from List","",IF(I149=0,F149*H149,"")),F149*I149),"") ->  | K149: Select Haul Distance Here | L149: =VLOOKUP($P149,'Cost Schedule'!$B:$F,5,FALSE) -> If topsoil is not available on-site, then Virgin Excavated Natural Material (VENM) may need to be externally sourced. | O149: 0 | P149: =IF(Q149=1,"9.01-",IF(Q149=2,"9.01a",IF(Q149=3,"9.01b",IF(Q149=4,"9.01c",IF(Q149=5,"9.01d","7.01-"))))) -> 9.01- | Q149: =VLOOKUP(K149,Select_Haul_Distance_Index,2,FALSE) -> 1 | R149: Y
K150: =IF(I149<>"","insert additional information here","") ->  | R150: =R149 -> Y
D151: =VLOOKUP($P151,'Cost Schedule'!$B:$F,2,FALSE) -> Planting mature trees (>15 cm) | E151: Y | G151: =VLOOKUP($P151,'Cost Schedule'!$B:$F,3,FALSE) -> allow | H151: =VLOOKUP($P151,'Cost Schedule'!$B:$F,4,FALSE) -> 15 | J151: =IF($E151="Y",IF(I151=0,F151*H151,F151*I151),"") -> 0 | K151: =IF(I151<>"","insert additional information here","") ->  | L151: =VLOOKUP($P151,'Cost Schedule'!$B:$F,5,FALSE) -> 4 m centres. | O151: =IF(I151="",0,1) -> 0 | P151: 9.06 | R151: Y
D152: =VLOOKUP($P152,'Cost Schedule'!$B:$F,2,FALSE) -> Planting tube stock (<15 cm) | E152: Y | G152: =VLOOKUP($P152,'Cost Schedule'!$B:$F,3,FALSE) -> allow | H152: =VLOOKUP($P152,'Cost Schedule'!$B:$F,4,FALSE) -> 6.6 | J152: 0 | L152: =VLOOKUP($P152,'Cost Schedule'!$B:$F,5,FALSE) -> 4 m centres. | O152: 0 | P152: 9.07 | R152: Y
D153: =VLOOKUP($P153,'Cost Schedule'!$B:$F,2,FALSE) -> Direct seeding / fertiliser (pasture grass species) | E153: Y | G153: =VLOOKUP($P153,'Cost Schedule'!$B:$F,3,FALSE) -> ha | H153: =VLOOKUP($P153,'Cost Schedule'!$B:$F,4,FALSE) -> 1875 | J153: 0 | L153: =VLOOKUP($P153,'Cost Schedule'!$B:$F,5,FALSE) -> Includes treating, weighing, mixing with fertiliser + spreading by tractor or helicopter (aerial seeding). | O153: 0 | P153: 9.08 | R153: Y
D154: =VLOOKUP($P154,'Cost Schedule'!$B:$F,2,FALSE) -> Direct seeding / fertiliser (tree or native grass species) | E154: Y | G154: =VLOOKUP($P154,'Cost Schedule'!$B:$F,3,FALSE) -> ha | H154: =VLOOKUP($P154,'Cost Schedule'!$B:$F,4,FALSE) -> 4135 | J154: 0 | L154: =VLOOKUP($P154,'Cost Schedule'!$B:$F,5,FALSE) -> Includes treating, weighing, mixing with fertiliser + spreading by tractor or helicopter (aerial seeding). | O154: 0 | P154: 9.09 | R154: Y
D155: =VLOOKUP($P155,'Cost Schedule'!$B:$F,2,FALSE) -> Hydro-seeding with straw mulching and bitumen tack with native seed | E155: Y | G155: =VLOOKUP($P155,'Cost Schedule'!$B:$F,3,FALSE) -> m2 | H155: =VLOOKUP($P155,'Cost Schedule'!$B:$F,4,FALSE) -> 1.9 | J155: 0 | L155: =VLOOKUP($P155,'Cost Schedule'!$B:$F,5,FALSE) -> Process to be used on flat well prepared surfaces under irrigation e.g. sewage treatment irrigation areas. Ranges from $0.15 - $0.50 depending on size and input variables. Native seed +$1.00 | O155: 0 | P155: 9.10a | R155: Y
D156: =VLOOKUP($P156,'Cost Schedule'!$B:$F,2,FALSE) -> Hydro-seeding with straw mulching and bitumen tack with pasture seed | E156: Y | G156: =VLOOKUP($P156,'Cost Schedule'!$B:$F,3,FALSE) -> m2 | H156: =VLOOKUP($P156,'Cost Schedule'!$B:$F,4,FALSE) -> 0.43 | J156: =IF($E156="Y",IF(I156=0,F156*H156,F156*I156),"") -> 0 | K156: =IF(I156<>"","insert additional information here","") ->  | L156: =VLOOKUP($P156,'Cost Schedule'!$B:$F,5,FALSE) -> Process to be used on flat well prepared surfaces under irrigation e.g. sewage treatment irrigation areas. Ranges from $0.15 - $0.50 depending on size and input variables. Pasture seed +$0.10 | O156: 0 | P156: 9.10b | R156: Y
D157: =VLOOKUP($P157,'Cost Schedule'!$B:$F,2,FALSE) -> Hydromulch - base grade or standard for flat areas that can be irrigated by water cart | E157: Y | G157: =VLOOKUP($P157,'Cost Schedule'!$B:$F,3,FALSE) -> m2 | H157: =VLOOKUP($P157,'Cost Schedule'!$B:$F,4,FALSE) -> 0.8 | J157: =IF($E157="Y",IF(I157=0,F157*H157,F157*I157),"") -> 0 | K157: =IF(I157<>"","insert additional information here","") ->  | L157: =VLOOKUP($P157,'Cost Schedule'!$B:$F,5,FALSE) -> Assumes use on flat areas with a gradient of less than 4:1, and where irrigation from water cart may be possible. Industry standard application rate of 2500kg/ha. Product will last short term (less than 3 months) and vegetation is required to grow ASAP for stability. This cost includes cover crop only, additional seeding required. | O157: 0 | P157: 9.10c | R157: Y
D158: =VLOOKUP($P158,'Cost Schedule'!$B:$F,2,FALSE) -> Hydromulch - bonded fibre matrix grade for steep areas to stabilise up to 12 months | E158: Y | G158: =VLOOKUP($P158,'Cost Schedule'!$B:$F,3,FALSE) -> m2 | H158: =VLOOKUP($P158,'Cost Schedule'!$B:$F,4,FALSE) -> 1.8 | J158: =IF($E158="Y",IF(I158=0,F158*H158,F158*I158),"") -> 0 | K158: =IF(I158<>"","insert additional information here","") ->  | L158: =VLOOKUP($P158,'Cost Schedule'!$B:$F,5,FALSE) -> Assumes use on steep areas where stabilisation is required for up to 12 months. Application rate of ~3500kg/ha. This cost includes cover crop only, additional seeding required. | O158: 0 | P158: 9.10d | R158: Y
D159: =VLOOKUP($P159,'Cost Schedule'!$B:$F,2,FALSE) -> Hydromulch - high performance flexible growth medium grade | E159: Y | G159: =VLOOKUP($P159,'Cost Schedule'!$B:$F,3,FALSE) -> m2 | H159: =VLOOKUP($P159,'Cost Schedule'!$B:$F,4,FALSE) -> 2.5 | J159: =IF($E159="Y",IF(I159=0,F159*H159,F159*I159),"") -> 0 | K159: =IF(I159<>"","insert additional information here","") ->  | L159: =VLOOKUP($P159,'Cost Schedule'!$B:$F,5,FALSE) -> Assumes use on extreme slopes where stabilisation is required for up to 18 months. Application rate of ~4,000kg/ha minimum. This cost includes cover crop only, additional seeding required. | O159: 0 | P159: 9.10e | R159: Y
D160: =VLOOKUP($P160,'Cost Schedule'!$B:$F,2,FALSE) -> Single application of fertiliser (pasture) | E160: Y | G160: =VLOOKUP($P160,'Cost Schedule'!$B:$F,3,FALSE) -> ha | H160: =VLOOKUP($P160,'Cost Schedule'!$B:$F,4,FALSE) -> 420 | J160: 0 | L160: =VLOOKUP($P160,'Cost Schedule'!$B:$F,5,FALSE) -> Assumes 250 kg / ha. These rates have fluctuated over the last few years however in light of current conditions (lower fuel prices, reduced demand etc) this is a suitable standard rate. | O160: 0 | P160: 9.11 | R160: Y
D161: =VLOOKUP($P161,'Cost Schedule'!$B:$F,2,FALSE) -> Single application of fertiliser (trees) | E161: Y | G161: =VLOOKUP($P161,'Cost Schedule'!$B:$F,3,FALSE) -> ha | H161: =VLOOKUP($P161,'Cost Schedule'!$B:$F,4,FALSE) -> 140 | J161: 0 | L161: =VLOOKUP($P161,'Cost Schedule'!$B:$F,5,FALSE) -> These rates have fluctuated over the last few years however in light of current conditions (lower fuel prices, reduced demand etc) this is a suitable standard rate. | O161: 0 | P161: 9.12 | R161: Y
D162: =VLOOKUP($P162,'Cost Schedule'!$B:$F,2,FALSE) -> Spoil amelioration (adding lime / gypsum etc.) | E162: Y | G162: =VLOOKUP($P162,'Cost Schedule'!$B:$F,3,FALSE) -> ha | H162: =VLOOKUP($P162,'Cost Schedule'!$B:$F,4,FALSE) -> 1000 | J162: 0 | L162: =VLOOKUP($P162,'Cost Schedule'!$B:$F,5,FALSE) -> Assumes 2.5 t / ha as an average application rate. | O162: 0 | P162: 9.13 | R162: Y
D163: =VLOOKUP($P163,'Cost Schedule'!$B:$F,2,FALSE) -> growth media amelioration with biosolids | E163: Y | G163: =VLOOKUP($P163,'Cost Schedule'!$B:$F,3,FALSE) -> ha | H163: =VLOOKUP($P163,'Cost Schedule'!$B:$F,4,FALSE) -> 1015 | J163: 0 | L163: =VLOOKUP($P163,'Cost Schedule'!$B:$F,5,FALSE) -> Recent experience with agronomy projects. | O163: 0 | P163: 9.14 | R163: Y
D164: =VLOOKUP($P164,'Cost Schedule'!$B:$F,2,FALSE) -> Construct no-climb stock fence around rehabilitated areas | E164: Y | G164: =VLOOKUP($P164,'Cost Schedule'!$B:$F,3,FALSE) -> m | H164: =VLOOKUP($P164,'Cost Schedule'!$B:$F,4,FALSE) -> 22 | J164: 0 | L164: =VLOOKUP($P164,'Cost Schedule'!$B:$F,5,FALSE) -> Standard rate for no-climb stock fencing. | O164: 0 | P164: 9.16 | R164: Y
D165: =VLOOKUP($P165,'Cost Schedule'!$B:$F,2,FALSE) -> Construct standard stock fence around rehabilitated areas | E165: Y | G165: =VLOOKUP($P165,'Cost Schedule'!$B:$F,3,FALSE) -> m | H165: =VLOOKUP($P165,'Cost Schedule'!$B:$F,4,FALSE) -> 13 | J165: 0 | L165: =VLOOKUP($P165,'Cost Schedule'!$B:$F,5,FALSE) -> Standard rate for standard stock fencing. | O165: 0 | P165: 9.17 | R165: Y
D166: =VLOOKUP($P166,'Cost Schedule'!$B:$F,2,FALSE) -> Purchase and erect warning signs | E166: Y | G166: =VLOOKUP($P166,'Cost Schedule'!$B:$F,3,FALSE) -> allow | H166: =VLOOKUP($P166,'Cost Schedule'!$B:$F,4,FALSE) -> 250 | J166: 0 | L166: =VLOOKUP($P166,'Cost Schedule'!$B:$F,5,FALSE) -> Compliance with AS 1319-1994 - Safety signs for the occupational environment - installed every 25 m. | O166: 0 | P166: 9.18 | R166: Y
D167: =VLOOKUP($P167,'Cost Schedule'!$B:$F,2,FALSE) -> Supply from external sources virgin excavated natural material (VENM) for growth media. | E167: Y | G167: =VLOOKUP($P167,'Cost Schedule'!$B:$F,3,FALSE) -> m3 | H167: =VLOOKUP($P167,'Cost Schedule'!$B:$F,4,FALSE) -> 80.8 | J167: 0 | L167: =VLOOKUP($P167,'Cost Schedule'!$B:$F,5,FALSE) -> D7 to spread material at $205/hr, Excavator ($220/hr) load Artic Trucks (90c/km) from imported stockpile - allow nominal rate of $70/m3 for imported fill material. | O167: 0 | P167: 9.19 | R167: Y
D168: =VLOOKUP($P168,'Cost Schedule'!$B:$F,2,FALSE) -> Supply from external sources a combination of virgin excavated natural material (VENM) and spoil from large excavation for filing voids and/or capping etc. | E168: Y | G168: =VLOOKUP($P168,'Cost Schedule'!$B:$F,3,FALSE) -> m3 | H168: =VLOOKUP($P168,'Cost Schedule'!$B:$F,4,FALSE) -> 72.5 | J168: =IF($E168="Y",IF(I168=0,F168*H168,F168*I168),"") -> 0 | K168: =IF(I168<>"","insert additional information here","") ->  | L168: =VLOOKUP($P168,'Cost Schedule'!$B:$F,5,FALSE) -> D10 push into void at $270/hr, Excavator ($220/hr) load Artic Trucks (90c/km) from imported stockpile - allow nominal rate of $60/m3 for imported fill material. | O168: 0 | P168: 9.2 | R168: Y
D169: =VLOOKUP($P169,'Cost Schedule'!$B:$F,2,FALSE) -> Clearing and grubbing of trees and vegetation | E169: Y | G169: =VLOOKUP($P169,'Cost Schedule'!$B:$F,3,FALSE) -> ha | H169: =VLOOKUP($P169,'Cost Schedule'!$B:$F,4,FALSE) -> 4730 | J169: =IF($E169="Y",IF(I169=0,F169*H169,F169*I169),"") -> 0 | K169: =IF(I169<>"","insert additional information here","") ->  | L169: =VLOOKUP($P169,'Cost Schedule'!$B:$F,5,FALSE) -> Clearing and grubbing of light vegetation growth e.g. regrowth | O169: 0 | P169: 9.21 | R169: Y
D170: =VLOOKUP($P170,'Cost Schedule'!$B:$F,2,FALSE) -> Topsoil stripping | E170: Y | G170: =VLOOKUP($P170,'Cost Schedule'!$B:$F,3,FALSE) -> m3 | H170: =VLOOKUP($P170,'Cost Schedule'!$B:$F,4,FALSE) -> 4.8625 | J170: =IF($E170="Y",IF(I170=0,F170*H170,F170*I170),"") -> 0 | K170: =IF(I170<>"","insert additional information here","") ->  | L170: =VLOOKUP($P170,'Cost Schedule'!$B:$F,5,FALSE) -> Stripping or topsoil at an approximate depth of 0.2 m into stockpiles; load and haul to final rehabilitation location required or respreading where necessary. | O170: 0 | P170: 9.22 | R170: Y
D171: =VLOOKUP($P171,'Cost Schedule'!$B:$F,2,FALSE) -> Growth media supplementation with manure | E171: Y | G171: =VLOOKUP($P171,'Cost Schedule'!$B:$F,3,FALSE) -> ha | H171: =VLOOKUP($P171,'Cost Schedule'!$B:$F,4,FALSE) -> 747.5 | J171: =IF($E171="Y",IF(I171=0,F171*H171,F171*I171),"") -> 0 | K171: =IF(I171<>"","insert additional information here","") ->  | L171: =VLOOKUP($P171,'Cost Schedule'!$B:$F,5,FALSE) -> Addition of manure to improve soil quality. | O171: 0 | P171: 9.23 | R171: Y
D172: =VLOOKUP($P172,'Cost Schedule'!$B:$F,2,FALSE) -> Utilise biotic soil media - organic topsoil alternative | E172: Y | G172: =VLOOKUP($P172,'Cost Schedule'!$B:$F,3,FALSE) -> m2 | H172: =VLOOKUP($P172,'Cost Schedule'!$B:$F,4,FALSE) -> 2.5 | J172: 0 | L172: =VLOOKUP($P172,'Cost Schedule'!$B:$F,5,FALSE) -> Material that can be applied as an alternative to spreading topsoil prior to hydromulching. | O172: 0 | P172: 9.24a | R172: Y
C173: =C149&" Subtotal" -> Land Preparation and Revegetation (Growth Media Development and Ecosystem Establishment) Subtotal | J173: =SUM(J149:J172) -> 0 | R173: Y
C174: Water Management | D174: =VLOOKUP($P174,'Cost Schedule'!$B:$F,2,FALSE) -> Clean water dams to be retained after decommissioning – make safe and minor earthworks | E174: Y | G174: =VLOOKUP($P174,'Cost Schedule'!$B:$F,3,FALSE) -> allow | H174: =VLOOKUP($P174,'Cost Schedule'!$B:$F,4,FALSE) -> 2500 | J174: =IF($E174="Y",IF(I174=0,F174*H174,F174*I174),"") -> 0 | K174: =IF(I174<>"","insert additional information here","") ->  | L174: =VLOOKUP($P174,'Cost Schedule'!$B:$F,5,FALSE) -> Provisional sum for earthworks and revegetation required to rehabilitate dam batters etc suitable for re-use by an alternate land-user - D6 Dozer (or similar) @ ~$200 per hour and pasture grass. | O174: =IF(I174="",0,1) -> 0 | P174: 10.03a | R174: Y
D175: =VLOOKUP($P175,'Cost Schedule'!$B:$F,2,FALSE) -> Large clean water dams (i.e. ≥ 2 ha) to be retained after mine closure – make safe and minor earthworks | E175: Y | G175: =VLOOKUP($P175,'Cost Schedule'!$B:$F,3,FALSE) -> allow | H175: =VLOOKUP($P175,'Cost Schedule'!$B:$F,4,FALSE) -> 10500 | J175: =IF($E175="Y",IF(I175=0,F175*H175,F175*I175),"") -> 0 | K175: =IF(I175<>"","insert additional information here","") ->  | L175: =VLOOKUP($P175,'Cost Schedule'!$B:$F,5,FALSE) -> Provisional sum for earthworks and revegetation required to rehabilitate dam batters etc suitable for re-use by an alternate land-user - D6 Dozer (or similar) + pasture grass. | O175: =IF(I175="",0,1) -> 0 | P175: 10.03b | R175: Y
D176: =VLOOKUP($P176,'Cost Schedule'!$B:$F,2,FALSE) -> Remove sediments from the floor of the dam to enable it to be converted into clean water structure (Select Haul Distance from list) | E176: Y | G176: =VLOOKUP($P176,'Cost Schedule'!$B:$F,3,FALSE) -> m3 | H176: =VLOOKUP($P176,'Cost Schedule'!$B:$F,4,FALSE) -> Select from List | J176: =IF($E176="Y",IF(I176="",IF($H176="Select from List","",IF(I176=0,F176*H176,"")),F176*I176),"") ->  | K176: Select Haul Distance Here | L176: =VLOOKUP($P176,'Cost Schedule'!$B:$F,5,FALSE) -> This item includes the volume of contaminated sediment requiring removal using an excavator, truck and dozer to clean out the dam. | O176: =IF(I176="",0,1) -> 0 | P176: =IF(Q176=1,"10.04-",IF(Q176=2,"10.04a",IF(Q176=3,"10.04b",IF(Q176=4,"10.04c",IF(Q176=5,"10.04d","10.04-"))))) -> 10.04- | Q176: =VLOOKUP(K176,Select_Haul_Distance_Index,2,FALSE) -> 1 | R176: Y
K177: =IF(I176<>"","insert additional information here","") ->  | R177: =R176 -> Y
D178: =VLOOKUP($P178,'Cost Schedule'!$B:$F,2,FALSE) -> Removal of evaporation fans and/or other water transfer and management infrastructure | E178: Y | G178: =VLOOKUP($P178,'Cost Schedule'!$B:$F,3,FALSE) -> allow | H178: =VLOOKUP($P178,'Cost Schedule'!$B:$F,4,FALSE) -> 25000 | J178: =IF($E178="Y",IF(I178=0,F178*H178,F178*I178),"") -> 0 | K178: =IF(I178<>"","insert additional information here","") ->  | L178: =VLOOKUP($P178,'Cost Schedule'!$B:$F,5,FALSE) -> Provisional sum for removal of water management infrastructure. | O178: =IF(I178="",0,1) -> 0 | P178: 10.05 | R178: Y
C179: =C174&" Subtotal" -> Water Management Subtotal | J179: =SUM(J174:J178) -> 0 | R179: Y
C180: Maintenance of Rehabilitated Areas | D180: =VLOOKUP($P180,'Cost Schedule'!$B:$F,2,FALSE) -> Maintenance of areas that have been shaped and seeded and revegetation has been 'successful' | E180: Y | G180: =VLOOKUP($P180,'Cost Schedule'!$B:$F,3,FALSE) -> ha | H180: =VLOOKUP($P180,'Cost Schedule'!$B:$F,4,FALSE) -> 925 | J180: =IF($E180="Y",IF(I180=0,F180*H180,F180*I180),"") -> 0 | K180: =IF(I180<>"","insert additional information here","") ->  | L180: =VLOOKUP($P180,'Cost Schedule'!$B:$F,5,FALSE) -> Rehabilitation maintenance might include re-seeding, watering, fertilising, minor re-shaping, erosion control, inspections/audits - does not include major repair works. | O180: =IF(I180="",0,1) -> 0 | P180: 12.01 | R180: Y
D181: =VLOOKUP($P181,'Cost Schedule'!$B:$F,2,FALSE) -> Existing rehabilitation repair - minor | E181: Y | G181: =VLOOKUP($P181,'Cost Schedule'!$B:$F,3,FALSE) -> ha | H181: =VLOOKUP($P181,'Cost Schedule'!$B:$F,4,FALSE) -> 1200 | J181: =IF($E181="Y",IF(I181=0,F181*H181,F181*I181),"") -> 0 | K181: =IF(I181<>"","insert additional information here","") ->  | L181: =VLOOKUP($P181,'Cost Schedule'!$B:$F,5,FALSE) -> Areas requiring minor repair - rills, minor growth media replacement. | O181: =IF(I181="",0,1) -> 0 | P181: 12.06 | R181: Y
D182: =VLOOKUP($P182,'Cost Schedule'!$B:$F,2,FALSE) -> Existing rehabilitation repair - moderate | E182: Y | G182: =VLOOKUP($P182,'Cost Schedule'!$B:$F,3,FALSE) -> ha | H182: =VLOOKUP($P182,'Cost Schedule'!$B:$F,4,FALSE) -> 1700 | J182: =IF($E182="Y",IF(I182=0,F182*H182,F182*I182),"") -> 0 | K182: =IF(I182<>"","insert additional information here","") ->  | L182: =VLOOKUP($P182,'Cost Schedule'!$B:$F,5,FALSE) -> Areas requiring moderate repair - rills, significant growth media replacement. | O182: =IF(I182="",0,1) -> 0 | P182: 12.07 | R182: Y
D183: =VLOOKUP($P183,'Cost Schedule'!$B:$F,2,FALSE) -> Existing rehabilitation repair - major | E183: Y | G183: =VLOOKUP($P183,'Cost Schedule'!$B:$F,3,FALSE) -> ha | H183: =VLOOKUP($P183,'Cost Schedule'!$B:$F,4,FALSE) -> 2500 | J183: =IF($E183="Y",IF(I183=0,F183*H183,F183*I183),"") -> 0 | K183: =IF(I183<>"","insert additional information here","") ->  | L183: =VLOOKUP($P183,'Cost Schedule'!$B:$F,5,FALSE) -> Areas requiring major repair - rills, gullies, growth media replacement, some level of additional surface water management. | O183: =IF(I183="",0,1) -> 0 | P183: 12.08 | R183: Y
D184: =VLOOKUP($P184,'Cost Schedule'!$B:$F,2,FALSE) -> Existing rehabilitation repair - total failure of landform | E184: Y | G184: =VLOOKUP($P184,'Cost Schedule'!$B:$F,3,FALSE) -> ha | H184: =VLOOKUP($P184,'Cost Schedule'!$B:$F,4,FALSE) -> 40000 | J184: =IF($E184="Y",IF(I184=0,F184*H184,F184*I184),"") -> 0 | K184: =IF(I184<>"","insert additional information here","") ->  | L184: =VLOOKUP($P184,'Cost Schedule'!$B:$F,5,FALSE) -> Areas that require extensive rehabilitation repair - re-design and re-construction of landform. | O184: =IF(I184="",0,1) -> 0 | P184: 12.09 | R184: Y
C185: =C180&" Subtotal" -> Maintenance of Rehabilitated Areas Subtotal | J185: =SUM(J180:J184) -> 0 | R185: Y
C186: Additional Items | D186: Other 1 <insert> | E186: N | H186: This is | J186: =IF($E186="Y",IF(I186=0,F186*H186,F186*I186),"") ->  | K186: =IF(I186<>"","insert additional information here","") ->  | L186: This item includes <<to be added by the operator>> | O186: =IF(I186="",0,1) -> 0 | R186: =E186 -> N
D187: Other 2 <insert> | E187: N | H187: deliberately | J187: =IF($E187="Y",IF(I187=0,F187*H187,F187*I187),"") ->  | K187: =IF(I187<>"","insert additional information here","") ->  | L187: This item includes <<to be added by the operator>> | O187: =IF(I187="",0,1) -> 0 | R187: N
D188: Other 3 <insert> | E188: N | H188: left blank | J188: =IF($E188="Y",IF(I188=0,F188*H188,F188*I188),"") ->  | K188: =IF(I188<>"","insert additional information here","") ->  | L188: This item includes <<to be added by the operator>> | O188: =IF(I188="",0,1) -> 0 | R188: N
C189: =C186&" Subtotal" -> Additional Items Subtotal | J189: =SUM(J186:J188) -> 0 | R189: Y
C190: TXRESULT | D190: Total Cost for Infrastructure Domain | J190: =SUM(J77,J81,J107,J128,J137,J148,J173,J179,J185,J189) -> 0 | R190: Y
R191: Y
R192: Y
R193: Y
C194: Underground Operations | R194: Y
C195: Domain 2a: Tailings & Rejects | E195: =D295 -> Total Cost for Tailings & Rejects Domain | L195: =J295 -> 0 | R195: Y
R196: Y
C197: Additional Assumptions: Record any relevant assumptions to this domain below: | R197: Y
J198: Key Rehabilitation Area Data for Domain | L198: Enter data below manually | R198: Y
J199: Total Landform Establishment: | R199: Y
J200: Total Growth Media Development: | R200: Y
J201: Total Ecosystem Establishment: | R201: Y
R202: Y
R203: Y
C204: Management Precinct | D204: Activity / Description | E204: Applicable (Y or N) | F204: Quantity | G204: Unit | H204: Default Unit Rate | I204: Alternative Unit Rate | J204: Total Cost | K204: Basis for Costs Estimation and Additional Relevant Information | L204: Description / Notes: | O204: Chg | P204: Link | Q204: List | R204: Y
... 248 more rows

Sheet Exploration (1) (hidden)
C1: Management Precinct | D1: Activity / Description | E1: Applicable (Y or N) | F1: Quantity | G1: Unit | H1: Default Unit Rate | I1: Alternative Unit Rate | J1: Total Cost | K1: Basis for Costs Estimation and Additional Relevant Information | L1: Description / Notes: | AG1: =#REF! -> 
AG2: =#REF! -> 
C4: Exploration
C5: Domain 1a: All Rehabilitation Activities | E5: =D131 -> Total Cost for all Rehabilitation Activities | L5: =J131 -> 0
C8: Additional Assumptions: Record any relevant assumptions to this domain below:
J9: Key Rehabilitation Area Data for Domain | L9: Enter data below manually
J10: Total Landform Establishment:
J11: Total Growth Media Development:
J12: Total Ecosystem Establishment:
C15: Management Precinct | D15: Activity / Description | E15: Applicable (Y or N) | F15: Quantity | G15: Unit | H15: Default Unit Rate | I15: Alternative Unit Rate | J15: Total Cost | K15: Basis for Costs Estimation and Additional Relevant Information | L15: Description / Notes: | O15: Chg | P15: Link | Q15: List | R15: Print
C16: Termination of Services and Demolition Works | D16: =VLOOKUP($P16,'Cost Schedule'!$B:$F,2,FALSE) -> Disconnect and terminate services at remote areas (i.e. pump stations, remote workshops, sewage treatment plant etc.) | E16: Y | G16: =VLOOKUP($P16,'Cost Schedule'!$B:$F,3,FALSE) -> allow | H16: =VLOOKUP($P16,'Cost Schedule'!$B:$F,4,FALSE) -> 5850 | J16: =IF($E16="Y",IF(I16=0,F16*H16,F16*I16),"") -> 0 | K16: =IF(I16<>"","insert additional information here","") ->  | L16: =VLOOKUP($P16,'Cost Schedule'!$B:$F,5,FALSE) -> Used for infrastructure remote from primary connection. Can also be used for small mines / quarries that do not have dedicated supplies from supply authorities such as steel lattice power lines. | O16: =IF(I16="",0,1) -> 0 | P16: 1.02 | R16: =E16 -> Y
D17: =VLOOKUP($P17,'Cost Schedule'!$B:$F,2,FALSE) -> Removal of low/medium voltage powerlines including disconnection, rolling up the wires and removing the poles - does not include the removal of substations | E17: Y | G17: =VLOOKUP($P17,'Cost Schedule'!$B:$F,3,FALSE) -> km | H17: =VLOOKUP($P17,'Cost Schedule'!$B:$F,4,FALSE) -> 15000 | J17: 0 | L17: =VLOOKUP($P17,'Cost Schedule'!$B:$F,5,FALSE) -> Applies to power lines on stobie, concrete or similar poles. | O17: 0 | P17: 1.03 | R17: =E17 -> Y
